Workbook

Sheet 銘柄一覧
A1: 財産評価のための上場株式の最終価格自動計算シート
C3: 相続発生日 | D3: 2018-03-22
C4: 相続月 | D4: =EOMONTH($D$3,0) -> 2018-03-31 | F4: =YEAR(D4) -> 2018 | G4: =MONTH(D4) -> 3 | H4: =DAY(D4) -> 31 | I4: =D5+1 -> 2018-03-01
C5: 相続月の前月 | D5: =EOMONTH($D$3,-1) -> 2018-02-28 | F5: =YEAR(D5) -> 2018 | G5: =MONTH(D5) -> 2 | H5: =DAY(D5) -> 28 | I5: =EOMONTH($I$4,-2)+1 -> 2018-02-01
C6: 相続月の前々月 | D6: =EOMONTH($D$3,-2) -> 2018-01-31 | F6: 2018 | G6: 1 | H6: 31 | I6: =EOMONTH($I$4,-3)+1 -> 2018-01-01
C9: 証券コード | D9: 社名 | E9: 市場
C10: 7596 | D10: =IF(ISERROR(VLOOKUP(C10,証券コード一覧!A:B,2,FALSE)),"証券コード一覧に対応する銘柄がありません",VLOOKUP(C10,証券コード一覧!A:B,2,FALSE)) -> 魚力 | E10: =IF(ISERROR(VLOOKUP(C10,証券コード一覧!A:C,3,FALSE)),"証券コード一覧に対応する銘柄がありません",VLOOKUP(C10,証券コード一覧!A:C,3,FALSE)) -> 市場第一部（内国株）
C11: 7732 | D11: =IF(ISERROR(VLOOKUP(C11,証券コード一覧!A:B,2,FALSE)),"証券コード一覧に対応する銘柄がありません",VLOOKUP(C11,証券コード一覧!A:B,2,FALSE)) -> トプコン | E11: =IF(ISERROR(VLOOKUP(C11,証券コード一覧!A:C,3,FALSE)),"証券コード一覧に対応する銘柄がありません",VLOOKUP(C11,証券コード一覧!A:C,3,FALSE)) -> 市場第一部（内国株）
C12: 7762 | D12: =IF(ISERROR(VLOOKUP(C12,証券コード一覧!A:B,2,FALSE)),"証券コード一覧に対応する銘柄がありません",VLOOKUP(C12,証券コード一覧!A:B,2,FALSE)) -> シチズンホールディングス | E12: =IF(ISERROR(VLOOKUP(C12,証券コード一覧!A:C,3,FALSE)),"証券コード一覧に対応する銘柄がありません",VLOOKUP(C12,証券コード一覧!A:C,3,FALSE)) -> 市場第一部（内国株）
C13: 7832 | D13: =IF(ISERROR(VLOOKUP(C13,証券コード一覧!A:B,2,FALSE)),"証券コード一覧に対応する銘柄がありません",VLOOKUP(C13,証券コード一覧!A:B,2,FALSE)) -> バンダイナムコホールディングス | E13: =IF(ISERROR(VLOOKUP(C13,証券コード一覧!A:C,3,FALSE)),"証券コード一覧に対応する銘柄がありません",VLOOKUP(C13,証券コード一覧!A:C,3,FALSE)) -> 市場第一部（内国株）
C14: 7846 | D14: =IF(ISERROR(VLOOKUP(C14,証券コード一覧!A:B,2,FALSE)),"証券コード一覧に対応する銘柄がありません",VLOOKUP(C14,証券コード一覧!A:B,2,FALSE)) -> パイロットコーポレーション | E14: =IF(ISERROR(VLOOKUP(C14,証券コード一覧!A:C,3,FALSE)),"証券コード一覧に対応する銘柄がありません",VLOOKUP(C14,証券コード一覧!A:C,3,FALSE)) -> 市場第一部（内国株）
C15: 7893 | D15: =IF(ISERROR(VLOOKUP(C15,証券コード一覧!A:B,2,FALSE)),"証券コード一覧に対応する銘柄がありません",VLOOKUP(C15,証券コード一覧!A:B,2,FALSE)) -> プロネクサス | E15: =IF(ISERROR(VLOOKUP(C15,証券コード一覧!A:C,3,FALSE)),"証券コード一覧に対応する銘柄がありません",VLOOKUP(C15,証券コード一覧!A:C,3,FALSE)) -> 市場第一部（内国株）
C16: 7921 | D16: =IF(ISERROR(VLOOKUP(C16,証券コード一覧!A:B,2,FALSE)),"証券コード一覧に対応する銘柄がありません",VLOOKUP(C16,証券コード一覧!A:B,2,FALSE)) -> 宝印刷 | E16: =IF(ISERROR(VLOOKUP(C16,証券コード一覧!A:C,3,FALSE)),"証券コード一覧に対応する銘柄がありません",VLOOKUP(C16,証券コード一覧!A:C,3,FALSE)) -> 市場第一部（内国株）
C17: 7949 | D17: =IF(ISERROR(VLOOKUP(C17,証券コード一覧!A:B,2,FALSE)),"証券コード一覧に対応する銘柄がありません",VLOOKUP(C17,証券コード一覧!A:B,2,FALSE)) -> 小松ウオール工業 | E17: =IF(ISERROR(VLOOKUP(C17,証券コード一覧!A:C,3,FALSE)),"証券コード一覧に対応する銘柄がありません",VLOOKUP(C17,証券コード一覧!A:C,3,FALSE)) -> 市場第一部（内国株）
C18: 7962 | D18: =IF(ISERROR(VLOOKUP(C18,証券コード一覧!A:B,2,FALSE)),"証券コード一覧に対応する銘柄がありません",VLOOKUP(C18,証券コード一覧!A:B,2,FALSE)) -> キングジム | E18: =IF(ISERROR(VLOOKUP(C18,証券コード一覧!A:C,3,FALSE)),"証券コード一覧に対応する銘柄がありません",VLOOKUP(C18,証券コード一覧!A:C,3,FALSE)) -> 市場第一部（内国株）
C19: 7971 | D19: =IF(ISERROR(VLOOKUP(C19,証券コード一覧!A:B,2,FALSE)),"証券コード一覧に対応する銘柄がありません",VLOOKUP(C19,証券コード一覧!A:B,2,FALSE)) -> 東リ | E19: =IF(ISERROR(VLOOKUP(C19,証券コード一覧!A:C,3,FALSE)),"証券コード一覧に対応する銘柄がありません",VLOOKUP(C19,証券コード一覧!A:C,3,FALSE)) -> 市場第一部（内国株）
C20: 7976 | D20: =IF(ISERROR(VLOOKUP(C20,証券コード一覧!A:B,2,FALSE)),"証券コード一覧に対応する銘柄がありません",VLOOKUP(C20,証券コード一覧!A:B,2,FALSE)) -> 三菱鉛筆 | E20: =IF(ISERROR(VLOOKUP(C20,証券コード一覧!A:C,3,FALSE)),"証券コード一覧に対応する銘柄がありません",VLOOKUP(C20,証券コード一覧!A:C,3,FALSE)) -> 市場第一部（内国株）
C21: 7984 | D21: =IF(ISERROR(VLOOKUP(C21,証券コード一覧!A:B,2,FALSE)),"証券コード一覧に対応する銘柄がありません",VLOOKUP(C21,証券コード一覧!A:B,2,FALSE)) -> コクヨ | E21: =IF(ISERROR(VLOOKUP(C21,証券コード一覧!A:C,3,FALSE)),"証券コード一覧に対応する銘柄がありません",VLOOKUP(C21,証券コード一覧!A:C,3,FALSE)) -> 市場第一部（内国株）
C22: 8031 | D22: =IF(ISERROR(VLOOKUP(C22,証券コード一覧!A:B,2,FALSE)),"証券コード一覧に対応する銘柄がありません",VLOOKUP(C22,証券コード一覧!A:B,2,FALSE)) -> 三井物産 | E22: =IF(ISERROR(VLOOKUP(C22,証券コード一覧!A:C,3,FALSE)),"証券コード一覧に対応する銘柄がありません",VLOOKUP(C22,証券コード一覧!A:C,3,FALSE)) -> 市場第一部（内国株）
C23: 8053 | D23: =IF(ISERROR(VLOOKUP(C23,証券コード一覧!A:B,2,FALSE)),"証券コード一覧に対応する銘柄がありません",VLOOKUP(C23,証券コード一覧!A:B,2,FALSE)) -> 住友商事 | E23: =IF(ISERROR(VLOOKUP(C23,証券コード一覧!A:C,3,FALSE)),"証券コード一覧に対応する銘柄がありません",VLOOKUP(C23,証券コード一覧!A:C,3,FALSE)) -> 市場第一部（内国株）
D24: =IF(ISERROR(VLOOKUP(C24,証券コード一覧!A:B,2,FALSE)),"証券コード一覧に対応する銘柄がありません",VLOOKUP(C24,証券コード一覧!A:B,2,FALSE)) -> 証券コード一覧に対応する銘柄がありません | E24: =IF(ISERROR(VLOOKUP(C24,証券コード一覧!A:C,3,FALSE)),"証券コード一覧に対応する銘柄がありません",VLOOKUP(C24,証券コード一覧!A:C,3,FALSE)) -> 証券コード一覧に対応する銘柄がありません
D25: =IF(ISERROR(VLOOKUP(C25,証券コード一覧!A:B,2,FALSE)),"証券コード一覧に対応する銘柄がありません",VLOOKUP(C25,証券コード一覧!A:B,2,FALSE)) -> 証券コード一覧に対応する銘柄がありません | E25: =IF(ISERROR(VLOOKUP(C25,証券コード一覧!A:C,3,FALSE)),"証券コード一覧に対応する銘柄がありません",VLOOKUP(C25,証券コード一覧!A:C,3,FALSE)) -> 証券コード一覧に対応する銘柄がありません
D26: =IF(ISERROR(VLOOKUP(C26,証券コード一覧!A:B,2,FALSE)),"証券コード一覧に対応する銘柄がありません",VLOOKUP(C26,証券コード一覧!A:B,2,FALSE)) -> 証券コード一覧に対応する銘柄がありません | E26: =IF(ISERROR(VLOOKUP(C26,証券コード一覧!A:C,3,FALSE)),"証券コード一覧に対応する銘柄がありません",VLOOKUP(C26,証券コード一覧!A:C,3,FALSE)) -> 証券コード一覧に対応する銘柄がありません
D27: =IF(ISERROR(VLOOKUP(C27,証券コード一覧!A:B,2,FALSE)),"証券コード一覧に対応する銘柄がありません",VLOOKUP(C27,証券コード一覧!A:B,2,FALSE)) -> 証券コード一覧に対応する銘柄がありません | E27: =IF(ISERROR(VLOOKUP(C27,証券コード一覧!A:C,3,FALSE)),"証券コード一覧に対応する銘柄がありません",VLOOKUP(C27,証券コード一覧!A:C,3,FALSE)) -> 証券コード一覧に対応する銘柄がありません
D28: =IF(ISERROR(VLOOKUP(C28,証券コード一覧!A:B,2,FALSE)),"証券コード一覧に対応する銘柄がありません",VLOOKUP(C28,証券コード一覧!A:B,2,FALSE)) -> 証券コード一覧に対応する銘柄がありません | E28: =IF(ISERROR(VLOOKUP(C28,証券コード一覧!A:C,3,FALSE)),"証券コード一覧に対応する銘柄がありません",VLOOKUP(C28,証券コード一覧!A:C,3,FALSE)) -> 証券コード一覧に対応する銘柄がありません
D29: =IF(ISERROR(VLOOKUP(C29,証券コード一覧!A:B,2,FALSE)),"証券コード一覧に対応する銘柄がありません",VLOOKUP(C29,証券コード一覧!A:B,2,FALSE)) -> 証券コード一覧に対応する銘柄がありません | E29: =IF(ISERROR(VLOOKUP(C29,証券コード一覧!A:C,3,FALSE)),"証券コード一覧に対応する銘柄がありません",VLOOKUP(C29,証券コード一覧!A:C,3,FALSE)) -> 証券コード一覧に対応する銘柄がありません
D30: =IF(ISERROR(VLOOKUP(C30,証券コード一覧!A:B,2,FALSE)),"証券コード一覧に対応する銘柄がありません",VLOOKUP(C30,証券コード一覧!A:B,2,FALSE)) -> 証券コード一覧に対応する銘柄がありません | E30: =IF(ISERROR(VLOOKUP(C30,証券コード一覧!A:C,3,FALSE)),"証券コード一覧に対応する銘柄がありません",VLOOKUP(C30,証券コード一覧!A:C,3,FALSE)) -> 証券コード一覧に対応する銘柄がありません
D31: =IF(ISERROR(VLOOKUP(C31,証券コード一覧!A:B,2,FALSE)),"証券コード一覧に対応する銘柄がありません",VLOOKUP(C31,証券コード一覧!A:B,2,FALSE)) -> 証券コード一覧に対応する銘柄がありません | E31: =IF(ISERROR(VLOOKUP(C31,証券コード一覧!A:C,3,FALSE)),"証券コード一覧に対応する銘柄がありません",VLOOKUP(C31,証券コード一覧!A:C,3,FALSE)) -> 証券コード一覧に対応する銘柄がありません
D32: =IF(ISERROR(VLOOKUP(C32,証券コード一覧!A:B,2,FALSE)),"証券コード一覧に対応する銘柄がありません",VLOOKUP(C32,証券コード一覧!A:B,2,FALSE)) -> 証券コード一覧に対応する銘柄がありません | E32: =IF(ISERROR(VLOOKUP(C32,証券コード一覧!A:C,3,FALSE)),"証券コード一覧に対応する銘柄がありません",VLOOKUP(C32,証券コード一覧!A:C,3,FALSE)) -> 証券コード一覧に対応する銘柄がありません
D33: =IF(ISERROR(VLOOKUP(C33,証券コード一覧!A:B,2,FALSE)),"証券コード一覧に対応する銘柄がありません",VLOOKUP(C33,証券コード一覧!A:B,2,FALSE)) -> 証券コード一覧に対応する銘柄がありません | E33: =IF(ISERROR(VLOOKUP(C33,証券コード一覧!A:C,3,FALSE)),"証券コード一覧に対応する銘柄がありません",VLOOKUP(C33,証券コード一覧!A:C,3,FALSE)) -> 証券コード一覧に対応する銘柄がありません
D34: =IF(ISERROR(VLOOKUP(C34,証券コード一覧!A:B,2,FALSE)),"証券コード一覧に対応する銘柄がありません",VLOOKUP(C34,証券コード一覧!A:B,2,FALSE)) -> 証券コード一覧に対応する銘柄がありません | E34: =IF(ISERROR(VLOOKUP(C34,証券コード一覧!A:C,3,FALSE)),"証券コード一覧に対応する銘柄がありません",VLOOKUP(C34,証券コード一覧!A:C,3,FALSE)) -> 証券コード一覧に対応する銘柄がありません
D35: =IF(ISERROR(VLOOKUP(C35,証券コード一覧!A:B,2,FALSE)),"証券コード一覧に対応する銘柄がありません",VLOOKUP(C35,証券コード一覧!A:B,2,FALSE)) -> 証券コード一覧に対応する銘柄がありません | E35: =IF(ISERROR(VLOOKUP(C35,証券コード一覧!A:C,3,FALSE)),"証券コード一覧に対応する銘柄がありません",VLOOKUP(C35,証券コード一覧!A:C,3,FALSE)) -> 証券コード一覧に対応する銘柄がありません
D36: =IF(ISERROR(VLOOKUP(C36,証券コード一覧!A:B,2,FALSE)),"証券コード一覧に対応する銘柄がありません",VLOOKUP(C36,証券コード一覧!A:B,2,FALSE)) -> 証券コード一覧に対応する銘柄がありません | E36: =IF(ISERROR(VLOOKUP(C36,証券コード一覧!A:C,3,FALSE)),"証券コード一覧に対応する銘柄がありません",VLOOKUP(C36,証券コード一覧!A:C,3,FALSE)) -> 証券コード一覧に対応する銘柄がありません
D37: =IF(ISERROR(VLOOKUP(C37,証券コード一覧!A:B,2,FALSE)),"証券コード一覧に対応する銘柄がありません",VLOOKUP(C37,証券コード一覧!A:B,2,FALSE)) -> 証券コード一覧に対応する銘柄がありません | E37: =IF(ISERROR(VLOOKUP(C37,証券コード一覧!A:C,3,FALSE)),"証券コード一覧に対応する銘柄がありません",VLOOKUP(C37,証券コード一覧!A:C,3,FALSE)) -> 証券コード一覧に対応する銘柄がありません
D38: =IF(ISERROR(VLOOKUP(C38,証券コード一覧!A:B,2,FALSE)),"証券コード一覧に対応する銘柄がありません",VLOOKUP(C38,証券コード一覧!A:B,2,FALSE)) -> 証券コード一覧に対応する銘柄がありません | E38: =IF(ISERROR(VLOOKUP(C38,証券コード一覧!A:C,3,FALSE)),"証券コード一覧に対応する銘柄がありません",VLOOKUP(C38,証券コード一覧!A:C,3,FALSE)) -> 証券コード一覧に対応する銘柄がありません
D39: =IF(ISERROR(VLOOKUP(C39,証券コード一覧!A:B,2,FALSE)),"証券コード一覧に対応する銘柄がありません",VLOOKUP(C39,証券コード一覧!A:B,2,FALSE)) -> 証券コード一覧に対応する銘柄がありません | E39: =IF(ISERROR(VLOOKUP(C39,証券コード一覧!A:C,3,FALSE)),"証券コード一覧に対応する銘柄がありません",VLOOKUP(C39,証券コード一覧!A:C,3,FALSE)) -> 証券コード一覧に対応する銘柄がありません
D40: =IF(ISERROR(VLOOKUP(C40,証券コード一覧!A:B,2,FALSE)),"証券コード一覧に対応する銘柄がありません",VLOOKUP(C40,証券コード一覧!A:B,2,FALSE)) -> 証券コード一覧に対応する銘柄がありません | E40: =IF(ISERROR(VLOOKUP(C40,証券コード一覧!A:C,3,FALSE)),"証券コード一覧に対応する銘柄がありません",VLOOKUP(C40,証券コード一覧!A:C,3,FALSE)) -> 証券コード一覧に対応する銘柄がありません
D41: =IF(ISERROR(VLOOKUP(C41,証券コード一覧!A:B,2,FALSE)),"証券コード一覧に対応する銘柄がありません",VLOOKUP(C41,証券コード一覧!A:B,2,FALSE)) -> 証券コード一覧に対応する銘柄がありません | E41: =IF(ISERROR(VLOOKUP(C41,証券コード一覧!A:C,3,FALSE)),"証券コード一覧に対応する銘柄がありません",VLOOKUP(C41,証券コード一覧!A:C,3,FALSE)) -> 証券コード一覧に対応する銘柄がありません
D42: =IF(ISERROR(VLOOKUP(C42,証券コード一覧!A:B,2,FALSE)),"証券コード一覧に対応する銘柄がありません",VLOOKUP(C42,証券コード一覧!A:B,2,FALSE)) -> 証券コード一覧に対応する銘柄がありません | E42: =IF(ISERROR(VLOOKUP(C42,証券コード一覧!A:C,3,FALSE)),"証券コード一覧に対応する銘柄がありません",VLOOKUP(C42,証券コード一覧!A:C,3,FALSE)) -> 証券コード一覧に対応する銘柄がありません
D43: =IF(ISERROR(VLOOKUP(C43,証券コード一覧!A:B,2,FALSE)),"証券コード一覧に対応する銘柄がありません",VLOOKUP(C43,証券コード一覧!A:B,2,FALSE)) -> 証券コード一覧に対応する銘柄がありません | E43: =IF(ISERROR(VLOOKUP(C43,証券コード一覧!A:C,3,FALSE)),"証券コード一覧に対応する銘柄がありません",VLOOKUP(C43,証券コード一覧!A:C,3,FALSE)) -> 証券コード一覧に対応する銘柄がありません
D44: =IF(ISERROR(VLOOKUP(C44,証券コード一覧!A:B,2,FALSE)),"証券コード一覧に対応する銘柄がありません",VLOOKUP(C44,証券コード一覧!A:B,2,FALSE)) -> 証券コード一覧に対応する銘柄がありません | E44: =IF(ISERROR(VLOOKUP(C44,証券コード一覧!A:C,3,FALSE)),"証券コード一覧に対応する銘柄がありません",VLOOKUP(C44,証券コード一覧!A:C,3,FALSE)) -> 証券コード一覧に対応する銘柄がありません
D45: =IF(ISERROR(VLOOKUP(C45,証券コード一覧!A:B,2,FALSE)),"証券コード一覧に対応する銘柄がありません",VLOOKUP(C45,証券コード一覧!A:B,2,FALSE)) -> 証券コード一覧に対応する銘柄がありません | E45: =IF(ISERROR(VLOOKUP(C45,証券コード一覧!A:C,3,FALSE)),"証券コード一覧に対応する銘柄がありません",VLOOKUP(C45,証券コード一覧!A:C,3,FALSE)) -> 証券コード一覧に対応する銘柄がありません
D46: =IF(ISERROR(VLOOKUP(C46,証券コード一覧!A:B,2,FALSE)),"証券コード一覧に対応する銘柄がありません",VLOOKUP(C46,証券コード一覧!A:B,2,FALSE)) -> 証券コード一覧に対応する銘柄がありません | E46: =IF(ISERROR(VLOOKUP(C46,証券コード一覧!A:C,3,FALSE)),"証券コード一覧に対応する銘柄がありません",VLOOKUP(C46,証券コード一覧!A:C,3,FALSE)) -> 証券コード一覧に対応する銘柄がありません
D47: =IF(ISERROR(VLOOKUP(C47,証券コード一覧!A:B,2,FALSE)),"証券コード一覧に対応する銘柄がありません",VLOOKUP(C47,証券コード一覧!A:B,2,FALSE)) -> 証券コード一覧に対応する銘柄がありません | E47: =IF(ISERROR(VLOOKUP(C47,証券コード一覧!A:C,3,FALSE)),"証券コード一覧に対応する銘柄がありません",VLOOKUP(C47,証券コード一覧!A:C,3,FALSE)) -> 証券コード一覧に対応する銘柄がありません
D48: =IF(ISERROR(VLOOKUP(C48,証券コード一覧!A:B,2,FALSE)),"証券コード一覧に対応する銘柄がありません",VLOOKUP(C48,証券コード一覧!A:B,2,FALSE)) -> 証券コード一覧に対応する銘柄がありません | E48: =IF(ISERROR(VLOOKUP(C48,証券コード一覧!A:C,3,FALSE)),"証券コード一覧に対応する銘柄がありません",VLOOKUP(C48,証券コード一覧!A:C,3,FALSE)) -> 証券コード一覧に対応する銘柄がありません
D49: =IF(ISERROR(VLOOKUP(C49,証券コード一覧!A:B,2,FALSE)),"証券コード一覧に対応する銘柄がありません",VLOOKUP(C49,証券コード一覧!A:B,2,FALSE)) -> 証券コード一覧に対応する銘柄がありません | E49: =IF(ISERROR(VLOOKUP(C49,証券コード一覧!A:C,3,FALSE)),"証券コード一覧に対応する銘柄がありません",VLOOKUP(C49,証券コード一覧!A:C,3,FALSE)) -> 証券コード一覧に対応する銘柄がありません
D50: =IF(ISERROR(VLOOKUP(C50,証券コード一覧!A:B,2,FALSE)),"証券コード一覧に対応する銘柄がありません",VLOOKUP(C50,証券コード一覧!A:B,2,FALSE)) -> 証券コード一覧に対応する銘柄がありません | E50: =IF(ISERROR(VLOOKUP(C50,証券コード一覧!A:C,3,FALSE)),"証券コード一覧に対応する銘柄がありません",VLOOKUP(C50,証券コード一覧!A:C,3,FALSE)) -> 証券コード一覧に対応する銘柄がありません
D51: =IF(ISERROR(VLOOKUP(C51,証券コード一覧!A:B,2,FALSE)),"証券コード一覧に対応する銘柄がありません",VLOOKUP(C51,証券コード一覧!A:B,2,FALSE)) -> 証券コード一覧に対応する銘柄がありません | E51: =IF(ISERROR(VLOOKUP(C51,証券コード一覧!A:C,3,FALSE)),"証券コード一覧に対応する銘柄がありません",VLOOKUP(C51,証券コード一覧!A:C,3,FALSE)) -> 証券コード一覧に対応する銘柄がありません
D52: =IF(ISERROR(VLOOKUP(C52,証券コード一覧!A:B,2,FALSE)),"証券コード一覧に対応する銘柄がありません",VLOOKUP(C52,証券コード一覧!A:B,2,FALSE)) -> 証券コード一覧に対応する銘柄がありません | E52: =IF(ISERROR(VLOOKUP(C52,証券コード一覧!A:C,3,FALSE)),"証券コード一覧に対応する銘柄がありません",VLOOKUP(C52,証券コード一覧!A:C,3,FALSE)) -> 証券コード一覧に対応する銘柄がありません
D53: =IF(ISERROR(VLOOKUP(C53,証券コード一覧!A:B,2,FALSE)),"証券コード一覧に対応する銘柄がありません",VLOOKUP(C53,証券コード一覧!A:B,2,FALSE)) -> 証券コード一覧に対応する銘柄がありません | E53: =IF(ISERROR(VLOOKUP(C53,証券コード一覧!A:C,3,FALSE)),"証券コード一覧に対応する銘柄がありません",VLOOKUP(C53,証券コード一覧!A:C,3,FALSE)) -> 証券コード一覧に対応する銘柄がありません
D54: =IF(ISERROR(VLOOKUP(C54,証券コード一覧!A:B,2,FALSE)),"証券コード一覧に対応する銘柄がありません",VLOOKUP(C54,証券コード一覧!A:B,2,FALSE)) -> 証券コード一覧に対応する銘柄がありません | E54: =IF(ISERROR(VLOOKUP(C54,証券コード一覧!A:C,3,FALSE)),"証券コード一覧に対応する銘柄がありません",VLOOKUP(C54,証券コード一覧!A:C,3,FALSE)) -> 証券コード一覧に対応する銘柄がありません
D55: =IF(ISERROR(VLOOKUP(C55,証券コード一覧!A:B,2,FALSE)),"証券コード一覧に対応する銘柄がありません",VLOOKUP(C55,証券コード一覧!A:B,2,FALSE)) -> 証券コード一覧に対応する銘柄がありません | E55: =IF(ISERROR(VLOOKUP(C55,証券コード一覧!A:C,3,FALSE)),"証券コード一覧に対応する銘柄がありません",VLOOKUP(C55,証券コード一覧!A:C,3,FALSE)) -> 証券コード一覧に対応する銘柄がありません
D56: =IF(ISERROR(VLOOKUP(C56,証券コード一覧!A:B,2,FALSE)),"証券コード一覧に対応する銘柄がありません",VLOOKUP(C56,証券コード一覧!A:B,2,FALSE)) -> 証券コード一覧に対応する銘柄がありません | E56: =IF(ISERROR(VLOOKUP(C56,証券コード一覧!A:C,3,FALSE)),"証券コード一覧に対応する銘柄がありません",VLOOKUP(C56,証券コード一覧!A:C,3,FALSE)) -> 証券コード一覧に対応する銘柄がありません
D57: =IF(ISERROR(VLOOKUP(C57,証券コード一覧!A:B,2,FALSE)),"証券コード一覧に対応する銘柄がありません",VLOOKUP(C57,証券コード一覧!A:B,2,FALSE)) -> 証券コード一覧に対応する銘柄がありません | E57: =IF(ISERROR(VLOOKUP(C57,証券コード一覧!A:C,3,FALSE)),"証券コード一覧に対応する銘柄がありません",VLOOKUP(C57,証券コード一覧!A:C,3,FALSE)) -> 証券コード一覧に対応する銘柄がありません
D58: =IF(ISERROR(VLOOKUP(C58,証券コード一覧!A:B,2,FALSE)),"証券コード一覧に対応する銘柄がありません",VLOOKUP(C58,証券コード一覧!A:B,2,FALSE)) -> 証券コード一覧に対応する銘柄がありません | E58: =IF(ISERROR(VLOOKUP(C58,証券コード一覧!A:C,3,FALSE)),"証券コード一覧に対応する銘柄がありません",VLOOKUP(C58,証券コード一覧!A:C,3,FALSE)) -> 証券コード一覧に対応する銘柄がありません
D59: =IF(ISERROR(VLOOKUP(C59,証券コード一覧!A:B,2,FALSE)),"証券コード一覧に対応する銘柄がありません",VLOOKUP(C59,証券コード一覧!A:B,2,FALSE)) -> 証券コード一覧に対応する銘柄がありません | E59: =IF(ISERROR(VLOOKUP(C59,証券コード一覧!A:C,3,FALSE)),"証券コード一覧に対応する銘柄がありません",VLOOKUP(C59,証券コード一覧!A:C,3,FALSE)) -> 証券コード一覧に対応する銘柄がありません
D60: =IF(ISERROR(VLOOKUP(C60,証券コード一覧!A:B,2,FALSE)),"証券コード一覧に対応する銘柄がありません",VLOOKUP(C60,証券コード一覧!A:B,2,FALSE)) -> 証券コード一覧に対応する銘柄がありません | E60: =IF(ISERROR(VLOOKUP(C60,証券コード一覧!A:C,3,FALSE)),"証券コード一覧に対応する銘柄がありません",VLOOKUP(C60,証券コード一覧!A:C,3,FALSE)) -> 証券コード一覧に対応する銘柄がありません
D61: =IF(ISERROR(VLOOKUP(C61,証券コード一覧!A:B,2,FALSE)),"証券コード一覧に対応する銘柄がありません",VLOOKUP(C61,証券コード一覧!A:B,2,FALSE)) -> 証券コード一覧に対応する銘柄がありません | E61: =IF(ISERROR(VLOOKUP(C61,証券コード一覧!A:C,3,FALSE)),"証券コード一覧に対応する銘柄がありません",VLOOKUP(C61,証券コード一覧!A:C,3,FALSE)) -> 証券コード一覧に対応する銘柄がありません
D62: =IF(ISERROR(VLOOKUP(C62,証券コード一覧!A:B,2,FALSE)),"証券コード一覧に対応する銘柄がありません",VLOOKUP(C62,証券コード一覧!A:B,2,FALSE)) -> 証券コード一覧に対応する銘柄がありません | E62: =IF(ISERROR(VLOOKUP(C62,証券コード一覧!A:C,3,FALSE)),"証券コード一覧に対応する銘柄がありません",VLOOKUP(C62,証券コード一覧!A:C,3,FALSE)) -> 証券コード一覧に対応する銘柄がありません
D63: =IF(ISERROR(VLOOKUP(C63,証券コード一覧!A:B,2,FALSE)),"証券コード一覧に対応する銘柄がありません",VLOOKUP(C63,証券コード一覧!A:B,2,FALSE)) -> 証券コード一覧に対応する銘柄がありません | E63: =IF(ISERROR(VLOOKUP(C63,証券コード一覧!A:C,3,FALSE)),"証券コード一覧に対応する銘柄がありません",VLOOKUP(C63,証券コード一覧!A:C,3,FALSE)) -> 証券コード一覧に対応する銘柄がありません
D64: =IF(ISERROR(VLOOKUP(C64,証券コード一覧!A:B,2,FALSE)),"証券コード一覧に対応する銘柄がありません",VLOOKUP(C64,証券コード一覧!A:B,2,FALSE)) -> 証券コード一覧に対応する銘柄がありません | E64: =IF(ISERROR(VLOOKUP(C64,証券コード一覧!A:C,3,FALSE)),"証券コード一覧に対応する銘柄がありません",VLOOKUP(C64,証券コード一覧!A:C,3,FALSE)) -> 証券コード一覧に対応する銘柄がありません
D65: =IF(ISERROR(VLOOKUP(C65,証券コード一覧!A:B,2,FALSE)),"証券コード一覧に対応する銘柄がありません",VLOOKUP(C65,証券コード一覧!A:B,2,FALSE)) -> 証券コード一覧に対応する銘柄がありません | E65: =IF(ISERROR(VLOOKUP(C65,証券コード一覧!A:C,3,FALSE)),"証券コード一覧に対応する銘柄がありません",VLOOKUP(C65,証券コード一覧!A:C,3,FALSE)) -> 証券コード一覧に対応する銘柄がありません
D66: =IF(ISERROR(VLOOKUP(C66,証券コード一覧!A:B,2,FALSE)),"証券コード一覧に対応する銘柄がありません",VLOOKUP(C66,証券コード一覧!A:B,2,FALSE)) -> 証券コード一覧に対応する銘柄がありません | E66: =IF(ISERROR(VLOOKUP(C66,証券コード一覧!A:C,3,FALSE)),"証券コード一覧に対応する銘柄がありません",VLOOKUP(C66,証券コード一覧!A:C,3,FALSE)) -> 証券コード一覧に対応する銘柄がありません
D67: =IF(ISERROR(VLOOKUP(C67,証券コード一覧!A:B,2,FALSE)),"証券コード一覧に対応する銘柄がありません",VLOOKUP(C67,証券コード一覧!A:B,2,FALSE)) -> 証券コード一覧に対応する銘柄がありません | E67: =IF(ISERROR(VLOOKUP(C67,証券コード一覧!A:C,3,FALSE)),"証券コード一覧に対応する銘柄がありません",VLOOKUP(C67,証券コード一覧!A:C,3,FALSE)) -> 証券コード一覧に対応する銘柄がありません
D68: =IF(ISERROR(VLOOKUP(C68,証券コード一覧!A:B,2,FALSE)),"証券コード一覧に対応する銘柄がありません",VLOOKUP(C68,証券コード一覧!A:B,2,FALSE)) -> 証券コード一覧に対応する銘柄がありません | E68: =IF(ISERROR(VLOOKUP(C68,証券コード一覧!A:C,3,FALSE)),"証券コード一覧に対応する銘柄がありません",VLOOKUP(C68,証券コード一覧!A:C,3,FALSE)) -> 証券コード一覧に対応する銘柄がありません
D69: =IF(ISERROR(VLOOKUP(C69,証券コード一覧!A:B,2,FALSE)),"証券コード一覧に対応する銘柄がありません",VLOOKUP(C69,証券コード一覧!A:B,2,FALSE)) -> 証券コード一覧に対応する銘柄がありません | E69: =IF(ISERROR(VLOOKUP(C69,証券コード一覧!A:C,3,FALSE)),"証券コード一覧に対応する銘柄がありません",VLOOKUP(C69,証券コード一覧!A:C,3,FALSE)) -> 証券コード一覧に対応する銘柄がありません
D70: =IF(ISERROR(VLOOKUP(C70,証券コード一覧!A:B,2,FALSE)),"証券コード一覧に対応する銘柄がありません",VLOOKUP(C70,証券コード一覧!A:B,2,FALSE)) -> 証券コード一覧に対応する銘柄がありません | E70: =IF(ISERROR(VLOOKUP(C70,証券コード一覧!A:C,3,FALSE)),"証券コード一覧に対応する銘柄がありません",VLOOKUP(C70,証券コード一覧!A:C,3,FALSE)) -> 証券コード一覧に対応する銘柄がありません
D71: =IF(ISERROR(VLOOKUP(C71,証券コード一覧!A:B,2,FALSE)),"証券コード一覧に対応する銘柄がありません",VLOOKUP(C71,証券コード一覧!A:B,2,FALSE)) -> 証券コード一覧に対応する銘柄がありません | E71: =IF(ISERROR(VLOOKUP(C71,証券コード一覧!A:C,3,FALSE)),"証券コード一覧に対応する銘柄がありません",VLOOKUP(C71,証券コード一覧!A:C,3,FALSE)) -> 証券コード一覧に対応する銘柄がありません
D72: =IF(ISERROR(VLOOKUP(C72,証券コード一覧!A:B,2,FALSE)),"証券コード一覧に対応する銘柄がありません",VLOOKUP(C72,証券コード一覧!A:B,2,FALSE)) -> 証券コード一覧に対応する銘柄がありません | E72: =IF(ISERROR(VLOOKUP(C72,証券コード一覧!A:C,3,FALSE)),"証券コード一覧に対応する銘柄がありません",VLOOKUP(C72,証券コード一覧!A:C,3,FALSE)) -> 証券コード一覧に対応する銘柄がありません
D73: =IF(ISERROR(VLOOKUP(C73,証券コード一覧!A:B,2,FALSE)),"証券コード一覧に対応する銘柄がありません",VLOOKUP(C73,証券コード一覧!A:B,2,FALSE)) -> 証券コード一覧に対応する銘柄がありません | E73: =IF(ISERROR(VLOOKUP(C73,証券コード一覧!A:C,3,FALSE)),"証券コード一覧に対応する銘柄がありません",VLOOKUP(C73,証券コード一覧!A:C,3,FALSE)) -> 証券コード一覧に対応する銘柄がありません
D74: =IF(ISERROR(VLOOKUP(C74,証券コード一覧!A:B,2,FALSE)),"証券コード一覧に対応する銘柄がありません",VLOOKUP(C74,証券コード一覧!A:B,2,FALSE)) -> 証券コード一覧に対応する銘柄がありません | E74: =IF(ISERROR(VLOOKUP(C74,証券コード一覧!A:C,3,FALSE)),"証券コード一覧に対応する銘柄がありません",VLOOKUP(C74,証券コード一覧!A:C,3,FALSE)) -> 証券コード一覧に対応する銘柄がありません
D75: =IF(ISERROR(VLOOKUP(C75,証券コード一覧!A:B,2,FALSE)),"証券コード一覧に対応する銘柄がありません",VLOOKUP(C75,証券コード一覧!A:B,2,FALSE)) -> 証券コード一覧に対応する銘柄がありません | E75: =IF(ISERROR(VLOOKUP(C75,証券コード一覧!A:C,3,FALSE)),"証券コード一覧に対応する銘柄がありません",VLOOKUP(C75,証券コード一覧!A:C,3,FALSE)) -> 証券コード一覧に対応する銘柄がありません
D76: =IF(ISERROR(VLOOKUP(C76,証券コード一覧!A:B,2,FALSE)),"証券コード一覧に対応する銘柄がありません",VLOOKUP(C76,証券コード一覧!A:B,2,FALSE)) -> 証券コード一覧に対応する銘柄がありません | E76: =IF(ISERROR(VLOOKUP(C76,証券コード一覧!A:C,3,FALSE)),"証券コード一覧に対応する銘柄がありません",VLOOKUP(C76,証券コード一覧!A:C,3,FALSE)) -> 証券コード一覧に対応する銘柄がありません
D77: =IF(ISERROR(VLOOKUP(C77,証券コード一覧!A:B,2,FALSE)),"証券コード一覧に対応する銘柄がありません",VLOOKUP(C77,証券コード一覧!A:B,2,FALSE)) -> 証券コード一覧に対応する銘柄がありません | E77: =IF(ISERROR(VLOOKUP(C77,証券コード一覧!A:C,3,FALSE)),"証券コード一覧に対応する銘柄がありません",VLOOKUP(C77,証券コード一覧!A:C,3,FALSE)) -> 証券コード一覧に対応する銘柄がありません
D78: =IF(ISERROR(VLOOKUP(C78,証券コード一覧!A:B,2,FALSE)),"証券コード一覧に対応する銘柄がありません",VLOOKUP(C78,証券コード一覧!A:B,2,FALSE)) -> 証券コード一覧に対応する銘柄がありません | E78: =IF(ISERROR(VLOOKUP(C78,証券コード一覧!A:C,3,FALSE)),"証券コード一覧に対応する銘柄がありません",VLOOKUP(C78,証券コード一覧!A:C,3,FALSE)) -> 証券コード一覧に対応する銘柄がありません
D79: =IF(ISERROR(VLOOKUP(C79,証券コード一覧!A:B,2,FALSE)),"証券コード一覧に対応する銘柄がありません",VLOOKUP(C79,証券コード一覧!A:B,2,FALSE)) -> 証券コード一覧に対応する銘柄がありません | E79: =IF(ISERROR(VLOOKUP(C79,証券コード一覧!A:C,3,FALSE)),"証券コード一覧に対応する銘柄がありません",VLOOKUP(C79,証券コード一覧!A:C,3,FALSE)) -> 証券コード一覧に対応する銘柄がありません
D80: =IF(ISERROR(VLOOKUP(C80,証券コード一覧!A:B,2,FALSE)),"証券コード一覧に対応する銘柄がありません",VLOOKUP(C80,証券コード一覧!A:B,2,FALSE)) -> 証券コード一覧に対応する銘柄がありません | E80: =IF(ISERROR(VLOOKUP(C80,証券コード一覧!A:C,3,FALSE)),"証券コード一覧に対応する銘柄がありません",VLOOKUP(C80,証券コード一覧!A:C,3,FALSE)) -> 証券コード一覧に対応する銘柄がありません
D81: =IF(ISERROR(VLOOKUP(C81,証券コード一覧!A:B,2,FALSE)),"証券コード一覧に対応する銘柄がありません",VLOOKUP(C81,証券コード一覧!A:B,2,FALSE)) -> 証券コード一覧に対応する銘柄がありません | E81: =IF(ISERROR(VLOOKUP(C81,証券コード一覧!A:C,3,FALSE)),"証券コード一覧に対応する銘柄がありません",VLOOKUP(C81,証券コード一覧!A:C,3,FALSE)) -> 証券コード一覧に対応する銘柄がありません
D82: =IF(ISERROR(VLOOKUP(C82,証券コード一覧!A:B,2,FALSE)),"証券コード一覧に対応する銘柄がありません",VLOOKUP(C82,証券コード一覧!A:B,2,FALSE)) -> 証券コード一覧に対応する銘柄がありません | E82: =IF(ISERROR(VLOOKUP(C82,証券コード一覧!A:C,3,FALSE)),"証券コード一覧に対応する銘柄がありません",VLOOKUP(C82,証券コード一覧!A:C,3,FALSE)) -> 証券コード一覧に対応する銘柄がありません
D83: =IF(ISERROR(VLOOKUP(C83,証券コード一覧!A:B,2,FALSE)),"証券コード一覧に対応する銘柄がありません",VLOOKUP(C83,証券コード一覧!A:B,2,FALSE)) -> 証券コード一覧に対応する銘柄がありません | E83: =IF(ISERROR(VLOOKUP(C83,証券コード一覧!A:C,3,FALSE)),"証券コード一覧に対応する銘柄がありません",VLOOKUP(C83,証券コード一覧!A:C,3,FALSE)) -> 証券コード一覧に対応する銘柄がありません
D84: =IF(ISERROR(VLOOKUP(C84,証券コード一覧!A:B,2,FALSE)),"証券コード一覧に対応する銘柄がありません",VLOOKUP(C84,証券コード一覧!A:B,2,FALSE)) -> 証券コード一覧に対応する銘柄がありません | E84: =IF(ISERROR(VLOOKUP(C84,証券コード一覧!A:C,3,FALSE)),"証券コード一覧に対応する銘柄がありません",VLOOKUP(C84,証券コード一覧!A:C,3,FALSE)) -> 証券コード一覧に対応する銘柄がありません
D85: =IF(ISERROR(VLOOKUP(C85,証券コード一覧!A:B,2,FALSE)),"証券コード一覧に対応する銘柄がありません",VLOOKUP(C85,証券コード一覧!A:B,2,FALSE)) -> 証券コード一覧に対応する銘柄がありません | E85: =IF(ISERROR(VLOOKUP(C85,証券コード一覧!A:C,3,FALSE)),"証券コード一覧に対応する銘柄がありません",VLOOKUP(C85,証券コード一覧!A:C,3,FALSE)) -> 証券コード一覧に対応する銘柄がありません
D86: =IF(ISERROR(VLOOKUP(C86,証券コード一覧!A:B,2,FALSE)),"証券コード一覧に対応する銘柄がありません",VLOOKUP(C86,証券コード一覧!A:B,2,FALSE)) -> 証券コード一覧に対応する銘柄がありません | E86: =IF(ISERROR(VLOOKUP(C86,証券コード一覧!A:C,3,FALSE)),"証券コード一覧に対応する銘柄がありません",VLOOKUP(C86,証券コード一覧!A:C,3,FALSE)) -> 証券コード一覧に対応する銘柄がありません
D87: =IF(ISERROR(VLOOKUP(C87,証券コード一覧!A:B,2,FALSE)),"証券コード一覧に対応する銘柄がありません",VLOOKUP(C87,証券コード一覧!A:B,2,FALSE)) -> 証券コード一覧に対応する銘柄がありません | E87: =IF(ISERROR(VLOOKUP(C87,証券コード一覧!A:C,3,FALSE)),"証券コード一覧に対応する銘柄がありません",VLOOKUP(C87,証券コード一覧!A:C,3,FALSE)) -> 証券コード一覧に対応する銘柄がありません
D88: =IF(ISERROR(VLOOKUP(C88,証券コード一覧!A:B,2,FALSE)),"証券コード一覧に対応する銘柄がありません",VLOOKUP(C88,証券コード一覧!A:B,2,FALSE)) -> 証券コード一覧に対応する銘柄がありません | E88: =IF(ISERROR(VLOOKUP(C88,証券コード一覧!A:C,3,FALSE)),"証券コード一覧に対応する銘柄がありません",VLOOKUP(C88,証券コード一覧!A:C,3,FALSE)) -> 証券コード一覧に対応する銘柄がありません
D89: =IF(ISERROR(VLOOKUP(C89,証券コード一覧!A:B,2,FALSE)),"証券コード一覧に対応する銘柄がありません",VLOOKUP(C89,証券コード一覧!A:B,2,FALSE)) -> 証券コード一覧に対応する銘柄がありません | E89: =IF(ISERROR(VLOOKUP(C89,証券コード一覧!A:C,3,FALSE)),"証券コード一覧に対応する銘柄がありません",VLOOKUP(C89,証券コード一覧!A:C,3,FALSE)) -> 証券コード一覧に対応する銘柄がありません
D90: =IF(ISERROR(VLOOKUP(C90,証券コード一覧!A:B,2,FALSE)),"証券コード一覧に対応する銘柄がありません",VLOOKUP(C90,証券コード一覧!A:B,2,FALSE)) -> 証券コード一覧に対応する銘柄がありません | E90: =IF(ISERROR(VLOOKUP(C90,証券コード一覧!A:C,3,FALSE)),"証券コード一覧に対応する銘柄がありません",VLOOKUP(C90,証券コード一覧!A:C,3,FALSE)) -> 証券コード一覧に対応する銘柄がありません
D91: =IF(ISERROR(VLOOKUP(C91,証券コード一覧!A:B,2,FALSE)),"証券コード一覧に対応する銘柄がありません",VLOOKUP(C91,証券コード一覧!A:B,2,FALSE)) -> 証券コード一覧に対応する銘柄がありません | E91: =IF(ISERROR(VLOOKUP(C91,証券コード一覧!A:C,3,FALSE)),"証券コード一覧に対応する銘柄がありません",VLOOKUP(C91,証券コード一覧!A:C,3,FALSE)) -> 証券コード一覧に対応する銘柄がありません
D92: =IF(ISERROR(VLOOKUP(C92,証券コード一覧!A:B,2,FALSE)),"証券コード一覧に対応する銘柄がありません",VLOOKUP(C92,証券コード一覧!A:B,2,FALSE)) -> 証券コード一覧に対応する銘柄がありません | E92: =IF(ISERROR(VLOOKUP(C92,証券コード一覧!A:C,3,FALSE)),"証券コード一覧に対応する銘柄がありません",VLOOKUP(C92,証券コード一覧!A:C,3,FALSE)) -> 証券コード一覧に対応する銘柄がありません
D93: =IF(ISERROR(VLOOKUP(C93,証券コード一覧!A:B,2,FALSE)),"証券コード一覧に対応する銘柄がありません",VLOOKUP(C93,証券コード一覧!A:B,2,FALSE)) -> 証券コード一覧に対応する銘柄がありません | E93: =IF(ISERROR(VLOOKUP(C93,証券コード一覧!A:C,3,FALSE)),"証券コード一覧に対応する銘柄がありません",VLOOKUP(C93,証券コード一覧!A:C,3,FALSE)) -> 証券コード一覧に対応する銘柄がありません
D94: =IF(ISERROR(VLOOKUP(C94,証券コード一覧!A:B,2,FALSE)),"証券コード一覧に対応する銘柄がありません",VLOOKUP(C94,証券コード一覧!A:B,2,FALSE)) -> 証券コード一覧に対応する銘柄がありません | E94: =IF(ISERROR(VLOOKUP(C94,証券コード一覧!A:C,3,FALSE)),"証券コード一覧に対応する銘柄がありません",VLOOKUP(C94,証券コード一覧!A:C,3,FALSE)) -> 証券コード一覧に対応する銘柄がありません
D95: =IF(ISERROR(VLOOKUP(C95,証券コード一覧!A:B,2,FALSE)),"証券コード一覧に対応する銘柄がありません",VLOOKUP(C95,証券コード一覧!A:B,2,FALSE)) -> 証券コード一覧に対応する銘柄がありません | E95: =IF(ISERROR(VLOOKUP(C95,証券コード一覧!A:C,3,FALSE)),"証券コード一覧に対応する銘柄がありません",VLOOKUP(C95,証券コード一覧!A:C,3,FALSE)) -> 証券コード一覧に対応する銘柄がありません
D96: =IF(ISERROR(VLOOKUP(C96,証券コード一覧!A:B,2,FALSE)),"証券コード一覧に対応する銘柄がありません",VLOOKUP(C96,証券コード一覧!A:B,2,FALSE)) -> 証券コード一覧に対応する銘柄がありません | E96: =IF(ISERROR(VLOOKUP(C96,証券コード一覧!A:C,3,FALSE)),"証券コード一覧に対応する銘柄がありません",VLOOKUP(C96,証券コード一覧!A:C,3,FALSE)) -> 証券コード一覧に対応する銘柄がありません
D97: =IF(ISERROR(VLOOKUP(C97,証券コード一覧!A:B,2,FALSE)),"証券コード一覧に対応する銘柄がありません",VLOOKUP(C97,証券コード一覧!A:B,2,FALSE)) -> 証券コード一覧に対応する銘柄がありません | E97: =IF(ISERROR(VLOOKUP(C97,証券コード一覧!A:C,3,FALSE)),"証券コード一覧に対応する銘柄がありません",VLOOKUP(C97,証券コード一覧!A:C,3,FALSE)) -> 証券コード一覧に対応する銘柄がありません
D98: =IF(ISERROR(VLOOKUP(C98,証券コード一覧!A:B,2,FALSE)),"証券コード一覧に対応する銘柄がありません",VLOOKUP(C98,証券コード一覧!A:B,2,FALSE)) -> 証券コード一覧に対応する銘柄がありません | E98: =IF(ISERROR(VLOOKUP(C98,証券コード一覧!A:C,3,FALSE)),"証券コード一覧に対応する銘柄がありません",VLOOKUP(C98,証券コード一覧!A:C,3,FALSE)) -> 証券コード一覧に対応する銘柄がありません
D99: =IF(ISERROR(VLOOKUP(C99,証券コード一覧!A:B,2,FALSE)),"証券コード一覧に対応する銘柄がありません",VLOOKUP(C99,証券コード一覧!A:B,2,FALSE)) -> 証券コード一覧に対応する銘柄がありません | E99: =IF(ISERROR(VLOOKUP(C99,証券コード一覧!A:C,3,FALSE)),"証券コード一覧に対応する銘柄がありません",VLOOKUP(C99,証券コード一覧!A:C,3,FALSE)) -> 証券コード一覧に対応する銘柄がありません
D100: =IF(ISERROR(VLOOKUP(C100,証券コード一覧!A:B,2,FALSE)),"証券コード一覧に対応する銘柄がありません",VLOOKUP(C100,証券コード一覧!A:B,2,FALSE)) -> 証券コード一覧に対応する銘柄がありません | E100: =IF(ISERROR(VLOOKUP(C100,証券コード一覧!A:C,3,FALSE)),"証券コード一覧に対応する銘柄がありません",VLOOKUP(C100,証券コード一覧!A:C,3,FALSE)) -> 証券コード一覧に対応する銘柄がありません
D101: =IF(ISERROR(VLOOKUP(C101,証券コード一覧!A:B,2,FALSE)),"証券コード一覧に対応する銘柄がありません",VLOOKUP(C101,証券コード一覧!A:B,2,FALSE)) -> 証券コード一覧に対応する銘柄がありません | E101: =IF(ISERROR(VLOOKUP(C101,証券コード一覧!A:C,3,FALSE)),"証券コード一覧に対応する銘柄がありません",VLOOKUP(C101,証券コード一覧!A:C,3,FALSE)) -> 証券コード一覧に対応する銘柄がありません
D102: =IF(ISERROR(VLOOKUP(C102,証券コード一覧!A:B,2,FALSE)),"証券コード一覧に対応する銘柄がありません",VLOOKUP(C102,証券コード一覧!A:B,2,FALSE)) -> 証券コード一覧に対応する銘柄がありません | E102: =IF(ISERROR(VLOOKUP(C102,証券コード一覧!A:C,3,FALSE)),"証券コード一覧に対応する銘柄がありません",VLOOKUP(C102,証券コード一覧!A:C,3,FALSE)) -> 証券コード一覧に対応する銘柄がありません
D103: =IF(ISERROR(VLOOKUP(C103,証券コード一覧!A:B,2,FALSE)),"証券コード一覧に対応する銘柄がありません",VLOOKUP(C103,証券コード一覧!A:B,2,FALSE)) -> 証券コード一覧に対応する銘柄がありません | E103: =IF(ISERROR(VLOOKUP(C103,証券コード一覧!A:C,3,FALSE)),"証券コード一覧に対応する銘柄がありません",VLOOKUP(C103,証券コード一覧!A:C,3,FALSE)) -> 証券コード一覧に対応する銘柄がありません
D104: =IF(ISERROR(VLOOKUP(C104,証券コード一覧!A:B,2,FALSE)),"証券コード一覧に対応する銘柄がありません",VLOOKUP(C104,証券コード一覧!A:B,2,FALSE)) -> 証券コード一覧に対応する銘柄がありません | E104: =IF(ISERROR(VLOOKUP(C104,証券コード一覧!A:C,3,FALSE)),"証券コード一覧に対応する銘柄がありません",VLOOKUP(C104,証券コード一覧!A:C,3,FALSE)) -> 証券コード一覧に対応する銘柄がありません
D105: =IF(ISERROR(VLOOKUP(C105,証券コード一覧!A:B,2,FALSE)),"証券コード一覧に対応する銘柄がありません",VLOOKUP(C105,証券コード一覧!A:B,2,FALSE)) -> 証券コード一覧に対応する銘柄がありません | E105: =IF(ISERROR(VLOOKUP(C105,証券コード一覧!A:C,3,FALSE)),"証券コード一覧に対応する銘柄がありません",VLOOKUP(C105,証券コード一覧!A:C,3,FALSE)) -> 証券コード一覧に対応する銘柄がありません
D106: =IF(ISERROR(VLOOKUP(C106,証券コード一覧!A:B,2,FALSE)),"証券コード一覧に対応する銘柄がありません",VLOOKUP(C106,証券コード一覧!A:B,2,FALSE)) -> 証券コード一覧に対応する銘柄がありません | E106: =IF(ISERROR(VLOOKUP(C106,証券コード一覧!A:C,3,FALSE)),"証券コード一覧に対応する銘柄がありません",VLOOKUP(C106,証券コード一覧!A:C,3,FALSE)) -> 証券コード一覧に対応する銘柄がありません
D107: =IF(ISERROR(VLOOKUP(C107,証券コード一覧!A:B,2,FALSE)),"証券コード一覧に対応する銘柄がありません",VLOOKUP(C107,証券コード一覧!A:B,2,FALSE)) -> 証券コード一覧に対応する銘柄がありません | E107: =IF(ISERROR(VLOOKUP(C107,証券コード一覧!A:C,3,FALSE)),"証券コード一覧に対応する銘柄がありません",VLOOKUP(C107,証券コード一覧!A:C,3,FALSE)) -> 証券コード一覧に対応する銘柄がありません
D108: =IF(ISERROR(VLOOKUP(C108,証券コード一覧!A:B,2,FALSE)),"証券コード一覧に対応する銘柄がありません",VLOOKUP(C108,証券コード一覧!A:B,2,FALSE)) -> 証券コード一覧に対応する銘柄がありません | E108: =IF(ISERROR(VLOOKUP(C108,証券コード一覧!A:C,3,FALSE)),"証券コード一覧に対応する銘柄がありません",VLOOKUP(C108,証券コード一覧!A:C,3,FALSE)) -> 証券コード一覧に対応する銘柄がありません
D109: =IF(ISERROR(VLOOKUP(C109,証券コード一覧!A:B,2,FALSE)),"証券コード一覧に対応する銘柄がありません",VLOOKUP(C109,証券コード一覧!A:B,2,FALSE)) -> 証券コード一覧に対応する銘柄がありません | E109: =IF(ISERROR(VLOOKUP(C109,証券コード一覧!A:C,3,FALSE)),"証券コード一覧に対応する銘柄がありません",VLOOKUP(C109,証券コード一覧!A:C,3,FALSE)) -> 証券コード一覧に対応する銘柄がありません
D110: =IF(ISERROR(VLOOKUP(C110,証券コード一覧!A:B,2,FALSE)),"証券コード一覧に対応する銘柄がありません",VLOOKUP(C110,証券コード一覧!A:B,2,FALSE)) -> 証券コード一覧に対応する銘柄がありません | E110: =IF(ISERROR(VLOOKUP(C110,証券コード一覧!A:C,3,FALSE)),"証券コード一覧に対応する銘柄がありません",VLOOKUP(C110,証券コード一覧!A:C,3,FALSE)) -> 証券コード一覧に対応する銘柄がありません
D111: =IF(ISERROR(VLOOKUP(C111,証券コード一覧!A:B,2,FALSE)),"証券コード一覧に対応する銘柄がありません",VLOOKUP(C111,証券コード一覧!A:B,2,FALSE)) -> 証券コード一覧に対応する銘柄がありません | E111: =IF(ISERROR(VLOOKUP(C111,証券コード一覧!A:C,3,FALSE)),"証券コード一覧に対応する銘柄がありません",VLOOKUP(C111,証券コード一覧!A:C,3,FALSE)) -> 証券コード一覧に対応する銘柄がありません
D112: =IF(ISERROR(VLOOKUP(C112,証券コード一覧!A:B,2,FALSE)),"証券コード一覧に対応する銘柄がありません",VLOOKUP(C112,証券コード一覧!A:B,2,FALSE)) -> 証券コード一覧に対応する銘柄がありません | E112: =IF(ISERROR(VLOOKUP(C112,証券コード一覧!A:C,3,FALSE)),"証券コード一覧に対応する銘柄がありません",VLOOKUP(C112,証券コード一覧!A:C,3,FALSE)) -> 証券コード一覧に対応する銘柄がありません
D113: =IF(ISERROR(VLOOKUP(C113,証券コード一覧!A:B,2,FALSE)),"証券コード一覧に対応する銘柄がありません",VLOOKUP(C113,証券コード一覧!A:B,2,FALSE)) -> 証券コード一覧に対応する銘柄がありません | E113: =IF(ISERROR(VLOOKUP(C113,証券コード一覧!A:C,3,FALSE)),"証券コード一覧に対応する銘柄がありません",VLOOKUP(C113,証券コード一覧!A:C,3,FALSE)) -> 証券コード一覧に対応する銘柄がありません

Sheet 8053
A1: 証券コード | B1: 会社名
A2: 8053 | B2: 住友商事
A3: 市場 | B3: 市場第一部（内国株） | D3: 日付 | E3: 始値 | F3: 高値 | G3: 安値 | H3: 終値 | I3: 出来高 | J3: 調整後終値*
A4: 相続日 | B4: 2018-03-22 | D4: 2018-01-04 | E4: 1935.5 | F4: 1988.5 | G4: 1931.5 | H4: 1988.5 | I4: 6014000 | J4: 1988.5
A5: 相続日の終値 | B5: 1785 | D5: 2018-01-05 | E5: 1993 | F5: 2006 | G5: 1980 | H5: 1992.5 | I5: 4287600 | J5: 1992.5
A6: 相続当月の終値の平均 | B6: 1785.595238 | D6: 2018-01-09 | E6: 2016 | F6: 2043.5 | G6: 1997.5 | H6: 2005.5 | I6: 5534600 | J6: 2005.5
A7: 相続前月の終値の平均 | B7: 1845.236842 | D7: 2018-01-10 | E7: 2001 | F7: 2013 | G7: 1998 | H7: 2004 | I7: 3758900 | J7: 2004
A8: 相続前々月の終値の平均 | B8: 1967.973684 | D8: 2018-01-11 | E8: 1995 | F8: 2019.5 | G8: 1992.5 | H8: 2019.5 | I8: 3454700 | J8: 2019.5
A9: ４つのうちの最低額 | B9: =ROUNDDOWN(MIN(B5:B8),0) -> 1785 | D9: 2018-01-12 | E9: 2018.5 | F9: 2020 | G9: 1988 | H9: 2000 | I9: 4484900 | J9: 2000
D10: 2018-01-15 | E10: 2020 | F10: 2033 | G10: 2010.5 | H10: 2021 | I10: 2707200 | J10: 2021
D11: 2018-01-16 | E11: 2019.5 | F11: 2019.5 | G11: 1994 | H11: 1995.5 | I11: 3052100 | J11: 1995.5
D12: 2018-01-17 | E12: 1984 | F12: 1988.5 | G12: 1968 | H12: 1972 | I12: 3421200 | J12: 1972
D13: 2018-01-18 | E13: 1987.5 | F13: 1987.5 | G13: 1934.5 | H13: 1940 | I13: 5013500 | J13: 1940
D14: 2018-01-19 | E14: 1949 | F14: 1974 | G14: 1938 | H14: 1973 | I14: 3624400 | J14: 1973
D15: 2018-01-22 | E15: 1965 | F15: 1968 | G15: 1931 | H15: 1941 | I15: 3335600 | J15: 1941
D16: 2018-01-23 | E16: 1946 | F16: 1958.5 | G16: 1939.5 | H16: 1947 | I16: 2598100 | J16: 1947
D17: 2018-01-24 | E17: 1935 | F17: 1954 | G17: 1934 | H17: 1939.5 | I17: 3198100 | J17: 1939.5
D18: 2018-01-25 | E18: 1930 | F18: 1966.5 | G18: 1930 | H18: 1963 | I18: 4114000 | J18: 1963
D19: 2018-01-26 | E19: 1956 | F19: 1958.5 | G19: 1925.5 | H19: 1928 | I19: 4652100 | J19: 1928
D20: 2018-01-29 | E20: 1920.5 | F20: 1956.5 | G20: 1912.5 | H20: 1953 | I20: 3372500 | J20: 1953
D21: 2018-01-30 | E21: 1944.5 | F21: 1952 | G21: 1923 | H21: 1929.5 | I21: 4060600 | J21: 1929.5
D22: 2018-01-31 | E22: 1908 | F22: 1921.5 | G22: 1878 | H22: 1879 | I22: 6104600 | J22: 1879
D23: 2018-02-01 | E23: 1899 | F23: 1932.5 | G23: 1894 | H23: 1929.5 | I23: 3812100 | J23: 1929.5
D24: 2018-02-02 | E24: 1921 | F24: 1939.5 | G24: 1904.5 | H24: 1935.5 | I24: 3654700 | J24: 1935.5
D25: 2018-02-05 | E25: 1880.5 | F25: 1911 | G25: 1878.5 | H25: 1905 | I25: 4728400 | J25: 1905
D26: 2018-02-06 | E26: 1831 | F26: 1838 | G26: 1778.5 | H26: 1818 | I26: 8161000 | J26: 1818
D27: 2018-02-07 | E27: 1874.5 | F27: 1897 | G27: 1801.5 | H27: 1802.5 | I27: 6947800 | J27: 1802.5
D28: 2018-02-08 | E28: 1805 | F28: 1882.5 | G28: 1804.5 | H28: 1808.5 | I28: 9315200 | J28: 1808.5
D29: 2018-02-09 | E29: 1753 | F29: 1830 | G29: 1747 | H29: 1820 | I29: 8107700 | J29: 1820
D30: 2018-02-13 | E30: 1830 | F30: 1836 | G30: 1793.5 | H30: 1801.5 | I30: 6157800 | J30: 1801.5
D31: 2018-02-14 | E31: 1788 | F31: 1803 | G31: 1768 | H31: 1776.5 | I31: 4344700 | J31: 1776.5
D32: 2018-02-15 | E32: 1788.5 | F32: 1797 | G32: 1772 | H32: 1776 | I32: 3266300 | J32: 1776
D33: 2018-02-16 | E33: 1788 | F33: 1795 | G33: 1767.5 | H33: 1770 | I33: 5579500 | J33: 1770
D34: 2018-02-19 | E34: 1792 | F34: 1851 | G34: 1785 | H34: 1847 | I34: 4124900 | J34: 1847
D35: 2018-02-20 | E35: 1826.5 | F35: 1828.5 | G35: 1805 | H35: 1822 | I35: 3311400 | J35: 1822
D36: 2018-02-21 | E36: 1829.5 | F36: 1841 | G36: 1818.5 | H36: 1828.5 | I36: 4418600 | J36: 1828.5
D37: 2018-02-22 | E37: 1818 | F37: 1835 | G37: 1812 | H37: 1831.5 | I37: 4264000 | J37: 1831.5
D38: 2018-02-23 | E38: 1848 | F38: 1879 | G38: 1837.5 | H38: 1876.5 | I38: 4659300 | J38: 1876.5
D39: 2018-02-26 | E39: 1902 | F39: 1910.5 | G39: 1893.5 | H39: 1906 | I39: 4202300 | J39: 1906
D40: 2018-02-27 | E40: 1916 | F40: 1934 | G40: 1907.5 | H40: 1916 | I40: 4434100 | J40: 1916
D41: 2018-02-28 | E41: 1892 | F41: 1924.5 | G41: 1888 | H41: 1889 | I41: 3946300 | J41: 1889
D42: 2018-03-01 | E42: 1870 | F42: 1873 | G42: 1850.5 | H42: 1859.5 | I42: 4230800 | J42: 1859.5
D43: 2018-03-02 | E43: 1834.5 | F43: 1843.5 | G43: 1815 | H43: 1818.5 | I43: 5098600 | J43: 1818.5
D44: 2018-03-05 | E44: 1799 | F44: 1807 | G44: 1787 | H44: 1792.5 | I44: 3941100 | J44: 1792.5
D45: 2018-03-06 | E45: 1817.5 | F45: 1830 | G45: 1804 | H45: 1806 | I45: 3190400 | J45: 1806
D46: 2018-03-07 | E46: 1800 | F46: 1811.5 | G46: 1791 | H46: 1794 | I46: 3023500 | J46: 1794
D47: 2018-03-08 | E47: 1791.5 | F47: 1797 | G47: 1761 | H47: 1771 | I47: 4041900 | J47: 1771
D48: 2018-03-09 | E48: 1780 | F48: 1803 | G48: 1757.5 | H48: 1768 | I48: 6012300 | J48: 1768
D49: 2018-03-12 | E49: 1803.5 | F49: 1832.5 | G49: 1797.5 | H49: 1830 | I49: 3690500 | J49: 1830
D50: 2018-03-13 | E50: 1821 | F50: 1829 | G50: 1795.5 | H50: 1806 | I50: 3695100 | J50: 1806
D51: 2018-03-14 | E51: 1787.5 | F51: 1805 | G51: 1782.5 | H51: 1791 | I51: 3403500 | J51: 1791
D52: 2018-03-15 | E52: 1780 | F52: 1791 | G52: 1762 | H52: 1789 | I52: 3337000 | J52: 1789
D53: 2018-03-16 | E53: 1790.5 | F53: 1790.5 | G53: 1779.5 | H53: 1780.5 | I53: 3469000 | J53: 1780.5
D54: 2018-03-19 | E54: 1771.5 | F54: 1776 | G54: 1751 | H54: 1768 | I54: 3197800 | J54: 1768
D55: 2018-03-20 | E55: 1758 | F55: 1786.5 | G55: 1754.5 | H55: 1785 | I55: 3070300 | J55: 1785
D56: 2018-03-22 | E56: 1780.5 | F56: 1795.5 | G56: 1770.5 | H56: 1785 | I56: 4270400 | J56: 1785
D57: 2018-03-23 | E57: 1740 | F57: 1745 | G57: 1722.5 | H57: 1731 | I57: 5516700 | J57: 1731
D58: 2018-03-26 | E58: 1720 | F58: 1731 | G58: 1706 | H58: 1731 | I58: 3972000 | J58: 1731
D59: 2018-03-27 | E59: 1751 | F59: 1788 | G59: 1739 | H59: 1788 | I59: 5165200 | J59: 1788
D60: 2018-03-28 | E60: 1734 | F60: 1754.5 | G60: 1721.5 | H60: 1753.5 | I60: 5380600 | J60: 1753.5
D61: 2018-03-29 | E61: 1774 | F61: 1780 | G61: 1744 | H61: 1759 | I61: 3245000 | J61: 1759
D62: 2018-03-30 | E62: 1781.5 | F62: 1792 | G62: 1772 | H62: 1791 | I62: 3120800 | J62: 1791

Sheet 8031
A1: 証券コード | B1: 会社名
A2: 8031 | B2: 三井物産
A3: 市場 | B3: 市場第一部（内国株） | D3: 日付 | E3: 始値 | F3: 高値 | G3: 安値 | H3: 終値 | I3: 出来高 | J3: 調整後終値*
A4: 相続日 | B4: 2018-03-22 | D4: 2018-01-04 | E4: 1855 | F4: 1895.5 | G4: 1854.5 | H4: 1895.5 | I4: 12670900 | J4: 1895.5
A5: 相続日の終値 | B5: 1839.5 | D5: 2018-01-05 | E5: 1900 | F5: 1922.5 | G5: 1898 | H5: 1922.5 | I5: 9318500 | J5: 1922.5
A6: 相続当月の終値の平均 | B6: 1861.809524 | D6: 2018-01-09 | E6: 1948 | F6: 1952 | G6: 1925 | H6: 1929 | I6: 8353800 | J6: 1929
A7: 相続前月の終値の平均 | B7: 1932.973684 | D7: 2018-01-10 | E7: 1934 | F7: 1945.5 | G7: 1924 | H7: 1935 | I7: 7253600 | J7: 1935
A8: 相続前々月の終値の平均 | B8: 1938.631579 | D8: 2018-01-11 | E8: 1925 | F8: 1956.5 | G8: 1921.5 | H8: 1956.5 | I8: 6896700 | J8: 1956.5
A9: ４つのうちの最低額 | B9: =ROUNDDOWN(MIN(B5:B8),0) -> 1839 | D9: 2018-01-12 | E9: 1956.5 | F9: 1964 | G9: 1941 | H9: 1955 | I9: 7078700 | J9: 1955
D10: 2018-01-15 | E10: 1972.5 | F10: 1979.5 | G10: 1960.5 | H10: 1963.5 | I10: 4828300 | J10: 1963.5
D11: 2018-01-16 | E11: 1968 | F11: 1974 | G11: 1959 | H11: 1965.5 | I11: 4637200 | J11: 1965.5
D12: 2018-01-17 | E12: 1952.5 | F12: 1959.5 | G12: 1936.5 | H12: 1943 | I12: 7769900 | J12: 1943
D13: 2018-01-18 | E13: 1957 | F13: 1958 | G13: 1925 | H13: 1929 | I13: 9200600 | J13: 1929
D14: 2018-01-19 | E14: 1928 | F14: 1948.5 | G14: 1924 | H14: 1941.5 | I14: 6479600 | J14: 1941.5
D15: 2018-01-22 | E15: 1930 | F15: 1938 | G15: 1911.5 | H15: 1921 | I15: 4960500 | J15: 1921
D16: 2018-01-23 | E16: 1930 | F16: 1935.5 | G16: 1923 | H16: 1931 | I16: 5091800 | J16: 1931
D17: 2018-01-24 | E17: 1925 | F17: 1949.5 | G17: 1923 | H17: 1949 | I17: 7607100 | J17: 1949
D18: 2018-01-25 | E18: 1950 | F18: 1961.5 | G18: 1933.5 | H18: 1961.5 | I18: 6951400 | J18: 1961.5
D19: 2018-01-26 | E19: 1966.5 | F19: 1968.5 | G19: 1938.5 | H19: 1944 | I19: 8805400 | J19: 1944
D20: 2018-01-29 | E20: 1949 | F20: 1955 | G20: 1933.5 | H20: 1953.5 | I20: 5131300 | J20: 1953.5
D21: 2018-01-30 | E21: 1950 | F21: 1955.5 | G21: 1919.5 | H21: 1924 | I21: 7615100 | J21: 1924
D22: 2018-01-31 | E22: 1905.5 | F22: 1937.5 | G22: 1905 | H22: 1914 | I22: 6676300 | J22: 1914
D23: 2018-02-01 | E23: 1930 | F23: 1955 | G23: 1919 | H23: 1952 | I23: 6282800 | J23: 1952
D24: 2018-02-02 | E24: 1953 | F24: 2042 | G24: 1933 | H24: 2031 | I24: 19020100 | J24: 2031
D25: 2018-02-05 | E25: 2002 | F25: 2025 | G25: 1982 | H25: 2003.5 | I25: 14698700 | J25: 2003.5
D26: 2018-02-06 | E26: 1903 | F26: 1917 | G26: 1870 | H26: 1915 | I26: 20170300 | J26: 1915
D27: 2018-02-07 | E27: 1970 | F27: 1978 | G27: 1903 | H27: 1904 | I27: 14525400 | J27: 1904
D28: 2018-02-08 | E28: 1905 | F28: 1924.5 | G28: 1899 | H28: 1914 | I28: 8959100 | J28: 1914
D29: 2018-02-09 | E29: 1867.5 | F29: 1912 | G29: 1859.5 | H29: 1912 | I29: 11205800 | J29: 1912
D30: 2018-02-13 | E30: 1932 | F30: 1934.5 | G30: 1864 | H30: 1867.5 | I30: 12509800 | J30: 1867.5
D31: 2018-02-14 | E31: 1867.5 | F31: 1879.5 | G31: 1851.5 | H31: 1860 | I31: 8061700 | J31: 1860
D32: 2018-02-15 | E32: 1878.5 | F32: 1884.5 | G32: 1870 | H32: 1881 | I32: 7245700 | J32: 1881
D33: 2018-02-16 | E33: 1888 | F33: 1895 | G33: 1881.5 | H33: 1885 | I33: 7204000 | J33: 1885
D34: 2018-02-19 | E34: 1907 | F34: 1950.5 | G34: 1901.5 | H34: 1949.5 | I34: 6449600 | J34: 1949.5
D35: 2018-02-20 | E35: 1932.5 | F35: 1953 | G35: 1925 | H35: 1951.5 | I35: 6915000 | J35: 1951.5
D36: 2018-02-21 | E36: 1950 | F36: 1950 | G36: 1916 | H36: 1922.5 | I36: 6712200 | J36: 1922.5
D37: 2018-02-22 | E37: 1911 | F37: 1919 | G37: 1901 | H37: 1913.5 | I37: 6382500 | J37: 1913.5
D38: 2018-02-23 | E38: 1927.5 | F38: 1956 | G38: 1927 | H38: 1953.5 | I38: 7750200 | J38: 1953.5
D39: 2018-02-26 | E39: 1969.5 | F39: 1985.5 | G39: 1965.5 | H39: 1979.5 | I39: 6805900 | J39: 1979.5
D40: 2018-02-27 | E40: 1993 | F40: 2005 | G40: 1974 | H40: 1980 | I40: 7233000 | J40: 1980
D41: 2018-02-28 | E41: 1979 | F41: 1990 | G41: 1951.5 | H41: 1951.5 | I41: 7589300 | J41: 1951.5
D42: 2018-03-01 | E42: 1926.5 | F42: 1935.5 | G42: 1913 | H42: 1927.5 | I42: 7260400 | J42: 1927.5
D43: 2018-03-02 | E43: 1905.5 | F43: 1918 | G43: 1893.5 | H43: 1910.5 | I43: 8702300 | J43: 1910.5
D44: 2018-03-05 | E44: 1900 | F44: 1901 | G44: 1874 | H44: 1884 | I44: 9017000 | J44: 1884
D45: 2018-03-06 | E45: 1920 | F45: 1924.5 | G45: 1891 | H45: 1894.5 | I45: 6180700 | J45: 1894.5
D46: 2018-03-07 | E46: 1894 | F46: 1898 | G46: 1864 | H46: 1870 | I46: 7150500 | J46: 1870
D47: 2018-03-08 | E47: 1885 | F47: 1886 | G47: 1856 | H47: 1863 | I47: 6558100 | J47: 1863
D48: 2018-03-09 | E48: 1880 | F48: 1900 | G48: 1859 | H48: 1872 | I48: 9365800 | J48: 1872
D49: 2018-03-12 | E49: 1897 | F49: 1916.5 | G49: 1895 | H49: 1907 | I49: 5911400 | J49: 1907
D50: 2018-03-13 | E50: 1898.5 | F50: 1905.5 | G50: 1881.5 | H50: 1889.5 | I50: 7876700 | J50: 1889.5
D51: 2018-03-14 | E51: 1889.5 | F51: 1912 | G51: 1888.5 | H51: 1898 | I51: 6587700 | J51: 1898
D52: 2018-03-15 | E52: 1880.5 | F52: 1897 | G52: 1873 | H52: 1892.5 | I52: 6083200 | J52: 1892.5
D53: 2018-03-16 | E53: 1893 | F53: 1895 | G53: 1879.5 | H53: 1879.5 | I53: 5881600 | J53: 1879.5
D54: 2018-03-19 | E54: 1879 | F54: 1880 | G54: 1833 | H54: 1837 | I54: 8622700 | J54: 1837
D55: 2018-03-20 | E55: 1838 | F55: 1853.5 | G55: 1831 | H55: 1852.5 | I55: 5559500 | J55: 1852.5
D56: 2018-03-22 | E56: 1855 | F56: 1873 | G56: 1831.5 | H56: 1839.5 | I56: 10381800 | J56: 1839.5
D57: 2018-03-23 | E57: 1806 | F57: 1818 | G57: 1794 | H57: 1798.5 | I57: 13218300 | J57: 1798.5
D58: 2018-03-26 | E58: 1788.5 | F58: 1797 | G58: 1776.5 | H58: 1790 | I58: 7589300 | J58: 1790
D59: 2018-03-27 | E59: 1818 | F59: 1860 | G59: 1807 | H59: 1860 | I59: 8985400 | J59: 1860
D60: 2018-03-28 | E60: 1785 | F60: 1803 | G60: 1777.5 | H60: 1800 | I60: 8399700 | J60: 1800
D61: 2018-03-29 | E61: 1815 | F61: 1820.5 | G61: 1796.5 | H61: 1810 | I61: 6925400 | J61: 1810
D62: 2018-03-30 | E62: 1818.5 | F62: 1828 | G62: 1802.5 | H62: 1822.5 | I62: 4997800 | J62: 1822.5

Sheet 7984
A1: 証券コード | B1: 会社名
A2: 7984 | B2: コクヨ
A3: 市場 | B3: 市場第一部（内国株） | D3: 日付 | E3: 始値 | F3: 高値 | G3: 安値 | H3: 終値 | I3: 出来高 | J3: 調整後終値*
A4: 相続日 | B4: 2018-03-22 | D4: 2018-01-04 | E4: 2100 | F4: 2110 | G4: 2075 | H4: 2099 | I4: 295500 | J4: 2099
A5: 相続日の終値 | B5: 2052 | D5: 2018-01-05 | E5: 2102 | F5: 2126 | G5: 2088 | H5: 2125 | I5: 214900 | J5: 2125
A6: 相続当月の終値の平均 | B6: 2012.190476 | D6: 2018-01-09 | E6: 2130 | F6: 2148 | G6: 2130 | H6: 2147 | I6: 245300 | J6: 2147
A7: 相続前月の終値の平均 | B7: 1954.684211 | D7: 2018-01-10 | E7: 2143 | F7: 2143 | G7: 2106 | H7: 2120 | I7: 264900 | J7: 2120
A8: 相続前々月の終値の平均 | B8: 2116.736842 | D8: 2018-01-11 | E8: 2115 | F8: 2126 | G8: 2107 | H8: 2126 | I8: 131100 | J8: 2126
A9: ４つのうちの最低額 | B9: =ROUNDDOWN(MIN(B5:B8),0) -> 1954 | D9: 2018-01-12 | E9: 2123 | F9: 2146 | G9: 2118 | H9: 2143 | I9: 198400 | J9: 2143
D10: 2018-01-15 | E10: 2150 | F10: 2180 | G10: 2122 | H10: 2127 | I10: 238900 | J10: 2127
D11: 2018-01-16 | E11: 2131 | F11: 2178 | G11: 2129 | H11: 2159 | I11: 251500 | J11: 2159
D12: 2018-01-17 | E12: 2140 | F12: 2172 | G12: 2140 | H12: 2164 | I12: 173600 | J12: 2164
D13: 2018-01-18 | E13: 2168 | F13: 2170 | G13: 2094 | H13: 2095 | I13: 402300 | J13: 2095
D14: 2018-01-19 | E14: 2118 | F14: 2154 | G14: 2118 | H14: 2137 | I14: 270300 | J14: 2137
D15: 2018-01-22 | E15: 2140 | F15: 2144 | G15: 2104 | H15: 2114 | I15: 179100 | J15: 2114
D16: 2018-01-23 | E16: 2127 | F16: 2134 | G16: 2108 | H16: 2126 | I16: 170600 | J16: 2126
D17: 2018-01-24 | E17: 2122 | F17: 2128 | G17: 2105 | H17: 2109 | I17: 136100 | J17: 2109
D18: 2018-01-25 | E18: 2103 | F18: 2113 | G18: 2089 | H18: 2091 | I18: 163600 | J18: 2091
D19: 2018-01-26 | E19: 2100 | F19: 2147 | G19: 2095 | H19: 2113 | I19: 274600 | J19: 2113
D20: 2018-01-29 | E20: 2123 | F20: 2140 | G20: 2116 | H20: 2130 | I20: 173700 | J20: 2130
D21: 2018-01-30 | E21: 2124 | F21: 2124 | G21: 2064 | H21: 2069 | I21: 277500 | J21: 2069
D22: 2018-01-31 | E22: 2070 | F22: 2088 | G22: 2021 | H22: 2024 | I22: 366600 | J22: 2024
D23: 2018-02-01 | E23: 2032 | F23: 2082 | G23: 2008 | H23: 2077 | I23: 335400 | J23: 2077
D24: 2018-02-02 | E24: 2032 | F24: 2074 | G24: 2025 | H24: 2071 | I24: 216700 | J24: 2071
D25: 2018-02-05 | E25: 2021 | F25: 2042 | G25: 1992 | H25: 1995 | I25: 256000 | J25: 1995
D26: 2018-02-06 | E26: 1915 | F26: 1930 | G26: 1868 | H26: 1896 | I26: 362900 | J26: 1896
D27: 2018-02-07 | E27: 1936 | F27: 1973 | G27: 1892 | H27: 1894 | I27: 337400 | J27: 1894
D28: 2018-02-08 | E28: 1900 | F28: 1911 | G28: 1886 | H28: 1889 | I28: 332000 | J28: 1889
D29: 2018-02-09 | E29: 1835 | F29: 1864 | G29: 1821 | H29: 1863 | I29: 272600 | J29: 1863
D30: 2018-02-13 | E30: 1860 | F30: 2030 | G30: 1823 | H30: 1839 | I30: 715100 | J30: 1839
D31: 2018-02-14 | E31: 1846 | F31: 1937 | G31: 1845 | H31: 1926 | I31: 656700 | J31: 1926
D32: 2018-02-15 | E32: 1955 | F32: 1959 | G32: 1891 | H32: 1914 | I32: 450800 | J32: 1914
D33: 2018-02-16 | E33: 1934 | F33: 1973 | G33: 1926 | H33: 1931 | I33: 306100 | J33: 1931
D34: 2018-02-19 | E34: 1953 | F34: 1963 | G34: 1928 | H34: 1954 | I34: 153800 | J34: 1954
D35: 2018-02-20 | E35: 1950 | F35: 1950 | G35: 1919 | H35: 1927 | I35: 218400 | J35: 1927
D36: 2018-02-21 | E36: 1935 | F36: 1998 | G36: 1921 | H36: 1980 | I36: 341000 | J36: 1980
D37: 2018-02-22 | E37: 1986 | F37: 2000 | G37: 1937 | H37: 1972 | I37: 343500 | J37: 1972
D38: 2018-02-23 | E38: 1971 | F38: 1994 | G38: 1947 | H38: 1988 | I38: 235100 | J38: 1988
D39: 2018-02-26 | E39: 2002 | F39: 2015 | G39: 1981 | H39: 1989 | I39: 179200 | J39: 1989
D40: 2018-02-27 | E40: 2006 | F40: 2017 | G40: 1975 | H40: 2013 | I40: 298200 | J40: 2013
D41: 2018-02-28 | E41: 1998 | F41: 2045 | G41: 1998 | H41: 2021 | I41: 379900 | J41: 2021
D42: 2018-03-01 | E42: 2011 | F42: 2011 | G42: 1972 | H42: 1984 | I42: 355800 | J42: 1984
D43: 2018-03-02 | E43: 1946 | F43: 1987 | G43: 1944 | H43: 1965 | I43: 374900 | J43: 1965
D44: 2018-03-05 | E44: 1965 | F44: 2007 | G44: 1965 | H44: 1986 | I44: 336200 | J44: 1986
D45: 2018-03-06 | E45: 2000 | F45: 2008 | G45: 1975 | H45: 1987 | I45: 294100 | J45: 1987
D46: 2018-03-07 | E46: 1980 | F46: 2004 | G46: 1971 | H46: 1989 | I46: 271700 | J46: 1989
D47: 2018-03-08 | E47: 2007 | F47: 2007 | G47: 1975 | H47: 1998 | I47: 235800 | J47: 1998
D48: 2018-03-09 | E48: 2025 | F48: 2052 | G48: 2000 | H48: 2013 | I48: 402700 | J48: 2013
D49: 2018-03-12 | E49: 2034 | F49: 2049 | G49: 2009 | H49: 2046 | I49: 325200 | J49: 2046
D50: 2018-03-13 | E50: 2038 | F50: 2067 | G50: 2029 | H50: 2063 | I50: 275600 | J50: 2063
D51: 2018-03-14 | E51: 2040 | F51: 2064 | G51: 2038 | H51: 2056 | I51: 255600 | J51: 2056
D52: 2018-03-15 | E52: 2049 | F52: 2055 | G52: 2014 | H52: 2036 | I52: 277700 | J52: 2036
D53: 2018-03-16 | E53: 2044 | F53: 2079 | G53: 2028 | H53: 2039 | I53: 1665900 | J53: 2039
D54: 2018-03-19 | E54: 2010 | F54: 2031 | G54: 1996 | H54: 2018 | I54: 273100 | J54: 2018
D55: 2018-03-20 | E55: 2002 | F55: 2044 | G55: 2002 | H55: 2042 | I55: 471900 | J55: 2042
D56: 2018-03-22 | E56: 2039 | F56: 2056 | G56: 2015 | H56: 2052 | I56: 323400 | J56: 2052
D57: 2018-03-23 | E57: 2008 | F57: 2022 | G57: 1932 | H57: 1939 | I57: 355500 | J57: 1939
D58: 2018-03-26 | E58: 1924 | F58: 1937 | G58: 1885 | H58: 1937 | I58: 325600 | J58: 1937
D59: 2018-03-27 | E59: 1927 | F59: 1960 | G59: 1921 | H59: 1958 | I59: 435100 | J59: 1958
D60: 2018-03-28 | E60: 1958 | F60: 2011 | G60: 1946 | H60: 2005 | I60: 509400 | J60: 2005
D61: 2018-03-29 | E61: 2025 | F61: 2065 | G61: 2015 | H61: 2050 | I61: 371300 | J61: 2050
D62: 2018-03-30 | E62: 2066 | F62: 2101 | G62: 2054 | H62: 2093 | I62: 309600 | J62: 2093

Sheet 7976
A1: 証券コード | B1: 会社名
A2: 7976 | B2: 三菱鉛筆
A3: 市場 | B3: 市場第一部（内国株） | D3: 日付 | E3: 始値 | F3: 高値 | G3: 安値 | H3: 終値 | I3: 出来高 | J3: 調整後終値*
A4: 相続日 | B4: 2018-03-22 | D4: 2018-01-04 | E4: 2487 | F4: 2497 | G4: 2463 | H4: 2483 | I4: 63000 | J4: 2483
A5: 相続日の終値 | B5: 2348 | D5: 2018-01-05 | E5: 2500 | F5: 2534 | G5: 2485 | H5: 2533 | I5: 96300 | J5: 2533
A6: 相続当月の終値の平均 | B6: 2358.714286 | D6: 2018-01-09 | E6: 2546 | F6: 2550 | G6: 2511 | H6: 2531 | I6: 86300 | J6: 2531
A7: 相続前月の終値の平均 | B7: 2406.947368 | D7: 2018-01-10 | E7: 2542 | F7: 2545 | G7: 2498 | H7: 2502 | I7: 79600 | J7: 2502
A8: 相続前々月の終値の平均 | B8: 2516 | D8: 2018-01-11 | E8: 2500 | F8: 2500 | G8: 2463 | H8: 2492 | I8: 66300 | J8: 2492
A9: ４つのうちの最低額 | B9: =ROUNDDOWN(MIN(B5:B8),0) -> 2348 | D9: 2018-01-12 | E9: 2490 | F9: 2510 | G9: 2480 | H9: 2488 | I9: 52800 | J9: 2488
D10: 2018-01-15 | E10: 2502 | F10: 2518 | G10: 2496 | H10: 2497 | I10: 44700 | J10: 2497
D11: 2018-01-16 | E11: 2507 | F11: 2520 | G11: 2497 | H11: 2510 | I11: 49200 | J11: 2510
D12: 2018-01-17 | E12: 2502 | F12: 2539 | G12: 2502 | H12: 2524 | I12: 91300 | J12: 2524
D13: 2018-01-18 | E13: 2545 | F13: 2550 | G13: 2528 | H13: 2529 | I13: 128900 | J13: 2529
D14: 2018-01-19 | E14: 2540 | F14: 2569 | G14: 2529 | H14: 2546 | I14: 118300 | J14: 2546
D15: 2018-01-22 | E15: 2550 | F15: 2594 | G15: 2549 | H15: 2584 | I15: 167600 | J15: 2584
D16: 2018-01-23 | E16: 2600 | F16: 2611 | G16: 2571 | H16: 2580 | I16: 84700 | J16: 2580
D17: 2018-01-24 | E17: 2570 | F17: 2582 | G17: 2543 | H17: 2548 | I17: 71300 | J17: 2548
D18: 2018-01-25 | E18: 2535 | F18: 2538 | G18: 2514 | H18: 2514 | I18: 90000 | J18: 2514
D19: 2018-01-26 | E19: 2520 | F19: 2546 | G19: 2504 | H19: 2505 | I19: 92200 | J19: 2505
D20: 2018-01-29 | E20: 2543 | F20: 2544 | G20: 2510 | H20: 2512 | I20: 75600 | J20: 2512
D21: 2018-01-30 | E21: 2520 | F21: 2531 | G21: 2486 | H21: 2495 | I21: 94800 | J21: 2495
D22: 2018-01-31 | E22: 2485 | F22: 2490 | G22: 2430 | H22: 2431 | I22: 113900 | J22: 2431
D23: 2018-02-01 | E23: 2429 | F23: 2460 | G23: 2419 | H23: 2459 | I23: 58300 | J23: 2459
D24: 2018-02-02 | E24: 2441 | F24: 2460 | G24: 2431 | H24: 2454 | I24: 56200 | J24: 2454
D25: 2018-02-05 | E25: 2404 | F25: 2420 | G25: 2394 | H25: 2395 | I25: 97900 | J25: 2395
D26: 2018-02-06 | E26: 2313 | F26: 2323 | G26: 2220 | H26: 2251 | I26: 147000 | J26: 2251
D27: 2018-02-07 | E27: 2300 | F27: 2353 | G27: 2272 | H27: 2273 | I27: 95100 | J27: 2273
D28: 2018-02-08 | E28: 2289 | F28: 2305 | G28: 2275 | H28: 2287 | I28: 92000 | J28: 2287
D29: 2018-02-09 | E29: 2226 | F29: 2261 | G29: 2203 | H29: 2240 | I29: 85100 | J29: 2240
D30: 2018-02-13 | E30: 2440 | F30: 2514 | G30: 2390 | H30: 2494 | I30: 433000 | J30: 2494
D31: 2018-02-14 | E31: 2520 | F31: 2525 | G31: 2480 | H31: 2489 | I31: 205400 | J31: 2489
D32: 2018-02-15 | E32: 2500 | F32: 2505 | G32: 2380 | H32: 2384 | I32: 138400 | J32: 2384
D33: 2018-02-16 | E33: 2392 | F33: 2462 | G33: 2390 | H33: 2444 | I33: 151900 | J33: 2444
D34: 2018-02-19 | E34: 2494 | F34: 2527 | G34: 2465 | H34: 2509 | I34: 111100 | J34: 2509
D35: 2018-02-20 | E35: 2505 | F35: 2515 | G35: 2482 | H35: 2485 | I35: 49900 | J35: 2485
D36: 2018-02-21 | E36: 2500 | F36: 2508 | G36: 2446 | H36: 2453 | I36: 53800 | J36: 2453
D37: 2018-02-22 | E37: 2439 | F37: 2442 | G37: 2401 | H37: 2407 | I37: 36900 | J37: 2407
D38: 2018-02-23 | E38: 2417 | F38: 2428 | G38: 2395 | H38: 2417 | I38: 55500 | J38: 2417
D39: 2018-02-26 | E39: 2427 | F39: 2429 | G39: 2385 | H39: 2412 | I39: 62900 | J39: 2412
D40: 2018-02-27 | E40: 2440 | F40: 2456 | G40: 2416 | H40: 2453 | I40: 74800 | J40: 2453
D41: 2018-02-28 | E41: 2438 | F41: 2464 | G41: 2426 | H41: 2426 | I41: 73000 | J41: 2426
D42: 2018-03-01 | E42: 2409 | F42: 2409 | G42: 2335 | H42: 2347 | I42: 93600 | J42: 2347
D43: 2018-03-02 | E43: 2278 | F43: 2315 | G43: 2272 | H43: 2304 | I43: 83300 | J43: 2304
D44: 2018-03-05 | E44: 2282 | F44: 2370 | G44: 2280 | H44: 2350 | I44: 170500 | J44: 2350
D45: 2018-03-06 | E45: 2371 | F45: 2390 | G45: 2350 | H45: 2360 | I45: 74000 | J45: 2360
D46: 2018-03-07 | E46: 2349 | F46: 2416 | G46: 2349 | H46: 2403 | I46: 90300 | J46: 2403
D47: 2018-03-08 | E47: 2423 | F47: 2432 | G47: 2347 | H47: 2361 | I47: 61700 | J47: 2361
D48: 2018-03-09 | E48: 2397 | F48: 2418 | G48: 2353 | H48: 2372 | I48: 74700 | J48: 2372
D49: 2018-03-12 | E49: 2388 | F49: 2402 | G49: 2371 | H49: 2388 | I49: 54300 | J49: 2388
D50: 2018-03-13 | E50: 2396 | F50: 2449 | G50: 2378 | H50: 2447 | I50: 82500 | J50: 2447
D51: 2018-03-14 | E51: 2440 | F51: 2440 | G51: 2412 | H51: 2418 | I51: 63000 | J51: 2418
D52: 2018-03-15 | E52: 2388 | F52: 2404 | G52: 2371 | H52: 2382 | I52: 46500 | J52: 2382
D53: 2018-03-16 | E53: 2374 | F53: 2395 | G53: 2346 | H53: 2362 | I53: 96400 | J53: 2362
D54: 2018-03-19 | E54: 2321 | F54: 2345 | G54: 2308 | H54: 2319 | I54: 61400 | J54: 2319
D55: 2018-03-20 | E55: 2322 | F55: 2339 | G55: 2291 | H55: 2333 | I55: 69000 | J55: 2333
D56: 2018-03-22 | E56: 2354 | F56: 2354 | G56: 2316 | H56: 2348 | I56: 64000 | J56: 2348
D57: 2018-03-23 | E57: 2308 | F57: 2312 | G57: 2256 | H57: 2265 | I57: 66900 | J57: 2265
D58: 2018-03-26 | E58: 2245 | F58: 2271 | G58: 2228 | H58: 2269 | I58: 70500 | J58: 2269
D59: 2018-03-27 | E59: 2294 | F59: 2378 | G59: 2294 | H59: 2378 | I59: 111300 | J59: 2378
D60: 2018-03-28 | E60: 2315 | F60: 2349 | G60: 2298 | H60: 2343 | I60: 82200 | J60: 2343
D61: 2018-03-29 | E61: 2365 | F61: 2389 | G61: 2350 | H61: 2386 | I61: 40600 | J61: 2386
D62: 2018-03-30 | E62: 2400 | F62: 2400 | G62: 2369 | H62: 2398 | I62: 55900 | J62: 2398

Sheet 7971
A1: 証券コード | B1: 会社名
A2: 7971 | B2: 東リ
A3: 市場 | B3: 市場第一部（内国株） | D3: 日付 | E3: 始値 | F3: 高値 | G3: 安値 | H3: 終値 | I3: 出来高 | J3: 調整後終値*
A4: 相続日 | B4: 2018-03-22 | D4: 2018-01-04 | E4: 445 | F4: 468 | G4: 444 | H4: 468 | I4: 255000 | J4: 468
A5: 相続日の終値 | B5: 392 | D5: 2018-01-05 | E5: 468 | F5: 471 | G5: 461 | H5: 462 | I5: 135800 | J5: 462
A6: 相続当月の終値の平均 | B6: 384 | D6: 2018-01-09 | E6: 464 | F6: 464 | G6: 455 | H6: 456 | I6: 86600 | J6: 456
A7: 相続前月の終値の平均 | B7: 388.9473684 | D7: 2018-01-10 | E7: 456 | F7: 456 | G7: 445 | H7: 445 | I7: 79800 | J7: 445
A8: 相続前々月の終値の平均 | B8: 445.9473684 | D8: 2018-01-11 | E8: 445 | F8: 445 | G8: 436 | H8: 437 | I8: 96300 | J8: 437
A9: ４つのうちの最低額 | B9: =ROUNDDOWN(MIN(B5:B8),0) -> 384 | D9: 2018-01-12 | E9: 439 | F9: 443 | G9: 438 | H9: 438 | I9: 66700 | J9: 438
D10: 2018-01-15 | E10: 443 | F10: 445 | G10: 441 | H10: 443 | I10: 48000 | J10: 443
D11: 2018-01-16 | E11: 448 | F11: 450 | G11: 445 | H11: 445 | I11: 44900 | J11: 445
D12: 2018-01-17 | E12: 445 | F12: 449 | G12: 440 | H12: 441 | I12: 63400 | J12: 441
D13: 2018-01-18 | E13: 448 | F13: 449 | G13: 442 | H13: 445 | I13: 88000 | J13: 445
D14: 2018-01-19 | E14: 440 | F14: 449 | G14: 440 | H14: 447 | I14: 51600 | J14: 447
D15: 2018-01-22 | E15: 447 | F15: 447 | G15: 441 | H15: 445 | I15: 53900 | J15: 445
D16: 2018-01-23 | E16: 450 | F16: 452 | G16: 447 | H16: 450 | I16: 49900 | J16: 450
D17: 2018-01-24 | E17: 450 | F17: 451 | G17: 443 | H17: 443 | I17: 56300 | J17: 443
D18: 2018-01-25 | E18: 444 | F18: 444 | G18: 439 | H18: 440 | I18: 41400 | J18: 440
D19: 2018-01-26 | E19: 439 | F19: 444 | G19: 439 | H19: 441 | I19: 35400 | J19: 441
D20: 2018-01-29 | E20: 445 | F20: 446 | G20: 442 | H20: 444 | I20: 55000 | J20: 444
D21: 2018-01-30 | E21: 447 | F21: 448 | G21: 445 | H21: 446 | I21: 85300 | J21: 446
D22: 2018-01-31 | E22: 446 | F22: 452 | G22: 435 | H22: 437 | I22: 151700 | J22: 437
D23: 2018-02-01 | E23: 436 | F23: 441 | G23: 432 | H23: 438 | I23: 87000 | J23: 438
D24: 2018-02-02 | E24: 432 | F24: 436 | G24: 430 | H24: 433 | I24: 83600 | J24: 433
D25: 2018-02-05 | E25: 424 | F25: 425 | G25: 398 | H25: 411 | I25: 158600 | J25: 411
D26: 2018-02-06 | E26: 371 | F26: 389 | G26: 371 | H26: 383 | I26: 175900 | J26: 383
D27: 2018-02-07 | E27: 391 | F27: 401 | G27: 378 | H27: 378 | I27: 131700 | J27: 378
D28: 2018-02-08 | E28: 385 | F28: 389 | G28: 381 | H28: 382 | I28: 69500 | J28: 382
D29: 2018-02-09 | E29: 372 | F29: 375 | G29: 371 | H29: 374 | I29: 76700 | J29: 374
D30: 2018-02-13 | E30: 377 | F30: 379 | G30: 369 | H30: 370 | I30: 61300 | J30: 370
D31: 2018-02-14 | E31: 370 | F31: 372 | G31: 360 | H31: 360 | I31: 78900 | J31: 360
D32: 2018-02-15 | E32: 367 | F32: 369 | G32: 362 | H32: 366 | I32: 58700 | J32: 366
D33: 2018-02-16 | E33: 368 | F33: 382 | G33: 368 | H33: 374 | I33: 80500 | J33: 374
D34: 2018-02-19 | E34: 380 | F34: 388 | G34: 380 | H34: 385 | I34: 45000 | J34: 385
D35: 2018-02-20 | E35: 387 | F35: 387 | G35: 382 | H35: 387 | I35: 24300 | J35: 387
D36: 2018-02-21 | E36: 385 | F36: 390 | G36: 383 | H36: 385 | I36: 44900 | J36: 385
D37: 2018-02-22 | E37: 383 | F37: 387 | G37: 382 | H37: 386 | I37: 31100 | J37: 386
D38: 2018-02-23 | E38: 388 | F38: 397 | G38: 386 | H38: 396 | I38: 42000 | J38: 396
D39: 2018-02-26 | E39: 397 | F39: 400 | G39: 395 | H39: 395 | I39: 46600 | J39: 395
D40: 2018-02-27 | E40: 401 | F40: 402 | G40: 393 | H40: 395 | I40: 44000 | J40: 395
D41: 2018-02-28 | E41: 393 | F41: 396 | G41: 392 | H41: 392 | I41: 40800 | J41: 392
D42: 2018-03-01 | E42: 390 | F42: 390 | G42: 382 | H42: 383 | I42: 74900 | J42: 383
D43: 2018-03-02 | E43: 376 | F43: 382 | G43: 376 | H43: 378 | I43: 51800 | J43: 378
D44: 2018-03-05 | E44: 378 | F44: 379 | G44: 372 | H44: 374 | I44: 63200 | J44: 374
D45: 2018-03-06 | E45: 379 | F45: 385 | G45: 378 | H45: 382 | I45: 52600 | J45: 382
D46: 2018-03-07 | E46: 380 | F46: 391 | G46: 377 | H46: 383 | I46: 90000 | J46: 383
D47: 2018-03-08 | E47: 386 | F47: 386 | G47: 381 | H47: 383 | I47: 23300 | J47: 383
D48: 2018-03-09 | E48: 386 | F48: 389 | G48: 380 | H48: 381 | I48: 67000 | J48: 381
D49: 2018-03-12 | E49: 388 | F49: 391 | G49: 387 | H49: 388 | I49: 37600 | J49: 388
D50: 2018-03-13 | E50: 389 | F50: 398 | G50: 386 | H50: 396 | I50: 33300 | J50: 396
D51: 2018-03-14 | E51: 390 | F51: 392 | G51: 385 | H51: 387 | I51: 65200 | J51: 387
D52: 2018-03-15 | E52: 388 | F52: 389 | G52: 384 | H52: 388 | I52: 37300 | J52: 388
D53: 2018-03-16 | E53: 390 | F53: 397 | G53: 388 | H53: 395 | I53: 55300 | J53: 395
D54: 2018-03-19 | E54: 393 | F54: 393 | G54: 386 | H54: 388 | I54: 29800 | J54: 388
D55: 2018-03-20 | E55: 385 | F55: 394 | G55: 385 | H55: 394 | I55: 29200 | J55: 394
D56: 2018-03-22 | E56: 394 | F56: 395 | G56: 388 | H56: 392 | I56: 40700 | J56: 392
D57: 2018-03-23 | E57: 390 | F57: 390 | G57: 374 | H57: 375 | I57: 71600 | J57: 375
D58: 2018-03-26 | E58: 372 | F58: 373 | G58: 364 | H58: 369 | I58: 119800 | J58: 369
D59: 2018-03-27 | E59: 373 | F59: 386 | G59: 372 | H59: 385 | I59: 91400 | J59: 385
D60: 2018-03-28 | E60: 371 | F60: 377 | G60: 371 | H60: 375 | I60: 42200 | J60: 375
D61: 2018-03-29 | E61: 379 | F61: 385 | G61: 374 | H61: 379 | I61: 36700 | J61: 379
D62: 2018-03-30 | E62: 383 | F62: 390 | G62: 382 | H62: 389 | I62: 47600 | J62: 389

Sheet 7962
A1: 証券コード | B1: 会社名
A2: 7962 | B2: キングジム
A3: 市場 | B3: 市場第一部（内国株） | D3: 日付 | E3: 始値 | F3: 高値 | G3: 安値 | H3: 終値 | I3: 出来高 | J3: 調整後終値*
A4: 相続日 | B4: 2018-03-22 | D4: 2018-01-04 | E4: 1030 | F4: 1030 | G4: 1023 | H4: 1029 | I4: 12900 | J4: 1029
A5: 相続日の終値 | B5: 1013 | D5: 2018-01-05 | E5: 1029 | F5: 1029 | G5: 1024 | H5: 1029 | I5: 13500 | J5: 1029
A6: 相続当月の終値の平均 | B6: 988.0952381 | D6: 2018-01-09 | E6: 1030 | F6: 1030 | G6: 1023 | H6: 1026 | I6: 16300 | J6: 1026
A7: 相続前月の終値の平均 | B7: 988.2631579 | D7: 2018-01-10 | E7: 1025 | F7: 1029 | G7: 1022 | H7: 1024 | I7: 8100 | J7: 1024
A8: 相続前々月の終値の平均 | B8: 1015.210526 | D8: 2018-01-11 | E8: 1026 | F8: 1030 | G8: 1023 | H8: 1030 | I8: 13400 | J8: 1030
A9: ４つのうちの最低額 | B9: =ROUNDDOWN(MIN(B5:B8),0) -> 988 | D9: 2018-01-12 | E9: 1030 | F9: 1030 | G9: 1008 | H9: 1011 | I9: 35600 | J9: 1011
D10: 2018-01-15 | E10: 1020 | F10: 1023 | G10: 1012 | H10: 1014 | I10: 11400 | J10: 1014
D11: 2018-01-16 | E11: 1014 | F11: 1018 | G11: 1002 | H11: 1005 | I11: 21200 | J11: 1005
D12: 2018-01-17 | E12: 1009 | F12: 1019 | G12: 1006 | H12: 1017 | I12: 16300 | J12: 1017
D13: 2018-01-18 | E13: 1023 | F13: 1023 | G13: 1011 | H13: 1011 | I13: 15100 | J13: 1011
D14: 2018-01-19 | E14: 1011 | F14: 1017 | G14: 1008 | H14: 1008 | I14: 10400 | J14: 1008
D15: 2018-01-22 | E15: 1010 | F15: 1016 | G15: 1008 | H15: 1015 | I15: 15900 | J15: 1015
D16: 2018-01-23 | E16: 1020 | F16: 1023 | G16: 1017 | H16: 1020 | I16: 18500 | J16: 1020
D17: 2018-01-24 | E17: 1024 | F17: 1024 | G17: 1013 | H17: 1017 | I17: 18600 | J17: 1017
D18: 2018-01-25 | E18: 1020 | F18: 1020 | G18: 1009 | H18: 1009 | I18: 15900 | J18: 1009
D19: 2018-01-26 | E19: 1015 | F19: 1016 | G19: 1007 | H19: 1007 | I19: 17700 | J19: 1007
D20: 2018-01-29 | E20: 1034 | F20: 1036 | G20: 1011 | H20: 1011 | I20: 42800 | J20: 1011
D21: 2018-01-30 | E21: 1010 | F21: 1015 | G21: 1005 | H21: 1006 | I21: 29900 | J21: 1006
D22: 2018-01-31 | E22: 1009 | F22: 1012 | G22: 1000 | H22: 1000 | I22: 28000 | J22: 1000
D23: 2018-02-01 | E23: 1014 | F23: 1019 | G23: 1006 | H23: 1017 | I23: 35900 | J23: 1017
D24: 2018-02-02 | E24: 1011 | F24: 1021 | G24: 995 | H24: 1018 | I24: 68800 | J24: 1018
D25: 2018-02-05 | E25: 1014 | F25: 1015 | G25: 998 | H25: 1000 | I25: 33100 | J25: 1000
D26: 2018-02-06 | E26: 992 | F26: 995 | G26: 956 | H26: 964 | I26: 79700 | J26: 964
D27: 2018-02-07 | E27: 981 | F27: 1000 | G27: 975 | H27: 975 | I27: 40800 | J27: 975
D28: 2018-02-08 | E28: 986 | F28: 996 | G28: 984 | H28: 989 | I28: 21500 | J28: 989
D29: 2018-02-09 | E29: 975 | F29: 985 | G29: 970 | H29: 980 | I29: 35500 | J29: 980
D30: 2018-02-13 | E30: 986 | F30: 993 | G30: 975 | H30: 977 | I30: 31100 | J30: 977
D31: 2018-02-14 | E31: 979 | F31: 983 | G31: 970 | H31: 970 | I31: 20800 | J31: 970
D32: 2018-02-15 | E32: 982 | F32: 982 | G32: 971 | H32: 971 | I32: 14800 | J32: 971
D33: 2018-02-16 | E33: 971 | F33: 985 | G33: 971 | H33: 977 | I33: 23500 | J33: 977
D34: 2018-02-19 | E34: 991 | F34: 999 | G34: 991 | H34: 999 | I34: 22500 | J34: 999
D35: 2018-02-20 | E35: 998 | F35: 999 | G35: 975 | H35: 997 | I35: 26700 | J35: 997
D36: 2018-02-21 | E36: 991 | F36: 995 | G36: 982 | H36: 986 | I36: 26500 | J36: 986
D37: 2018-02-22 | E37: 986 | F37: 994 | G37: 982 | H37: 988 | I37: 9000 | J37: 988
D38: 2018-02-23 | E38: 995 | F38: 997 | G38: 988 | H38: 993 | I38: 15800 | J38: 993
D39: 2018-02-26 | E39: 1000 | F39: 1000 | G39: 992 | H39: 999 | I39: 13000 | J39: 999
D40: 2018-02-27 | E40: 1000 | F40: 1003 | G40: 996 | H40: 999 | I40: 19300 | J40: 999
D41: 2018-02-28 | E41: 996 | F41: 999 | G41: 978 | H41: 978 | I41: 34700 | J41: 978
D42: 2018-03-01 | E42: 978 | F42: 982 | G42: 972 | H42: 974 | I42: 24800 | J42: 974
D43: 2018-03-02 | E43: 970 | F43: 970 | G43: 954 | H43: 958 | I43: 42000 | J43: 958
D44: 2018-03-05 | E44: 958 | F44: 970 | G44: 958 | H44: 962 | I44: 21300 | J44: 962
D45: 2018-03-06 | E45: 965 | F45: 969 | G45: 959 | H45: 964 | I45: 27900 | J45: 964
D46: 2018-03-07 | E46: 964 | F46: 974 | G46: 963 | H46: 966 | I46: 18100 | J46: 966
D47: 2018-03-08 | E47: 971 | F47: 972 | G47: 962 | H47: 964 | I47: 8200 | J47: 964
D48: 2018-03-09 | E48: 972 | F48: 974 | G48: 961 | H48: 966 | I48: 22600 | J48: 966
D49: 2018-03-12 | E49: 970 | F49: 975 | G49: 966 | H49: 974 | I49: 19900 | J49: 974
D50: 2018-03-13 | E50: 974 | F50: 989 | G50: 973 | H50: 988 | I50: 19000 | J50: 988
D51: 2018-03-14 | E51: 988 | F51: 988 | G51: 977 | H51: 984 | I51: 8300 | J51: 984
D52: 2018-03-15 | E52: 987 | F52: 998 | G52: 979 | H52: 996 | I52: 23300 | J52: 996
D53: 2018-03-16 | E53: 999 | F53: 999 | G53: 987 | H53: 995 | I53: 11100 | J53: 995
D54: 2018-03-19 | E54: 1000 | F54: 1000 | G54: 985 | H54: 992 | I54: 14600 | J54: 992
D55: 2018-03-20 | E55: 992 | F55: 997 | G55: 987 | H55: 997 | I55: 12800 | J55: 997
D56: 2018-03-22 | E56: 1003 | F56: 1013 | G56: 1000 | H56: 1013 | I56: 28200 | J56: 1013
D57: 2018-03-23 | E57: 1006 | F57: 1006 | G57: 991 | H57: 994 | I57: 25200 | J57: 994
D58: 2018-03-26 | E58: 1008 | F58: 1008 | G58: 992 | H58: 1000 | I58: 37900 | J58: 1000
D59: 2018-03-27 | E59: 1000 | F59: 1010 | G59: 999 | H59: 1010 | I59: 47000 | J59: 1010
D60: 2018-03-28 | E60: 1001 | F60: 1020 | G60: 1001 | H60: 1010 | I60: 47000 | J60: 1010
D61: 2018-03-29 | E61: 1010 | F61: 1020 | G61: 1010 | H61: 1020 | I61: 21400 | J61: 1020
D62: 2018-03-30 | E62: 1020 | F62: 1023 | G62: 1018 | H62: 1023 | I62: 23400 | J62: 1023

Sheet 7949
A1: 証券コード | B1: 会社名
A2: 7949 | B2: 小松ウオール工業
A3: 市場 | B3: 市場第一部（内国株） | D3: 日付 | E3: 始値 | F3: 高値 | G3: 安値 | H3: 終値 | I3: 出来高 | J3: 調整後終値*
A4: 相続日 | B4: 2018-03-22 | D4: 2018-01-04 | E4: 2425 | F4: 2429 | G4: 2410 | H4: 2428 | I4: 8000 | J4: 2428
A5: 相続日の終値 | B5: 2788 | D5: 2018-01-05 | E5: 2428 | F5: 2428 | G5: 2402 | H5: 2412 | I5: 7600 | J5: 2412
A6: 相続当月の終値の平均 | B6: 2700.952381 | D6: 2018-01-09 | E6: 2413 | F6: 2419 | G6: 2405 | H6: 2413 | I6: 8500 | J6: 2413
A7: 相続前月の終値の平均 | B7: 2490.894737 | D7: 2018-01-10 | E7: 2414 | F7: 2418 | G7: 2392 | H7: 2401 | I7: 10000 | J7: 2401
A8: 相続前々月の終値の平均 | B8: 2433.315789 | D8: 2018-01-11 | E8: 2393 | F8: 2447 | G8: 2393 | H8: 2433 | I8: 15300 | J8: 2433
A9: ４つのうちの最低額 | B9: =ROUNDDOWN(MIN(B5:B8),0) -> 2433 | D9: 2018-01-12 | E9: 2421 | F9: 2421 | G9: 2406 | H9: 2412 | I9: 7800 | J9: 2412
D10: 2018-01-15 | E10: 2400 | F10: 2412 | G10: 2391 | H10: 2393 | I10: 20900 | J10: 2393
D11: 2018-01-16 | E11: 2393 | F11: 2424 | G11: 2393 | H11: 2409 | I11: 14000 | J11: 2409
D12: 2018-01-17 | E12: 2401 | F12: 2420 | G12: 2401 | H12: 2409 | I12: 7100 | J12: 2409
D13: 2018-01-18 | E13: 2409 | F13: 2417 | G13: 2385 | H13: 2392 | I13: 14600 | J13: 2392
D14: 2018-01-19 | E14: 2400 | F14: 2405 | G14: 2391 | H14: 2398 | I14: 5500 | J14: 2398
D15: 2018-01-22 | E15: 2388 | F15: 2414 | G15: 2384 | H15: 2404 | I15: 7200 | J15: 2404
D16: 2018-01-23 | E16: 2414 | F16: 2438 | G16: 2408 | H16: 2425 | I16: 6600 | J16: 2425
D17: 2018-01-24 | E17: 2450 | F17: 2525 | G17: 2446 | H17: 2514 | I17: 49100 | J17: 2514
D18: 2018-01-25 | E18: 2515 | F18: 2515 | G18: 2450 | H18: 2459 | I18: 43700 | J18: 2459
D19: 2018-01-26 | E19: 2459 | F19: 2484 | G19: 2458 | H19: 2472 | I19: 10600 | J19: 2472
D20: 2018-01-29 | E20: 2471 | F20: 2500 | G20: 2471 | H20: 2487 | I20: 6900 | J20: 2487
D21: 2018-01-30 | E21: 2480 | F21: 2496 | G21: 2477 | H21: 2492 | I21: 21100 | J21: 2492
D22: 2018-01-31 | E22: 2453 | F22: 2497 | G22: 2453 | H22: 2480 | I22: 21200 | J22: 2480
D23: 2018-02-01 | E23: 2488 | F23: 2503 | G23: 2470 | H23: 2503 | I23: 13400 | J23: 2503
D24: 2018-02-02 | E24: 2501 | F24: 2518 | G24: 2481 | H24: 2511 | I24: 23700 | J24: 2511
D25: 2018-02-05 | E25: 2465 | F25: 2497 | G25: 2455 | H25: 2474 | I25: 15600 | J25: 2474
D26: 2018-02-06 | E26: 2439 | F26: 2439 | G26: 2259 | H26: 2339 | I26: 42500 | J26: 2339
D27: 2018-02-07 | E27: 2359 | F27: 2423 | G27: 2332 | H27: 2334 | I27: 23000 | J27: 2334
D28: 2018-02-08 | E28: 2342 | F28: 2387 | G28: 2342 | H28: 2371 | I28: 11000 | J28: 2371
D29: 2018-02-09 | E29: 2306 | F29: 2408 | G29: 2306 | H29: 2395 | I29: 20100 | J29: 2395
D30: 2018-02-13 | E30: 2418 | F30: 2418 | G30: 2319 | H30: 2409 | I30: 29300 | J30: 2409
D31: 2018-02-14 | E31: 2412 | F31: 2448 | G31: 2400 | H31: 2437 | I31: 16300 | J31: 2437
D32: 2018-02-15 | E32: 2437 | F32: 2446 | G32: 2411 | H32: 2432 | I32: 16600 | J32: 2432
D33: 2018-02-16 | E33: 2433 | F33: 2445 | G33: 2430 | H33: 2430 | I33: 9000 | J33: 2430
D34: 2018-02-19 | E34: 2440 | F34: 2513 | G34: 2440 | H34: 2511 | I34: 14400 | J34: 2511
D35: 2018-02-20 | E35: 2509 | F35: 2520 | G35: 2502 | H35: 2515 | I35: 17900 | J35: 2515
D36: 2018-02-21 | E36: 2519 | F36: 2591 | G36: 2493 | H36: 2591 | I36: 45400 | J36: 2591
D37: 2018-02-22 | E37: 2595 | F37: 2600 | G37: 2545 | H37: 2599 | I37: 19500 | J37: 2599
D38: 2018-02-23 | E38: 2600 | F38: 2603 | G38: 2574 | H38: 2603 | I38: 20100 | J38: 2603
D39: 2018-02-26 | E39: 2620 | F39: 2620 | G39: 2586 | H39: 2603 | I39: 15000 | J39: 2603
D40: 2018-02-27 | E40: 2610 | F40: 2653 | G40: 2610 | H40: 2653 | I40: 25200 | J40: 2653
D41: 2018-02-28 | E41: 2630 | F41: 2644 | G41: 2610 | H41: 2617 | I41: 14100 | J41: 2617
D42: 2018-03-01 | E42: 2618 | F42: 2653 | G42: 2610 | H42: 2644 | I42: 22900 | J42: 2644
D43: 2018-03-02 | E43: 2607 | F43: 2634 | G43: 2599 | H43: 2633 | I43: 16700 | J43: 2633
D44: 2018-03-05 | E44: 2613 | F44: 2635 | G44: 2602 | H44: 2628 | I44: 21400 | J44: 2628
D45: 2018-03-06 | E45: 2639 | F45: 2677 | G45: 2639 | H45: 2665 | I45: 28000 | J45: 2665
D46: 2018-03-07 | E46: 2643 | F46: 2670 | G46: 2643 | H46: 2669 | I46: 22700 | J46: 2669
D47: 2018-03-08 | E47: 2674 | F47: 2674 | G47: 2659 | H47: 2669 | I47: 19600 | J47: 2669
D48: 2018-03-09 | E48: 2678 | F48: 2681 | G48: 2607 | H48: 2627 | I48: 36300 | J48: 2627
D49: 2018-03-12 | E49: 2633 | F49: 2633 | G49: 2594 | H49: 2621 | I49: 13000 | J49: 2621
D50: 2018-03-13 | E50: 2614 | F50: 2646 | G50: 2593 | H50: 2645 | I50: 13500 | J50: 2645
D51: 2018-03-14 | E51: 2634 | F51: 2700 | G51: 2634 | H51: 2700 | I51: 26900 | J51: 2700
D52: 2018-03-15 | E52: 2692 | F52: 2700 | G52: 2655 | H52: 2660 | I52: 18900 | J52: 2660
D53: 2018-03-16 | E53: 2709 | F53: 2742 | G53: 2689 | H53: 2739 | I53: 39700 | J53: 2739
D54: 2018-03-19 | E54: 2740 | F54: 2748 | G54: 2701 | H54: 2744 | I54: 16100 | J54: 2744
D55: 2018-03-20 | E55: 2720 | F55: 2748 | G55: 2718 | H55: 2734 | I55: 16900 | J55: 2734
D56: 2018-03-22 | E56: 2730 | F56: 2789 | G56: 2728 | H56: 2788 | I56: 25300 | J56: 2788
D57: 2018-03-23 | E57: 2701 | F57: 2734 | G57: 2660 | H57: 2673 | I57: 22200 | J57: 2673
D58: 2018-03-26 | E58: 2660 | F58: 2703 | G58: 2629 | H58: 2702 | I58: 21500 | J58: 2702
D59: 2018-03-27 | E59: 2727 | F59: 2790 | G59: 2727 | H59: 2790 | I59: 17000 | J59: 2790
D60: 2018-03-28 | E60: 2732 | F60: 2770 | G60: 2726 | H60: 2768 | I60: 10600 | J60: 2768
D61: 2018-03-29 | E61: 2786 | F61: 2820 | G61: 2781 | H61: 2814 | I61: 22000 | J61: 2814
D62: 2018-03-30 | E62: 2814 | F62: 2825 | G62: 2792 | H62: 2807 | I62: 9500 | J62: 2807

Sheet 7921
A1: 証券コード | B1: 会社名
A2: 7921 | B2: 宝印刷
A3: 市場 | B3: 市場第一部（内国株） | D3: 日付 | E3: 始値 | F3: 高値 | G3: 安値 | H3: 終値 | I3: 出来高 | J3: 調整後終値*
A4: 相続日 | B4: 2018-03-22 | D4: 2018-01-04 | E4: 1787 | F4: 1793 | G4: 1780 | H4: 1788 | I4: 18200 | J4: 1788
A5: 相続日の終値 | B5: 1880 | D5: 2018-01-05 | E5: 1786 | F5: 1789 | G5: 1774 | H5: 1775 | I5: 17600 | J5: 1775
A6: 相続当月の終値の平均 | B6: 1863.238095 | D6: 2018-01-09 | E6: 1790 | F6: 1790 | G6: 1770 | H6: 1773 | I6: 14700 | J6: 1773
A7: 相続前月の終値の平均 | B7: 1795.263158 | D7: 2018-01-10 | E7: 1783 | F7: 1790 | G7: 1777 | H7: 1778 | I7: 18900 | J7: 1778
A8: 相続前々月の終値の平均 | B8: 1765.789474 | D8: 2018-01-11 | E8: 1778 | F8: 1787 | G8: 1777 | H8: 1780 | I8: 10500 | J8: 1780
A9: ４つのうちの最低額 | B9: =ROUNDDOWN(MIN(B5:B8),0) -> 1765 | D9: 2018-01-12 | E9: 1774 | F9: 1779 | G9: 1760 | H9: 1760 | I9: 18100 | J9: 1760
D10: 2018-01-15 | E10: 1776 | F10: 1776 | G10: 1759 | H10: 1760 | I10: 9500 | J10: 1760
D11: 2018-01-16 | E11: 1756 | F11: 1766 | G11: 1755 | H11: 1756 | I11: 9100 | J11: 1756
D12: 2018-01-17 | E12: 1756 | F12: 1758 | G12: 1741 | H12: 1745 | I12: 20600 | J12: 1745
D13: 2018-01-18 | E13: 1765 | F13: 1765 | G13: 1741 | H13: 1749 | I13: 20000 | J13: 1749
D14: 2018-01-19 | E14: 1752 | F14: 1766 | G14: 1752 | H14: 1757 | I14: 14500 | J14: 1757
D15: 2018-01-22 | E15: 1774 | F15: 1783 | G15: 1764 | H15: 1782 | I15: 26800 | J15: 1782
D16: 2018-01-23 | E16: 1792 | F16: 1792 | G16: 1774 | H16: 1778 | I16: 16000 | J16: 1778
D17: 2018-01-24 | E17: 1780 | F17: 1790 | G17: 1776 | H17: 1785 | I17: 11700 | J17: 1785
D18: 2018-01-25 | E18: 1790 | F18: 1790 | G18: 1770 | H18: 1770 | I18: 9200 | J18: 1770
D19: 2018-01-26 | E19: 1777 | F19: 1784 | G19: 1759 | H19: 1759 | I19: 17200 | J19: 1759
D20: 2018-01-29 | E20: 1771 | F20: 1771 | G20: 1762 | H20: 1762 | I20: 7300 | J20: 1762
D21: 2018-01-30 | E21: 1768 | F21: 1773 | G21: 1750 | H21: 1750 | I21: 18000 | J21: 1750
D22: 2018-01-31 | E22: 1751 | F22: 1764 | G22: 1743 | H22: 1743 | I22: 25500 | J22: 1743
D23: 2018-02-01 | E23: 1753 | F23: 1770 | G23: 1752 | H23: 1767 | I23: 23600 | J23: 1767
D24: 2018-02-02 | E24: 1763 | F24: 1781 | G24: 1762 | H24: 1778 | I24: 15900 | J24: 1778
D25: 2018-02-05 | E25: 1760 | F25: 1769 | G25: 1748 | H25: 1757 | I25: 23700 | J25: 1757
D26: 2018-02-06 | E26: 1702 | F26: 1715 | G26: 1687 | H26: 1710 | I26: 61700 | J26: 1710
D27: 2018-02-07 | E27: 1749 | F27: 1783 | G27: 1732 | H27: 1732 | I27: 41000 | J27: 1732
D28: 2018-02-08 | E28: 1755 | F28: 1775 | G28: 1746 | H28: 1749 | I28: 29400 | J28: 1749
D29: 2018-02-09 | E29: 1711 | F29: 1725 | G29: 1707 | H29: 1720 | I29: 35300 | J29: 1720
D30: 2018-02-13 | E30: 1750 | F30: 1750 | G30: 1731 | H30: 1740 | I30: 36800 | J30: 1740
D31: 2018-02-14 | E31: 1740 | F31: 1742 | G31: 1721 | H31: 1724 | I31: 35700 | J31: 1724
D32: 2018-02-15 | E32: 1729 | F32: 1746 | G32: 1723 | H32: 1729 | I32: 33000 | J32: 1729
D33: 2018-02-16 | E33: 1737 | F33: 1768 | G33: 1737 | H33: 1764 | I33: 19400 | J33: 1764
D34: 2018-02-19 | E34: 1769 | F34: 1800 | G34: 1769 | H34: 1799 | I34: 36700 | J34: 1799
D35: 2018-02-20 | E35: 1806 | F35: 1850 | G35: 1806 | H35: 1848 | I35: 78000 | J35: 1848
D36: 2018-02-21 | E36: 1860 | F36: 1864 | G36: 1833 | H36: 1833 | I36: 29900 | J36: 1833
D37: 2018-02-22 | E37: 1850 | F37: 1857 | G37: 1831 | H37: 1854 | I37: 21700 | J37: 1854
D38: 2018-02-23 | E38: 1875 | F38: 1882 | G38: 1860 | H38: 1868 | I38: 32300 | J38: 1868
D39: 2018-02-26 | E39: 1870 | F39: 1910 | G39: 1869 | H39: 1910 | I39: 31100 | J39: 1910
D40: 2018-02-27 | E40: 1937 | F40: 1947 | G40: 1907 | H40: 1924 | I40: 30800 | J40: 1924
D41: 2018-02-28 | E41: 1906 | F41: 1924 | G41: 1903 | H41: 1904 | I41: 16100 | J41: 1904
D42: 2018-03-01 | E42: 1900 | F42: 1920 | G42: 1885 | H42: 1903 | I42: 33100 | J42: 1903
D43: 2018-03-02 | E43: 1873 | F43: 1882 | G43: 1855 | H43: 1862 | I43: 33500 | J43: 1862
D44: 2018-03-05 | E44: 1855 | F44: 1863 | G44: 1809 | H44: 1811 | I44: 29200 | J44: 1811
D45: 2018-03-06 | E45: 1831 | F45: 1885 | G45: 1831 | H45: 1879 | I45: 28700 | J45: 1879
D46: 2018-03-07 | E46: 1886 | F46: 1890 | G46: 1865 | H46: 1869 | I46: 15700 | J46: 1869
D47: 2018-03-08 | E47: 1888 | F47: 1888 | G47: 1858 | H47: 1865 | I47: 11300 | J47: 1865
D48: 2018-03-09 | E48: 1875 | F48: 1877 | G48: 1825 | H48: 1827 | I48: 22800 | J48: 1827
D49: 2018-03-12 | E49: 1861 | F49: 1866 | G49: 1830 | H49: 1838 | I49: 16000 | J49: 1838
D50: 2018-03-13 | E50: 1838 | F50: 1849 | G50: 1828 | H50: 1849 | I50: 15600 | J50: 1849
D51: 2018-03-14 | E51: 1849 | F51: 1855 | G51: 1838 | H51: 1851 | I51: 10000 | J51: 1851
D52: 2018-03-15 | E52: 1856 | F52: 1872 | G52: 1838 | H52: 1871 | I52: 16500 | J52: 1871
D53: 2018-03-16 | E53: 1887 | F53: 1887 | G53: 1865 | H53: 1873 | I53: 18300 | J53: 1873
D54: 2018-03-19 | E54: 1871 | F54: 1871 | G54: 1837 | H54: 1848 | I54: 21500 | J54: 1848
D55: 2018-03-20 | E55: 1850 | F55: 1867 | G55: 1848 | H55: 1867 | I55: 13900 | J55: 1867
D56: 2018-03-22 | E56: 1871 | F56: 1888 | G56: 1867 | H56: 1880 | I56: 21900 | J56: 1880
D57: 2018-03-23 | E57: 1856 | F57: 1861 | G57: 1828 | H57: 1830 | I57: 30400 | J57: 1830
D58: 2018-03-26 | E58: 1828 | F58: 1831 | G58: 1803 | H58: 1827 | I58: 25600 | J58: 1827
D59: 2018-03-27 | E59: 1848 | F59: 1874 | G59: 1836 | H59: 1874 | I59: 19400 | J59: 1874
D60: 2018-03-28 | E60: 1868 | F60: 1915 | G60: 1868 | H60: 1901 | I60: 22800 | J60: 1901
D61: 2018-03-29 | E61: 1910 | F61: 1910 | G61: 1883 | H61: 1899 | I61: 23300 | J61: 1899
D62: 2018-03-30 | E62: 1899 | F62: 1909 | G62: 1891 | H62: 1904 | I62: 13900 | J62: 1904

Sheet 7893
A1: 証券コード | B1: 会社名
A2: 7893 | B2: プロネクサス
A3: 市場 | B3: 市場第一部（内国株） | D3: 日付 | E3: 始値 | F3: 高値 | G3: 安値 | H3: 終値 | I3: 出来高 | J3: 調整後終値*
A4: 相続日 | B4: 2018-03-22 | D4: 2018-01-04 | E4: 1578 | F4: 1604 | G4: 1578 | H4: 1597 | I4: 19200 | J4: 1597
A5: 相続日の終値 | B5: 1277 | D5: 2018-01-05 | E5: 1601 | F5: 1610 | G5: 1507 | H5: 1563 | I5: 29300 | J5: 1563
A6: 相続当月の終値の平均 | B6: 1277.238095 | D6: 2018-01-09 | E6: 1570 | F6: 1570 | G6: 1538 | H6: 1544 | I6: 13900 | J6: 1544
A7: 相続前月の終値の平均 | B7: 1346.210526 | D7: 2018-01-10 | E7: 1545 | F7: 1545 | G7: 1510 | H7: 1524 | I7: 8500 | J7: 1524
A8: 相続前々月の終値の平均 | B8: 1518.684211 | D8: 2018-01-11 | E8: 1518 | F8: 1530 | G8: 1518 | H8: 1521 | I8: 6200 | J8: 1521
A9: ４つのうちの最低額 | B9: =ROUNDDOWN(MIN(B5:B8),0) -> 1277 | D9: 2018-01-12 | E9: 1518 | F9: 1518 | G9: 1477 | H9: 1484 | I9: 17800 | J9: 1484
D10: 2018-01-15 | E10: 1492 | F10: 1501 | G10: 1492 | H10: 1499 | I10: 6400 | J10: 1499
D11: 2018-01-16 | E11: 1509 | F11: 1518 | G11: 1505 | H11: 1511 | I11: 7300 | J11: 1511
D12: 2018-01-17 | E12: 1500 | F12: 1521 | G12: 1500 | H12: 1515 | I12: 12400 | J12: 1515
D13: 2018-01-18 | E13: 1527 | F13: 1537 | G13: 1513 | H13: 1513 | I13: 13000 | J13: 1513
D14: 2018-01-19 | E14: 1517 | F14: 1520 | G14: 1503 | H14: 1507 | I14: 5000 | J14: 1507
D15: 2018-01-22 | E15: 1510 | F15: 1522 | G15: 1510 | H15: 1520 | I15: 11100 | J15: 1520
D16: 2018-01-23 | E16: 1523 | F16: 1528 | G16: 1521 | H16: 1521 | I16: 4600 | J16: 1521
D17: 2018-01-24 | E17: 1521 | F17: 1537 | G17: 1521 | H17: 1527 | I17: 10000 | J17: 1527
D18: 2018-01-25 | E18: 1532 | F18: 1532 | G18: 1516 | H18: 1516 | I18: 9900 | J18: 1516
D19: 2018-01-26 | E19: 1516 | F19: 1528 | G19: 1516 | H19: 1521 | I19: 9700 | J19: 1521
D20: 2018-01-29 | E20: 1524 | F20: 1534 | G20: 1500 | H20: 1502 | I20: 7800 | J20: 1502
D21: 2018-01-30 | E21: 1528 | F21: 1528 | G21: 1489 | H21: 1501 | I21: 22200 | J21: 1501
D22: 2018-01-31 | E22: 1490 | F22: 1505 | G22: 1455 | H22: 1469 | I22: 26200 | J22: 1469
D23: 2018-02-01 | E23: 1488 | F23: 1522 | G23: 1488 | H23: 1510 | I23: 22200 | J23: 1510
D24: 2018-02-02 | E24: 1501 | F24: 1505 | G24: 1479 | H24: 1494 | I24: 11800 | J24: 1494
D25: 2018-02-05 | E25: 1477 | F25: 1485 | G25: 1427 | H25: 1428 | I25: 18600 | J25: 1428
D26: 2018-02-06 | E26: 1390 | F26: 1409 | G26: 1322 | H26: 1339 | I26: 35500 | J26: 1339
D27: 2018-02-07 | E27: 1380 | F27: 1403 | G27: 1341 | H27: 1343 | I27: 24100 | J27: 1343
D28: 2018-02-08 | E28: 1340 | F28: 1369 | G28: 1331 | H28: 1331 | I28: 21400 | J28: 1331
D29: 2018-02-09 | E29: 1301 | F29: 1345 | G29: 1301 | H29: 1313 | I29: 32300 | J29: 1313
D30: 2018-02-13 | E30: 1326 | F30: 1348 | G30: 1317 | H30: 1317 | I30: 13300 | J30: 1317
D31: 2018-02-14 | E31: 1320 | F31: 1330 | G31: 1290 | H31: 1292 | I31: 14600 | J31: 1292
D32: 2018-02-15 | E32: 1314 | F32: 1333 | G32: 1300 | H32: 1301 | I32: 13500 | J32: 1301
D33: 2018-02-16 | E33: 1329 | F33: 1347 | G33: 1294 | H33: 1298 | I33: 25200 | J33: 1298
D34: 2018-02-19 | E34: 1326 | F34: 1326 | G34: 1297 | H34: 1313 | I34: 21800 | J34: 1313
D35: 2018-02-20 | E35: 1320 | F35: 1325 | G35: 1312 | H35: 1316 | I35: 6500 | J35: 1316
D36: 2018-02-21 | E36: 1322 | F36: 1329 | G36: 1308 | H36: 1309 | I36: 8000 | J36: 1309
D37: 2018-02-22 | E37: 1309 | F37: 1318 | G37: 1306 | H37: 1315 | I37: 10700 | J37: 1315
D38: 2018-02-23 | E38: 1319 | F38: 1325 | G38: 1310 | H38: 1317 | I38: 6200 | J38: 1317
D39: 2018-02-26 | E39: 1338 | F39: 1342 | G39: 1322 | H39: 1328 | I39: 26200 | J39: 1328
D40: 2018-02-27 | E40: 1352 | F40: 1366 | G40: 1332 | H40: 1357 | I40: 12800 | J40: 1357
D41: 2018-02-28 | E41: 1360 | F41: 1373 | G41: 1349 | H41: 1357 | I41: 25000 | J41: 1357
D42: 2018-03-01 | E42: 1358 | F42: 1358 | G42: 1311 | H42: 1314 | I42: 14200 | J42: 1314
D43: 2018-03-02 | E43: 1299 | F43: 1316 | G43: 1282 | H43: 1292 | I43: 24800 | J43: 1292
D44: 2018-03-05 | E44: 1286 | F44: 1290 | G44: 1270 | H44: 1274 | I44: 21200 | J44: 1274
D45: 2018-03-06 | E45: 1279 | F45: 1295 | G45: 1271 | H45: 1274 | I45: 14300 | J45: 1274
D46: 2018-03-07 | E46: 1274 | F46: 1284 | G46: 1260 | H46: 1263 | I46: 13200 | J46: 1263
D47: 2018-03-08 | E47: 1264 | F47: 1274 | G47: 1245 | H47: 1252 | I47: 21900 | J47: 1252
D48: 2018-03-09 | E48: 1269 | F48: 1276 | G48: 1246 | H48: 1248 | I48: 21000 | J48: 1248
D49: 2018-03-12 | E49: 1256 | F49: 1271 | G49: 1251 | H49: 1256 | I49: 10800 | J49: 1256
D50: 2018-03-13 | E50: 1257 | F50: 1294 | G50: 1253 | H50: 1293 | I50: 10300 | J50: 1293
D51: 2018-03-14 | E51: 1278 | F51: 1290 | G51: 1276 | H51: 1283 | I51: 6600 | J51: 1283
D52: 2018-03-15 | E52: 1286 | F52: 1286 | G52: 1272 | H52: 1281 | I52: 6700 | J52: 1281
D53: 2018-03-16 | E53: 1281 | F53: 1310 | G53: 1281 | H53: 1306 | I53: 14600 | J53: 1306
D54: 2018-03-19 | E54: 1306 | F54: 1306 | G54: 1270 | H54: 1276 | I54: 23200 | J54: 1276
D55: 2018-03-20 | E55: 1276 | F55: 1276 | G55: 1262 | H55: 1269 | I55: 11400 | J55: 1269
D56: 2018-03-22 | E56: 1269 | F56: 1281 | G56: 1269 | H56: 1277 | I56: 8000 | J56: 1277
D57: 2018-03-23 | E57: 1251 | F57: 1257 | G57: 1226 | H57: 1237 | I57: 28100 | J57: 1237
D58: 2018-03-26 | E58: 1255 | F58: 1269 | G58: 1225 | H58: 1260 | I58: 34100 | J58: 1260
D59: 2018-03-27 | E59: 1266 | F59: 1312 | G59: 1261 | H59: 1311 | I59: 31400 | J59: 1311
D60: 2018-03-28 | E60: 1272 | F60: 1272 | G60: 1240 | H60: 1267 | I60: 16300 | J60: 1267
D61: 2018-03-29 | E61: 1284 | F61: 1297 | G61: 1264 | H61: 1294 | I61: 13300 | J61: 1294
D62: 2018-03-30 | E62: 1305 | F62: 1305 | G62: 1289 | H62: 1295 | I62: 13200 | J62: 1295

Sheet 7846
A1: 証券コード | B1: 会社名
A2: 7846 | B2: パイロットコーポレーション
A3: 市場 | B3: 市場第一部（内国株） | D3: 日付 | E3: 始値 | F3: 高値 | G3: 安値 | H3: 終値 | I3: 出来高 | J3: 調整後終値*
A4: 相続日 | B4: 2018-03-22 | D4: 2018-01-04 | E4: 5520 | F4: 5530 | G4: 5430 | H4: 5490 | I4: 65700 | J4: 5490
A5: 相続日の終値 | B5: 5980 | D5: 2018-01-05 | E5: 5520 | F5: 5590 | G5: 5500 | H5: 5590 | I5: 67200 | J5: 5590
A6: 相続当月の終値の平均 | B6: 5829.52381 | D6: 2018-01-09 | E6: 5590 | F6: 5690 | G6: 5560 | H6: 5680 | I6: 74000 | J6: 5680
A7: 相続前月の終値の平均 | B7: 5378.947368 | D7: 2018-01-10 | E7: 5700 | F7: 5700 | G7: 5580 | H7: 5600 | I7: 69100 | J7: 5600
A8: 相続前々月の終値の平均 | B8: 5581.052632 | D8: 2018-01-11 | E8: 5610 | F8: 5610 | G8: 5520 | H8: 5550 | I8: 42800 | J8: 5550
A9: ４つのうちの最低額 | B9: =ROUNDDOWN(MIN(B5:B8),0) -> 5378 | D9: 2018-01-12 | E9: 5550 | F9: 5570 | G9: 5520 | H9: 5520 | I9: 43000 | J9: 5520
D10: 2018-01-15 | E10: 5570 | F10: 5600 | G10: 5540 | H10: 5550 | I10: 20000 | J10: 5550
D11: 2018-01-16 | E11: 5540 | F11: 5630 | G11: 5540 | H11: 5600 | I11: 36300 | J11: 5600
D12: 2018-01-17 | E12: 5550 | F12: 5610 | G12: 5550 | H12: 5590 | I12: 34100 | J12: 5590
D13: 2018-01-18 | E13: 5650 | F13: 5670 | G13: 5580 | H13: 5580 | I13: 61800 | J13: 5580
D14: 2018-01-19 | E14: 5590 | F14: 5630 | G14: 5540 | H14: 5570 | I14: 36200 | J14: 5570
D15: 2018-01-22 | E15: 5560 | F15: 5580 | G15: 5530 | H15: 5570 | I15: 28700 | J15: 5570
D16: 2018-01-23 | E16: 5570 | F16: 5670 | G16: 5570 | H16: 5660 | I16: 32400 | J16: 5660
D17: 2018-01-24 | E17: 5650 | F17: 5720 | G17: 5650 | H17: 5660 | I17: 33100 | J17: 5660
D18: 2018-01-25 | E18: 5620 | F18: 5650 | G18: 5600 | H18: 5630 | I18: 26800 | J18: 5630
D19: 2018-01-26 | E19: 5680 | F19: 5680 | G19: 5610 | H19: 5630 | I19: 24600 | J19: 5630
D20: 2018-01-29 | E20: 5620 | F20: 5640 | G20: 5580 | H20: 5590 | I20: 25500 | J20: 5590
D21: 2018-01-30 | E21: 5590 | F21: 5680 | G21: 5570 | H21: 5570 | I21: 71500 | J21: 5570
D22: 2018-01-31 | E22: 5550 | F22: 5580 | G22: 5390 | H22: 5410 | I22: 77600 | J22: 5410
D23: 2018-02-01 | E23: 5410 | F23: 5620 | G23: 5410 | H23: 5560 | I23: 91900 | J23: 5560
D24: 2018-02-02 | E24: 5510 | F24: 5540 | G24: 5470 | H24: 5510 | I24: 51700 | J24: 5510
D25: 2018-02-05 | E25: 5410 | F25: 5450 | G25: 5330 | H25: 5330 | I25: 48400 | J25: 5330
D26: 2018-02-06 | E26: 5160 | F26: 5160 | G26: 4930 | H26: 5010 | I26: 88600 | J26: 5010
D27: 2018-02-07 | E27: 5160 | F27: 5260 | G27: 5060 | H27: 5060 | I27: 66100 | J27: 5060
D28: 2018-02-08 | E28: 5070 | F28: 5160 | G28: 5040 | H28: 5140 | I28: 69900 | J28: 5140
D29: 2018-02-09 | E29: 4960 | F29: 5020 | G29: 4925 | H29: 4970 | I29: 66100 | J29: 4970
D30: 2018-02-13 | E30: 5000 | F30: 5100 | G30: 4975 | H30: 5000 | I30: 66900 | J30: 5000
D31: 2018-02-14 | E31: 5200 | F31: 5410 | G31: 5110 | H31: 5350 | I31: 126800 | J31: 5350
D32: 2018-02-15 | E32: 5400 | F32: 5400 | G32: 5250 | H32: 5280 | I32: 69700 | J32: 5280
D33: 2018-02-16 | E33: 5330 | F33: 5510 | G33: 5300 | H33: 5440 | I33: 84400 | J33: 5440
D34: 2018-02-19 | E34: 5490 | F34: 5590 | G34: 5460 | H34: 5590 | I34: 62500 | J34: 5590
D35: 2018-02-20 | E35: 5590 | F35: 5600 | G35: 5460 | H35: 5520 | I35: 63800 | J35: 5520
D36: 2018-02-21 | E36: 5530 | F36: 5550 | G36: 5450 | H36: 5510 | I36: 39400 | J36: 5510
D37: 2018-02-22 | E37: 5430 | F37: 5500 | G37: 5410 | H37: 5480 | I37: 50300 | J37: 5480
D38: 2018-02-23 | E38: 5480 | F38: 5550 | G38: 5450 | H38: 5540 | I38: 35700 | J38: 5540
D39: 2018-02-26 | E39: 5550 | F39: 5640 | G39: 5530 | H39: 5580 | I39: 45200 | J39: 5580
D40: 2018-02-27 | E40: 5650 | F40: 5660 | G40: 5570 | H40: 5590 | I40: 44400 | J40: 5590
D41: 2018-02-28 | E41: 5610 | F41: 5820 | G41: 5590 | H41: 5740 | I41: 130500 | J41: 5740
D42: 2018-03-01 | E42: 5720 | F42: 5750 | G42: 5660 | H42: 5680 | I42: 75900 | J42: 5680
D43: 2018-03-02 | E43: 5530 | F43: 5660 | G43: 5530 | H43: 5620 | I43: 73700 | J43: 5620
D44: 2018-03-05 | E44: 5630 | F44: 5660 | G44: 5570 | H44: 5650 | I44: 64800 | J44: 5650
D45: 2018-03-06 | E45: 5660 | F45: 5830 | G45: 5660 | H45: 5810 | I45: 78500 | J45: 5810
D46: 2018-03-07 | E46: 5750 | F46: 5840 | G46: 5710 | H46: 5810 | I46: 79200 | J46: 5810
D47: 2018-03-08 | E47: 5850 | F47: 5850 | G47: 5700 | H47: 5750 | I47: 90700 | J47: 5750
D48: 2018-03-09 | E48: 5850 | F48: 5900 | G48: 5720 | H48: 5760 | I48: 120900 | J48: 5760
D49: 2018-03-12 | E49: 5850 | F49: 5850 | G49: 5780 | H49: 5840 | I49: 39400 | J49: 5840
D50: 2018-03-13 | E50: 5850 | F50: 6000 | G50: 5790 | H50: 5990 | I50: 72600 | J50: 5990
D51: 2018-03-14 | E51: 5940 | F51: 5970 | G51: 5850 | H51: 5900 | I51: 58500 | J51: 5900
D52: 2018-03-15 | E52: 5920 | F52: 5920 | G52: 5800 | H52: 5850 | I52: 45100 | J52: 5850
D53: 2018-03-16 | E53: 5870 | F53: 5950 | G53: 5840 | H53: 5930 | I53: 61400 | J53: 5930
D54: 2018-03-19 | E54: 5920 | F54: 6020 | G54: 5910 | H54: 6000 | I54: 72800 | J54: 6000
D55: 2018-03-20 | E55: 5980 | F55: 6010 | G55: 5910 | H55: 5990 | I55: 48500 | J55: 5990
D56: 2018-03-22 | E56: 6000 | F56: 6050 | G56: 5930 | H56: 5980 | I56: 88000 | J56: 5980
D57: 2018-03-23 | E57: 5880 | F57: 5880 | G57: 5680 | H57: 5700 | I57: 97000 | J57: 5700
D58: 2018-03-26 | E58: 5740 | F58: 5740 | G58: 5580 | H58: 5670 | I58: 75900 | J58: 5670
D59: 2018-03-27 | E59: 5720 | F59: 5840 | G59: 5690 | H59: 5840 | I59: 81500 | J59: 5840
D60: 2018-03-28 | E60: 5840 | F60: 5840 | G60: 5740 | H60: 5830 | I60: 52300 | J60: 5830
D61: 2018-03-29 | E61: 5890 | F61: 5940 | G61: 5830 | H61: 5890 | I61: 62000 | J61: 5890
D62: 2018-03-30 | E62: 5960 | F62: 5960 | G62: 5860 | H62: 5930 | I62: 36700 | J62: 5930

Sheet 7832
A1: 証券コード | B1: 会社名
A2: 7832 | B2: バンダイナムコホールディングス
A3: 市場 | B3: 市場第一部（内国株） | D3: 日付 | E3: 始値 | F3: 高値 | G3: 安値 | H3: 終値 | I3: 出来高 | J3: 調整後終値*
A4: 相続日 | B4: 2018-03-22 | D4: 2018-01-04 | E4: 3800 | F4: 3850 | G4: 3755 | H4: 3815 | I4: 1066400 | J4: 3815
A5: 相続日の終値 | B5: 3520 | D5: 2018-01-05 | E5: 3850 | F5: 3875 | G5: 3800 | H5: 3845 | I5: 720500 | J5: 3845
A6: 相続当月の終値の平均 | B6: 3464.761905 | D6: 2018-01-09 | E6: 3860 | F6: 3860 | G6: 3785 | H6: 3830 | I6: 837100 | J6: 3830
A7: 相続前月の終値の平均 | B7: 3478.157895 | D7: 2018-01-10 | E7: 3850 | F7: 3895 | G7: 3800 | H7: 3830 | I7: 597900 | J7: 3830
A8: 相続前々月の終値の平均 | B8: 3710 | D8: 2018-01-11 | E8: 3810 | F8: 3830 | G8: 3770 | H8: 3820 | I8: 814200 | J8: 3820
A9: ４つのうちの最低額 | B9: =ROUNDDOWN(MIN(B5:B8),0) -> 3464 | D9: 2018-01-12 | E9: 3810 | F9: 3835 | G9: 3755 | H9: 3765 | I9: 793800 | J9: 3765
D10: 2018-01-15 | E10: 3780 | F10: 3795 | G10: 3730 | H10: 3735 | I10: 518400 | J10: 3735
D11: 2018-01-16 | E11: 3755 | F11: 3770 | G11: 3730 | H11: 3745 | I11: 557400 | J11: 3745
D12: 2018-01-17 | E12: 3730 | F12: 3760 | G12: 3710 | H12: 3710 | I12: 695100 | J12: 3710
D13: 2018-01-18 | E13: 3745 | F13: 3775 | G13: 3705 | H13: 3705 | I13: 732000 | J13: 3705
D14: 2018-01-19 | E14: 3720 | F14: 3745 | G14: 3690 | H14: 3705 | I14: 456000 | J14: 3705
D15: 2018-01-22 | E15: 3710 | F15: 3720 | G15: 3670 | H15: 3690 | I15: 461100 | J15: 3690
D16: 2018-01-23 | E16: 3690 | F16: 3700 | G16: 3630 | H16: 3645 | I16: 1194600 | J16: 3645
D17: 2018-01-24 | E17: 3640 | F17: 3715 | G17: 3635 | H17: 3670 | I17: 1624900 | J17: 3670
D18: 2018-01-25 | E18: 3670 | F18: 3680 | G18: 3645 | H18: 3650 | I18: 572900 | J18: 3650
D19: 2018-01-26 | E19: 3665 | F19: 3675 | G19: 3630 | H19: 3635 | I19: 700100 | J19: 3635
D20: 2018-01-29 | E20: 3650 | F20: 3655 | G20: 3605 | H20: 3610 | I20: 1131300 | J20: 3610
D21: 2018-01-30 | E21: 3610 | F21: 3620 | G21: 3515 | H21: 3525 | I21: 1010700 | J21: 3525
D22: 2018-01-31 | E22: 3560 | F22: 3615 | G22: 3550 | H22: 3560 | I22: 1338500 | J22: 3560
D23: 2018-02-01 | E23: 3565 | F23: 3575 | G23: 3505 | H23: 3530 | I23: 738600 | J23: 3530
D24: 2018-02-02 | E24: 3505 | F24: 3535 | G24: 3495 | H24: 3510 | I24: 812100 | J24: 3510
D25: 2018-02-05 | E25: 3440 | F25: 3455 | G25: 3400 | H25: 3420 | I25: 1005900 | J25: 3420
D26: 2018-02-06 | E26: 3325 | F26: 3355 | G26: 3230 | H26: 3265 | I26: 2120700 | J26: 3265
D27: 2018-02-07 | E27: 3370 | F27: 3410 | G27: 3335 | H27: 3335 | I27: 1869900 | J27: 3335
D28: 2018-02-08 | E28: 3345 | F28: 3395 | G28: 3285 | H28: 3310 | I28: 1520100 | J28: 3310
D29: 2018-02-09 | E29: 3260 | F29: 3665 | G29: 3245 | H29: 3620 | I29: 4957300 | J29: 3620
D30: 2018-02-13 | E30: 3550 | F30: 3600 | G30: 3445 | H30: 3495 | I30: 2470800 | J30: 3495
D31: 2018-02-14 | E31: 3500 | F31: 3500 | G31: 3380 | H31: 3410 | I31: 1254700 | J31: 3410
D32: 2018-02-15 | E32: 3400 | F32: 3420 | G32: 3355 | H32: 3395 | I32: 1157400 | J32: 3395
D33: 2018-02-16 | E33: 3395 | F33: 3495 | G33: 3395 | H33: 3485 | I33: 813400 | J33: 3485
D34: 2018-02-19 | E34: 3545 | F34: 3615 | G34: 3515 | H34: 3610 | I34: 908000 | J34: 3610
D35: 2018-02-20 | E35: 3565 | F35: 3605 | G35: 3510 | H35: 3570 | I35: 731500 | J35: 3570
D36: 2018-02-21 | E36: 3575 | F36: 3595 | G36: 3545 | H36: 3575 | I36: 533500 | J36: 3575
D37: 2018-02-22 | E37: 3510 | F37: 3520 | G37: 3465 | H37: 3475 | I37: 848700 | J37: 3475
D38: 2018-02-23 | E38: 3485 | F38: 3515 | G38: 3435 | H38: 3505 | I38: 614600 | J38: 3505
D39: 2018-02-26 | E39: 3540 | F39: 3560 | G39: 3495 | H39: 3545 | I39: 603800 | J39: 3545
D40: 2018-02-27 | E40: 3575 | F40: 3580 | G40: 3540 | H40: 3565 | I40: 561000 | J40: 3565
D41: 2018-02-28 | E41: 3585 | F41: 3610 | G41: 3465 | H41: 3465 | I41: 1012200 | J41: 3465
D42: 2018-03-01 | E42: 3445 | F42: 3490 | G42: 3415 | H42: 3480 | I42: 923500 | J42: 3480
D43: 2018-03-02 | E43: 3420 | F43: 3435 | G43: 3405 | H43: 3420 | I43: 545400 | J43: 3420
D44: 2018-03-05 | E44: 3375 | F44: 3395 | G44: 3320 | H44: 3330 | I44: 901000 | J44: 3330
D45: 2018-03-06 | E45: 3380 | F45: 3435 | G45: 3380 | H45: 3410 | I45: 708000 | J45: 3410
D46: 2018-03-07 | E46: 3375 | F46: 3480 | G46: 3370 | H46: 3465 | I46: 1558600 | J46: 3465
D47: 2018-03-08 | E47: 3480 | F47: 3530 | G47: 3460 | H47: 3490 | I47: 1027800 | J47: 3490
D48: 2018-03-09 | E48: 3520 | F48: 3540 | G48: 3415 | H48: 3440 | I48: 1066100 | J48: 3440
D49: 2018-03-12 | E49: 3475 | F49: 3485 | G49: 3410 | H49: 3425 | I49: 592200 | J49: 3425
D50: 2018-03-13 | E50: 3420 | F50: 3465 | G50: 3415 | H50: 3460 | I50: 563500 | J50: 3460
D51: 2018-03-14 | E51: 3410 | F51: 3415 | G51: 3375 | H51: 3400 | I51: 744600 | J51: 3400
D52: 2018-03-15 | E52: 3445 | F52: 3490 | G52: 3410 | H52: 3480 | I52: 926900 | J52: 3480
D53: 2018-03-16 | E53: 3550 | F53: 3630 | G53: 3545 | H53: 3620 | I53: 1731500 | J53: 3620
D54: 2018-03-19 | E54: 3620 | F54: 3630 | G54: 3560 | H54: 3590 | I54: 1064600 | J54: 3590
D55: 2018-03-20 | E55: 3565 | F55: 3615 | G55: 3515 | H55: 3570 | I55: 1005200 | J55: 3570
D56: 2018-03-22 | E56: 3525 | F56: 3545 | G56: 3450 | H56: 3520 | I56: 1396900 | J56: 3520
D57: 2018-03-23 | E57: 3475 | F57: 3495 | G57: 3410 | H57: 3420 | I57: 1211200 | J57: 3420
D58: 2018-03-26 | E58: 3400 | F58: 3425 | G58: 3385 | H58: 3425 | I58: 925500 | J58: 3425
D59: 2018-03-27 | E59: 3435 | F59: 3500 | G59: 3435 | H59: 3500 | I59: 1460600 | J59: 3500
D60: 2018-03-28 | E60: 3355 | F60: 3420 | G60: 3355 | H60: 3420 | I60: 992900 | J60: 3420
D61: 2018-03-29 | E61: 3405 | F61: 3430 | G61: 3360 | H61: 3400 | I61: 982400 | J61: 3400
D62: 2018-03-30 | E62: 3445 | F62: 3515 | G62: 3440 | H62: 3495 | I62: 1053500 | J62: 3495

Sheet 7762
A1: 証券コード | B1: 会社名
A2: 7762 | B2: シチズンホールディングス
A3: 市場 | B3: 市場第一部（内国株） | D3: 日付 | E3: 始値 | F3: 高値 | G3: 安値 | H3: 終値 | I3: 出来高 | J3: 調整後終値*
A4: 相続日 | B4: 2018-03-22 | D4: 2018-01-04 | E4: 838 | F4: 844 | G4: 833 | H4: 843 | I4: 1428400 | J4: 843
A5: 相続日の終値 | B5: 780 | D5: 2018-01-05 | E5: 853 | F5: 862 | G5: 852 | H5: 859 | I5: 1245600 | J5: 859
A6: 相続当月の終値の平均 | B6: 769 | D6: 2018-01-09 | E6: 864 | F6: 875 | G6: 860 | H6: 864 | I6: 1311100 | J6: 864
A7: 相続前月の終値の平均 | B7: 813.5263158 | D7: 2018-01-10 | E7: 862 | F7: 868 | G7: 860 | H7: 864 | I7: 1169800 | J7: 864
A8: 相続前々月の終値の平均 | B8: 860.4210526 | D8: 2018-01-11 | E8: 864 | F8: 886 | G8: 864 | H8: 881 | I8: 2237900 | J8: 881
A9: ４つのうちの最低額 | B9: =ROUNDDOWN(MIN(B5:B8),0) -> 769 | D9: 2018-01-12 | E9: 882 | F9: 889 | G9: 869 | H9: 870 | I9: 1826900 | J9: 870
D10: 2018-01-15 | E10: 870 | F10: 877 | G10: 866 | H10: 868 | I10: 845300 | J10: 868
D11: 2018-01-16 | E11: 867 | F11: 870 | G11: 860 | H11: 865 | I11: 903000 | J11: 865
D12: 2018-01-17 | E12: 858 | F12: 859 | G12: 848 | H12: 849 | I12: 1430900 | J12: 849
D13: 2018-01-18 | E13: 858 | F13: 866 | G13: 849 | H13: 852 | I13: 1715300 | J13: 852
D14: 2018-01-19 | E14: 857 | F14: 864 | G14: 854 | H14: 863 | I14: 1316300 | J14: 863
D15: 2018-01-22 | E15: 861 | F15: 864 | G15: 850 | H15: 853 | I15: 972300 | J15: 853
D16: 2018-01-23 | E16: 856 | F16: 875 | G16: 856 | H16: 873 | I16: 1612700 | J16: 873
D17: 2018-01-24 | E17: 878 | F17: 880 | G17: 874 | H17: 877 | I17: 1611500 | J17: 877
D18: 2018-01-25 | E18: 877 | F18: 877 | G18: 859 | H18: 863 | I18: 1302300 | J18: 863
D19: 2018-01-26 | E19: 870 | F19: 875 | G19: 860 | H19: 864 | I19: 1479400 | J19: 864
D20: 2018-01-29 | E20: 861 | F20: 870 | G20: 856 | H20: 861 | I20: 1100500 | J20: 861
D21: 2018-01-30 | E21: 855 | F21: 861 | G21: 838 | H21: 845 | I21: 1481800 | J21: 845
D22: 2018-01-31 | E22: 841 | F22: 850 | G22: 833 | H22: 834 | I22: 1702300 | J22: 834
D23: 2018-02-01 | E23: 842 | F23: 851 | G23: 835 | H23: 849 | I23: 1296900 | J23: 849
D24: 2018-02-02 | E24: 845 | F24: 847 | G24: 830 | H24: 837 | I24: 1338600 | J24: 837
D25: 2018-02-05 | E25: 822 | F25: 823 | G25: 811 | H25: 815 | I25: 1599400 | J25: 815
D26: 2018-02-06 | E26: 791 | F26: 792 | G26: 750 | H26: 772 | I26: 3075300 | J26: 772
D27: 2018-02-07 | E27: 794 | F27: 794 | G27: 764 | H27: 766 | I27: 2007100 | J27: 766
D28: 2018-02-08 | E28: 765 | F28: 777 | G28: 761 | H28: 772 | I28: 1351700 | J28: 772
D29: 2018-02-09 | E29: 742 | F29: 756 | G29: 737 | H29: 755 | I29: 2489700 | J29: 755
D30: 2018-02-13 | E30: 844 | F30: 850 | G30: 802 | H30: 805 | I30: 5305600 | J30: 805
D31: 2018-02-14 | E31: 816 | F31: 844 | G31: 814 | H31: 820 | I31: 3390100 | J31: 820
D32: 2018-02-15 | E32: 821 | F32: 829 | G32: 816 | H32: 819 | I32: 1665000 | J32: 819
D33: 2018-02-16 | E33: 820 | F33: 837 | G33: 817 | H33: 830 | I33: 1339600 | J33: 830
D34: 2018-02-19 | E34: 838 | F34: 848 | G34: 834 | H34: 845 | I34: 957000 | J34: 845
D35: 2018-02-20 | E35: 842 | F35: 848 | G35: 834 | H35: 837 | I35: 1506000 | J35: 837
D36: 2018-02-21 | E36: 837 | F36: 842 | G36: 830 | H36: 836 | I36: 1251200 | J36: 836
D37: 2018-02-22 | E37: 825 | F37: 828 | G37: 809 | H37: 815 | I37: 1546200 | J37: 815
D38: 2018-02-23 | E38: 813 | F38: 820 | G38: 811 | H38: 817 | I38: 743300 | J38: 817
D39: 2018-02-26 | E39: 822 | F39: 831 | G39: 814 | H39: 814 | I39: 1170000 | J39: 814
D40: 2018-02-27 | E40: 829 | F40: 837 | G40: 824 | H40: 831 | I40: 1420400 | J40: 831
D41: 2018-02-28 | E41: 827 | F41: 834 | G41: 821 | H41: 822 | I41: 1241600 | J41: 822
D42: 2018-03-01 | E42: 820 | F42: 820 | G42: 801 | H42: 807 | I42: 1426500 | J42: 807
D43: 2018-03-02 | E43: 786 | F43: 788 | G43: 777 | H43: 783 | I43: 1702700 | J43: 783
D44: 2018-03-05 | E44: 774 | F44: 776 | G44: 762 | H44: 770 | I44: 1408000 | J44: 770
D45: 2018-03-06 | E45: 779 | F45: 791 | G45: 777 | H45: 779 | I45: 1074000 | J45: 779
D46: 2018-03-07 | E46: 774 | F46: 781 | G46: 767 | H46: 774 | I46: 1076500 | J46: 774
D47: 2018-03-08 | E47: 776 | F47: 776 | G47: 764 | H47: 768 | I47: 1251700 | J47: 768
D48: 2018-03-09 | E48: 776 | F48: 790 | G48: 766 | H48: 771 | I48: 2184000 | J48: 771
D49: 2018-03-12 | E49: 784 | F49: 789 | G49: 778 | H49: 786 | I49: 1016700 | J49: 786
D50: 2018-03-13 | E50: 783 | F50: 789 | G50: 777 | H50: 788 | I50: 1004900 | J50: 788
D51: 2018-03-14 | E51: 780 | F51: 786 | G51: 777 | H51: 781 | I51: 964100 | J51: 781
D52: 2018-03-15 | E52: 777 | F52: 781 | G52: 762 | H52: 780 | I52: 1129400 | J52: 780
D53: 2018-03-16 | E53: 785 | F53: 786 | G53: 770 | H53: 772 | I53: 1284900 | J53: 772
D54: 2018-03-19 | E54: 766 | F54: 768 | G54: 756 | H54: 766 | I54: 1001600 | J54: 766
D55: 2018-03-20 | E55: 764 | F55: 778 | G55: 764 | H55: 776 | I55: 1583300 | J55: 776
D56: 2018-03-22 | E56: 774 | F56: 781 | G56: 769 | H56: 780 | I56: 1499100 | J56: 780
D57: 2018-03-23 | E57: 748 | F57: 751 | G57: 736 | H57: 739 | I57: 2888300 | J57: 739
D58: 2018-03-26 | E58: 726 | F58: 729 | G58: 710 | H58: 729 | I58: 1932500 | J58: 729
D59: 2018-03-27 | E59: 739 | F59: 758 | G59: 737 | H59: 756 | I59: 1800800 | J59: 756
D60: 2018-03-28 | E60: 729 | F60: 739 | G60: 725 | H60: 739 | I60: 2162300 | J60: 739
D61: 2018-03-29 | E61: 748 | F61: 751 | G61: 732 | H61: 741 | I61: 1337700 | J61: 741
D62: 2018-03-30 | E62: 754 | F62: 769 | G62: 754 | H62: 764 | I62: 1648500 | J62: 764

Sheet 7732
A1: 証券コード | B1: 会社名
A2: 7732 | B2: トプコン
A3: 市場 | B3: 市場第一部（内国株） | D3: 日付 | E3: 始値 | F3: 高値 | G3: 安値 | H3: 終値 | I3: 出来高 | J3: 調整後終値*
A4: 相続日 | B4: 2018-03-22 | D4: 2018-01-04 | E4: 2483 | F4: 2525 | G4: 2472 | H4: 2521 | I4: 509100 | J4: 2521
A5: 相続日の終値 | B5: 2164 | D5: 2018-01-05 | E5: 2548 | F5: 2566 | G5: 2518 | H5: 2566 | I5: 453400 | J5: 2566
A6: 相続当月の終値の平均 | B6: 2202.380952 | D6: 2018-01-09 | E6: 2553 | F6: 2571 | G6: 2526 | H6: 2566 | I6: 454500 | J6: 2566
A7: 相続前月の終値の平均 | B7: 2432.736842 | D7: 2018-01-10 | E7: 2561 | F7: 2573 | G7: 2553 | H7: 2561 | I7: 279400 | J7: 2561
A8: 相続前々月の終値の平均 | B8: 2656.947368 | D8: 2018-01-11 | E8: 2546 | F8: 2573 | G8: 2526 | H8: 2573 | I8: 310200 | J8: 2573
A9: ４つのうちの最低額 | B9: =ROUNDDOWN(MIN(B5:B8),0) -> 2164 | D9: 2018-01-12 | E9: 2563 | F9: 2599 | G9: 2555 | H9: 2591 | I9: 353400 | J9: 2591
D10: 2018-01-15 | E10: 2632 | F10: 2633 | G10: 2596 | H10: 2598 | I10: 287400 | J10: 2598
D11: 2018-01-16 | E11: 2596 | F11: 2659 | G11: 2591 | H11: 2657 | I11: 402000 | J11: 2657
D12: 2018-01-17 | E12: 2630 | F12: 2699 | G12: 2613 | H12: 2692 | I12: 473500 | J12: 2692
D13: 2018-01-18 | E13: 2718 | F13: 2724 | G13: 2606 | H13: 2612 | I13: 502200 | J13: 2612
D14: 2018-01-19 | E14: 2630 | F14: 2639 | G14: 2575 | H14: 2604 | I14: 490900 | J14: 2604
D15: 2018-01-22 | E15: 2607 | F15: 2644 | G15: 2583 | H15: 2644 | I15: 294800 | J15: 2644
D16: 2018-01-23 | E16: 2656 | F16: 2695 | G16: 2646 | H16: 2693 | I16: 292200 | J16: 2693
D17: 2018-01-24 | E17: 2681 | F17: 2698 | G17: 2655 | H17: 2657 | I17: 367900 | J17: 2657
D18: 2018-01-25 | E18: 2628 | F18: 2704 | G18: 2613 | H18: 2685 | I18: 623000 | J18: 2685
D19: 2018-01-26 | E19: 2735 | F19: 2917 | G19: 2735 | H19: 2842 | I19: 1354400 | J19: 2842
D20: 2018-01-29 | E20: 2824 | F20: 2837 | G20: 2802 | H20: 2823 | I20: 352700 | J20: 2823
D21: 2018-01-30 | E21: 2840 | F21: 2879 | G21: 2799 | H21: 2822 | I21: 993000 | J21: 2822
D22: 2018-01-31 | E22: 2770 | F22: 2863 | G22: 2762 | H22: 2775 | I22: 898400 | J22: 2775
D23: 2018-02-01 | E23: 2770 | F23: 2792 | G23: 2748 | H23: 2761 | I23: 529300 | J23: 2761
D24: 2018-02-02 | E24: 2750 | F24: 2764 | G24: 2699 | H24: 2716 | I24: 600000 | J24: 2716
D25: 2018-02-05 | E25: 2601 | F25: 2667 | G25: 2588 | H25: 2595 | I25: 844000 | J25: 2595
D26: 2018-02-06 | E26: 2431 | F26: 2452 | G26: 2322 | H26: 2389 | I26: 816600 | J26: 2389
D27: 2018-02-07 | E27: 2460 | F27: 2483 | G27: 2390 | H27: 2393 | I27: 771900 | J27: 2393
D28: 2018-02-08 | E28: 2403 | F28: 2476 | G28: 2403 | H28: 2460 | I28: 509700 | J28: 2460
D29: 2018-02-09 | E29: 2346 | F29: 2384 | G29: 2326 | H29: 2384 | I29: 488500 | J29: 2384
D30: 2018-02-13 | E30: 2403 | F30: 2424 | G30: 2384 | H30: 2384 | I30: 571000 | J30: 2384
D31: 2018-02-14 | E31: 2378 | F31: 2394 | G31: 2324 | H31: 2344 | I31: 476600 | J31: 2344
D32: 2018-02-15 | E32: 2355 | F32: 2401 | G32: 2351 | H32: 2370 | I32: 318800 | J32: 2370
D33: 2018-02-16 | E33: 2403 | F33: 2426 | G33: 2373 | H33: 2410 | I33: 362700 | J33: 2410
D34: 2018-02-19 | E34: 2406 | F34: 2424 | G34: 2379 | H34: 2418 | I34: 443800 | J34: 2418
D35: 2018-02-20 | E35: 2420 | F35: 2423 | G35: 2364 | H35: 2372 | I35: 276400 | J35: 2372
D36: 2018-02-21 | E36: 2378 | F36: 2394 | G36: 2346 | H36: 2368 | I36: 313500 | J36: 2368
D37: 2018-02-22 | E37: 2341 | F37: 2353 | G37: 2310 | H37: 2335 | I37: 233500 | J37: 2335
D38: 2018-02-23 | E38: 2345 | F38: 2348 | G38: 2297 | H38: 2344 | I38: 339600 | J38: 2344
D39: 2018-02-26 | E39: 2378 | F39: 2378 | G39: 2330 | H39: 2354 | I39: 324300 | J39: 2354
D40: 2018-02-27 | E40: 2393 | F40: 2439 | G40: 2383 | H40: 2423 | I40: 364300 | J40: 2423
D41: 2018-02-28 | E41: 2411 | F41: 2434 | G41: 2399 | H41: 2402 | I41: 312000 | J41: 2402
D42: 2018-03-01 | E42: 2397 | F42: 2405 | G42: 2351 | H42: 2391 | I42: 397600 | J42: 2391
D43: 2018-03-02 | E43: 2320 | F43: 2324 | G43: 2286 | H43: 2293 | I43: 415200 | J43: 2293
D44: 2018-03-05 | E44: 2275 | F44: 2297 | G44: 2234 | H44: 2250 | I44: 412100 | J44: 2250
D45: 2018-03-06 | E45: 2281 | F45: 2334 | G45: 2280 | H45: 2292 | I45: 298200 | J45: 2292
D46: 2018-03-07 | E46: 2253 | F46: 2293 | G46: 2242 | H46: 2259 | I46: 265400 | J46: 2259
D47: 2018-03-08 | E47: 2284 | F47: 2292 | G47: 2233 | H47: 2291 | I47: 508900 | J47: 2291
D48: 2018-03-09 | E48: 2337 | F48: 2347 | G48: 2286 | H48: 2294 | I48: 402100 | J48: 2294
D49: 2018-03-12 | E49: 2350 | F49: 2359 | G49: 2295 | H49: 2313 | I49: 384800 | J49: 2313
D50: 2018-03-13 | E50: 2278 | F50: 2313 | G50: 2275 | H50: 2310 | I50: 360500 | J50: 2310
D51: 2018-03-14 | E51: 2300 | F51: 2322 | G51: 2281 | H51: 2310 | I51: 293900 | J51: 2310
D52: 2018-03-15 | E52: 2292 | F52: 2308 | G52: 2269 | H52: 2307 | I52: 172300 | J52: 2307
D53: 2018-03-16 | E53: 2301 | F53: 2302 | G53: 2241 | H53: 2254 | I53: 478900 | J53: 2254
D54: 2018-03-19 | E54: 2225 | F54: 2225 | G54: 2161 | H54: 2180 | I54: 625300 | J54: 2180
D55: 2018-03-20 | E55: 2153 | F55: 2155 | G55: 2123 | H55: 2154 | I55: 397100 | J55: 2154
D56: 2018-03-22 | E56: 2135 | F56: 2177 | G56: 2132 | H56: 2164 | I56: 531900 | J56: 2164
D57: 2018-03-23 | E57: 2056 | F57: 2058 | G57: 1982 | H57: 1996 | I57: 812800 | J57: 1996
D58: 2018-03-26 | E58: 1976 | F58: 1990 | G58: 1943 | H58: 1990 | I58: 606600 | J58: 1990
D59: 2018-03-27 | E59: 1999 | F59: 2041 | G59: 1986 | H59: 2038 | I59: 789400 | J59: 2038
D60: 2018-03-28 | E60: 2008 | F60: 2035 | G60: 1987 | H60: 2034 | I60: 391200 | J60: 2034
D61: 2018-03-29 | E61: 2067 | F61: 2097 | G61: 2029 | H61: 2053 | I61: 483900 | J61: 2053
D62: 2018-03-30 | E62: 2080 | F62: 2108 | G62: 2069 | H62: 2077 | I62: 491100 | J62: 2077

Sheet 7596
A1: 証券コード | B1: 会社名
A2: 7596 | B2: 魚力
A3: 市場 | B3: 市場第一部（内国株） | D3: 日付 | E3: 始値 | F3: 高値 | G3: 安値 | H3: 終値 | I3: 出来高 | J3: 調整後終値*
A4: 相続日 | B4: 2018-03-22 | D4: 2018-01-04 | E4: 1181 | F4: 1199 | G4: 1181 | H4: 1199 | I4: 30000 | J4: 1199
A5: 相続日の終値 | B5: 1363 | D5: 2018-01-05 | E5: 1200 | F5: 1203 | G5: 1195 | H5: 1199 | I5: 13700 | J5: 1199
A6: 相続当月の終値の平均 | B6: 1258.285714 | D6: 2018-01-09 | E6: 1200 | F6: 1205 | G6: 1200 | H6: 1203 | I6: 17200 | J6: 1203
A7: 相続前月の終値の平均 | B7: 1189.157895 | D7: 2018-01-10 | E7: 1203 | F7: 1230 | G7: 1202 | H7: 1229 | I7: 23500 | J7: 1229
A8: 相続前々月の終値の平均 | B8: 1215.368421 | D8: 2018-01-11 | E8: 1219 | F8: 1225 | G8: 1214 | H8: 1223 | I8: 15300 | J8: 1223
A9: ４つのうちの最低額 | B9: =ROUNDDOWN(MIN(B5:B8),0) -> 1189 | D9: 2018-01-12 | E9: 1223 | F9: 1244 | G9: 1223 | H9: 1240 | I9: 23800 | J9: 1240
D10: 2018-01-15 | E10: 1247 | F10: 1250 | G10: 1236 | H10: 1247 | I10: 14400 | J10: 1247
D11: 2018-01-16 | E11: 1240 | F11: 1251 | G11: 1237 | H11: 1238 | I11: 15100 | J11: 1238
D12: 2018-01-17 | E12: 1240 | F12: 1240 | G12: 1226 | H12: 1229 | I12: 13300 | J12: 1229
D13: 2018-01-18 | E13: 1239 | F13: 1240 | G13: 1215 | H13: 1218 | I13: 11600 | J13: 1218
D14: 2018-01-19 | E14: 1221 | F14: 1221 | G14: 1209 | H14: 1210 | I14: 8000 | J14: 1210
D15: 2018-01-22 | E15: 1211 | F15: 1213 | G15: 1204 | H15: 1208 | I15: 8100 | J15: 1208
D16: 2018-01-23 | E16: 1208 | F16: 1216 | G16: 1207 | H16: 1210 | I16: 4600 | J16: 1210
D17: 2018-01-24 | E17: 1212 | F17: 1220 | G17: 1208 | H17: 1210 | I17: 11600 | J17: 1210
D18: 2018-01-25 | E18: 1210 | F18: 1214 | G18: 1208 | H18: 1209 | I18: 5500 | J18: 1209
D19: 2018-01-26 | E19: 1212 | F19: 1223 | G19: 1212 | H19: 1218 | I19: 12200 | J19: 1218
D20: 2018-01-29 | E20: 1220 | F20: 1220 | G20: 1205 | H20: 1207 | I20: 6600 | J20: 1207
D21: 2018-01-30 | E21: 1207 | F21: 1207 | G21: 1200 | H21: 1203 | I21: 9700 | J21: 1203
D22: 2018-01-31 | E22: 1200 | F22: 1207 | G22: 1186 | H22: 1192 | I22: 13200 | J22: 1192
D23: 2018-02-01 | E23: 1207 | F23: 1211 | G23: 1194 | H23: 1206 | I23: 6500 | J23: 1206
D24: 2018-02-02 | E24: 1203 | F24: 1208 | G24: 1197 | H24: 1202 | I24: 5100 | J24: 1202
D25: 2018-02-05 | E25: 1200 | F25: 1204 | G25: 1192 | H25: 1193 | I25: 11300 | J25: 1193
D26: 2018-02-06 | E26: 1181 | F26: 1183 | G26: 1168 | H26: 1169 | I26: 22000 | J26: 1169
D27: 2018-02-07 | E27: 1163 | F27: 1187 | G27: 1163 | H27: 1163 | I27: 19000 | J27: 1163
D28: 2018-02-08 | E28: 1167 | F28: 1182 | G28: 1164 | H28: 1175 | I28: 11300 | J28: 1175
D29: 2018-02-09 | E29: 1160 | F29: 1166 | G29: 1156 | H29: 1161 | I29: 14500 | J29: 1161
D30: 2018-02-13 | E30: 1174 | F30: 1202 | G30: 1174 | H30: 1202 | I30: 19300 | J30: 1202
D31: 2018-02-14 | E31: 1210 | F31: 1210 | G31: 1185 | H31: 1187 | I31: 8500 | J31: 1187
D32: 2018-02-15 | E32: 1189 | F32: 1189 | G32: 1176 | H32: 1182 | I32: 10100 | J32: 1182
D33: 2018-02-16 | E33: 1185 | F33: 1197 | G33: 1173 | H33: 1180 | I33: 16400 | J33: 1180
D34: 2018-02-19 | E34: 1182 | F34: 1191 | G34: 1180 | H34: 1184 | I34: 5100 | J34: 1184
D35: 2018-02-20 | E35: 1190 | F35: 1190 | G35: 1175 | H35: 1181 | I35: 6300 | J35: 1181
D36: 2018-02-21 | E36: 1186 | F36: 1197 | G36: 1185 | H36: 1191 | I36: 9000 | J36: 1191
D37: 2018-02-22 | E37: 1191 | F37: 1202 | G37: 1177 | H37: 1201 | I37: 7100 | J37: 1201
D38: 2018-02-23 | E38: 1192 | F38: 1198 | G38: 1191 | H38: 1195 | I38: 5900 | J38: 1195
D39: 2018-02-26 | E39: 1199 | F39: 1209 | G39: 1196 | H39: 1209 | I39: 4400 | J39: 1209
D40: 2018-02-27 | E40: 1213 | F40: 1213 | G40: 1201 | H40: 1209 | I40: 4800 | J40: 1209
D41: 2018-02-28 | E41: 1207 | F41: 1210 | G41: 1204 | H41: 1204 | I41: 6600 | J41: 1204
D42: 2018-03-01 | E42: 1204 | F42: 1204 | G42: 1181 | H42: 1191 | I42: 6100 | J42: 1191
D43: 2018-03-02 | E43: 1190 | F43: 1191 | G43: 1169 | H43: 1169 | I43: 10400 | J43: 1169
D44: 2018-03-05 | E44: 1169 | F44: 1189 | G44: 1169 | H44: 1189 | I44: 5800 | J44: 1189
D45: 2018-03-06 | E45: 1190 | F45: 1193 | G45: 1184 | H45: 1191 | I45: 3900 | J45: 1191
D46: 2018-03-07 | E46: 1191 | F46: 1200 | G46: 1182 | H46: 1186 | I46: 7600 | J46: 1186
D47: 2018-03-08 | E47: 1184 | F47: 1184 | G47: 1170 | H47: 1172 | I47: 3800 | J47: 1172
D48: 2018-03-09 | E48: 1185 | F48: 1187 | G48: 1174 | H48: 1181 | I48: 12500 | J48: 1181
D49: 2018-03-12 | E49: 1195 | F49: 1195 | G49: 1181 | H49: 1192 | I49: 5800 | J49: 1192
D50: 2018-03-13 | E50: 1192 | F50: 1203 | G50: 1188 | H50: 1202 | I50: 4100 | J50: 1202
D51: 2018-03-14 | E51: 1207 | F51: 1207 | G51: 1168 | H51: 1183 | I51: 12600 | J51: 1183
D52: 2018-03-15 | E52: 1183 | F52: 1183 | G52: 1171 | H52: 1174 | I52: 4800 | J52: 1174
D53: 2018-03-16 | E53: 1186 | F53: 1187 | G53: 1178 | H53: 1180 | I53: 3800 | J53: 1180
D54: 2018-03-19 | E54: 1176 | F54: 1183 | G54: 1166 | H54: 1173 | I54: 6600 | J54: 1173
D55: 2018-03-20 | E55: 1350 | F55: 1356 | G55: 1302 | H55: 1338 | I55: 241800 | J55: 1338
D56: 2018-03-22 | E56: 1368 | F56: 1441 | G56: 1353 | H56: 1363 | I56: 246200 | J56: 1363
D57: 2018-03-23 | E57: 1363 | F57: 1400 | G57: 1331 | H57: 1394 | I57: 90400 | J57: 1394
D58: 2018-03-26 | E58: 1400 | F58: 1444 | G58: 1380 | H58: 1392 | I58: 63000 | J58: 1392
D59: 2018-03-27 | E59: 1420 | F59: 1440 | G59: 1393 | H59: 1398 | I59: 37100 | J59: 1398
D60: 2018-03-28 | E60: 1352 | F60: 1402 | G60: 1330 | H60: 1394 | I60: 38300 | J60: 1394
D61: 2018-03-29 | E61: 1387 | F61: 1392 | G61: 1379 | H61: 1387 | I61: 20400 | J61: 1387
D62: 2018-03-30 | E62: 1390 | F62: 1395 | G62: 1366 | H62: 1375 | I62: 22100 | J62: 1375

Sheet 証券コード一覧
A1: 証券コード一覧表
A5: 証券コード | B5: 会社名 | C5: 市場
A6: 1301 | B6: 極洋 | C6: 市場第一部（内国株）
A7: 1305 | B7: ダイワ上場投信－トピックス | C7: ETF・ETN
A8: 1306 | B8: ＴＯＰＩＸ連動型上場投資信託 | C8: ETF・ETN
A9: 1308 | B9: 上場インデックスファンドＴＯＰＩＸ | C9: ETF・ETN
A10: 1309 | B10: 上海株式指数・上証５０連動型上場投資信託 | C10: ETF・ETN
A11: 1310 | B11: ダイワ上場投信－トピックス・コア３０ | C11: ETF・ETN
A12: 1311 | B12: ＴＯＰＩＸ Ｃｏｒｅ ３０ 連動型上場投資信託 | C12: ETF・ETN
A13: 1312 | B13: ラッセル野村小型コア・インデックス連動型上場投資信託 | C13: ETF・ETN
A14: 1313 | B14: サムスンＫＯＤＥＸ２００証券上場指数投資信託［株式］ | C14: ETF・ETN
A15: 1314 | B15: 上場インデックスファンドＳ＆Ｐ日本新興株１００ | C15: ETF・ETN
A16: 1319 | B16: 日経３００株価指数連動型上場投資信託 | C16: ETF・ETN
A17: 1320 | B17: ダイワ上場投信－日経２２５ | C17: ETF・ETN
A18: 1321 | B18: 日経２２５連動型上場投資信託 | C18: ETF・ETN
A19: 1322 | B19: 上場インデックスファンド中国Ａ株（パンダ）ＣＳＩ３００ | C19: ETF・ETN
A20: 1323 | B20: ＮＥＸＴ ＦＵＮＤＳ 南アフリカ株式指数・ＦＴＳＥ／ＪＳＥ Ａｆｒｉｃａ Ｔｏｐ４０連動型上場投信 | C20: ETF・ETN
A21: 1324 | B21: ＮＥＸＴ ＦＵＮＤＳ ロシア株式指数・ＲＴＳ連動型上場投信 | C21: ETF・ETN
A22: 1325 | B22: ＮＥＸＴ ＦＵＮＤＳ ブラジル株式指数・ボベスパ連動型上場投信 | C22: ETF・ETN
A23: 1326 | B23: ＳＰＤＲゴールド・シェア | C23: ETF・ETN
A24: 1327 | B24: Ｓ＆Ｐ ＧＳＣＩ商品指数 エネルギー＆メタル・キャップド・コンポーネント３５／２０・ＴＨＥＡＭ・イージーＵＣＩＴＳ・ＥＴＦクラスＡ米ドル建受益証券 | C24: ETF・ETN
A25: 1328 | B25: 金価格連動型上場投資信託 | C25: ETF・ETN
A26: 1329 | B26: ｉシェアーズ 日経２２５ ＥＴＦ | C26: ETF・ETN
A27: 1330 | B27: 上場インデックスファンド２２５ | C27: ETF・ETN
A28: 1332 | B28: 日本水産 | C28: 市場第一部（内国株）
A29: 1333 | B29: マルハニチロ | C29: 市場第一部（内国株）
A30: 1343 | B30: ＮＥＸＴ ＦＵＮＤＳ 東証ＲＥＩＴ指数連動型上場投信 | C30: ETF・ETN
A31: 1344 | B31: ＭＡＸＩＳ トピックス・コア３０上場投信 | C31: ETF・ETN
A32: 1345 | B32: 上場インデックスファンドＪリート（東証ＲＥＩＴ指数）隔月分配型 | C32: ETF・ETN
A33: 1346 | B33: ＭＡＸＩＳ 日経２２５上場投信 | C33: ETF・ETN
A34: 1347 | B34: 上場インデックスファンドＦＴＳＥ日本グリーンチップ３５ | C34: ETF・ETN
A35: 1348 | B35: ＭＡＸＩＳ トピックス上場投信 | C35: ETF・ETN
A36: 1349 | B36: ＡＢＦ汎アジア債券インデックス・ファンド | C36: ETF・ETN
A37: 1352 | B37: ホウスイ | C37: 市場第一部（内国株）
A38: 1356 | B38: ＴＯＰＩＸベア２倍上場投信 | C38: ETF・ETN
A39: 1357 | B39: ＮＥＸＴ ＦＵＮＤＳ 日経平均ダブルインバース・インデックス連動型上場投信 | C39: ETF・ETN
A40: 1358 | B40: 上場インデックスファンド日経レバレッジ指数 | C40: ETF・ETN
A41: 1360 | B41: 日経平均ベア２倍上場投信 | C41: ETF・ETN
A42: 1361 | B42: ｉシェアーズ 米国ハイイールド債券ＥＴＦ（ｉＢｏｘｘドル建てＬＨＹＣ） | C42: ETF・ETN
A43: 1362 | B43: ｉシェアーズ 新興国債券ＥＴＦ（バークレイズＬｏｃａｌ ＥＭ国債コア） | C43: ETF・ETN
A44: 1363 | B44: ｉシェアーズ 米国債ＥＴＦ（バークレイズ米１０年国債） | C44: ETF・ETN
A45: 1364 | B45: ｉシェアーズ ＪＰＸ日経４００ ＥＴＦ | C45: ETF・ETN
A46: 1365 | B46: ダイワ上場投信－日経平均レバレッジ・インデックス | C46: ETF・ETN
A47: 1366 | B47: ダイワ上場投信－日経平均ダブルインバース・インデックス | C47: ETF・ETN
A48: 1367 | B48: ダイワ上場投信－ＴＯＰＩＸレバレッジ（２倍）指数 | C48: ETF・ETN
A49: 1368 | B49: ダイワ上場投信－ＴＯＰＩＸダブルインバース（－２倍）指数 | C49: ETF・ETN
A50: 1369 | B50: ＤＩＡＭ ＥＴＦ 日経２２５ | C50: ETF・ETN
A51: 1376 | B51: カネコ種苗 | C51: 市場第二部（内国株）
A52: 1377 | B52: サカタのタネ | C52: 市場第一部（内国株）
A53: 1379 | B53: ホクト | C53: 市場第一部（内国株）
A54: 1380 | B54: 秋川牧園 | C54: JASDAQ(スタンダード・内国株）
A55: 1381 | B55: アクシーズ | C55: JASDAQ(スタンダード・内国株）
A56: 1382 | B56: ホーブ | C56: JASDAQ(スタンダード・内国株）
A57: 1383 | B57: ベルグアース | C57: JASDAQ(スタンダード・内国株）
A58: 1384 | B58: ホクリヨウ | C58: 市場第一部（内国株）
A59: 1385 | B59: ＵＢＳ ＥＴＦ ユーロ圏大型株５０（ユーロ・ストックス５０） | C59: ETF・ETN
A60: 1386 | B60: ＵＢＳ ＥＴＦ 欧州株（ＭＳＣＩヨーロッパ） | C60: ETF・ETN
A61: 1387 | B61: ＵＢＳ ＥＴＦ 欧州通貨圏株（ＭＳＣＩ ＥＭＵ） | C61: ETF・ETN
A62: 1388 | B62: ＵＢＳ ＥＴＦ 欧州通貨圏小型株（ＭＳＣＩ ＥＭＵ小型株） | C62: ETF・ETN
A63: 1389 | B63: ＵＢＳ ＥＴＦ 英国大型株１００（ＦＴＳＥ １００） | C63: ETF・ETN
A64: 1390 | B64: ＵＢＳ ＥＴＦ ＭＳＣＩアジア太平洋株（除く日本） | C64: ETF・ETN
A65: 1391 | B65: ＵＢＳ ＥＴＦ スイス株（ＭＳＣＩスイス２０／３５） | C65: ETF・ETN
A66: 1392 | B66: ＵＢＳ ＥＴＦ 英国株（ＭＳＣＩ英国） | C66: ETF・ETN
A67: 1393 | B67: ＵＢＳ ＥＴＦ 米国株（ＭＳＣＩ米国） | C67: ETF・ETN
A68: 1394 | B68: ＵＢＳ ＥＴＦ 先進国株（ＭＳＣＩワールド） | C68: ETF・ETN
A69: 1397 | B69: ＳＭＡＭ 日経２２５上場投信 | C69: ETF・ETN
A70: 1398 | B70: ＳＭＡＭ 東証ＲＥＩＴ指数上場投信 | C70: ETF・ETN
A71: 1399 | B71: 上場インデックスファンドＭＳＣＩ日本株高配当低ボラティリティ | C71: ETF・ETN
A72: 1400 | B72: ルーデン・ホールディングス | C72: JASDAQ(グロース・内国株）
A73: 1401 | B73: エムビーエス | C73: マザーズ（内国株）
A74: 1405 | B74: サーラ住宅 | C74: 市場第二部（内国株）
A75: 1407 | B75: ウエストホールディングス | C75: JASDAQ(スタンダード・内国株）
A76: 1408 | B76: サムシングホールディングス | C76: JASDAQ(グロース・内国株）
A77: 1414 | B77: ショーボンドホールディングス | C77: 市場第一部（内国株）
A78: 1417 | B78: ミライト・ホールディングス | C78: 市場第一部（内国株）
A79: 1418 | B79: インターライフホールディングス | C79: JASDAQ(スタンダード・内国株）
A80: 1419 | B80: タマホーム | C80: 市場第一部（内国株）
A81: 1420 | B81: サンヨーホームズ | C81: 市場第一部（内国株）
A82: 1427 | B82: ＭＩＳＡＷＡ ＨＡＢＩＴＡ | C82: PRO Market
A83: 1429 | B83: 日本アクア | C83: マザーズ（内国株）
A84: 1430 | B84: ファーストコーポレーション | C84: マザーズ（内国株）
A85: 1432 | B85: スズキ太陽技術 | C85: PRO Market
A86: 1433 | B86: ベステラ | C86: マザーズ（内国株）
A87: 1434 | B87: ＪＥＳＣＯホールディングス | C87: 市場第二部（内国株）
A88: 1435 | B88: インベスターズクラウド | C88: マザーズ（内国株）
A89: 1436 | B89: フィット | C89: マザーズ（内国株）
A90: 1456 | B90: ダイワ上場投信－日経平均インバース・インデックス | C90: ETF・ETN
A91: 1457 | B91: ダイワ上場投信－ＴＯＰＩＸインバース（－１倍）指数 | C91: ETF・ETN
A92: 1458 | B92: 楽天ＥＴＦ‐日経レバレッジ指数連動型 | C92: ETF・ETN
A93: 1459 | B93: 楽天ＥＴＦ‐日経ダブルインバース指数連動型 | C93: ETF・ETN
A94: 1460 | C94: ETF・ETN
A95: 1464 | B95: ダイワ上場投信－ＪＰＸ日経４００レバレッジ・インデックス | C95: ETF・ETN
A96: 1465 | B96: ダイワ上場投信－ＪＰＸ日経４００インバース・インデックス | C96: ETF・ETN
A97: 1466 | B97: ダイワ上場投信－ＪＰＸ日経４００ダブルインバース・インデックス | C97: ETF・ETN
A98: 1467 | B98: ＪＰＸ日経４００ブル２倍上場投信（レバレッジ） | C98: ETF・ETN
A99: 1468 | B99: ＪＰＸ日経４００ベア上場投信（インバース） | C99: ETF・ETN
A100: 1469 | B100: ＪＰＸ日経４００ベア２倍上場投信（ダブルインバース） | C100: ETF・ETN
A101: 1470 | B101: ＮＥＸＴ ＦＵＮＤＳ ＪＰＸ日経４００レバレッジ・インデックス連動型上場投信 | C101: ETF・ETN
A102: 1471 | B102: ＮＥＸＴ ＦＵＮＤＳ ＪＰＸ日経４００インバース・インデックス連動型上場投信 | C102: ETF・ETN
A103: 1472 | B103: ＮＥＸＴ ＦＵＮＤＳ ＪＰＸ日経４００ダブルインバース・インデックス連動型上場投信 | C103: ETF・ETN
A104: 1473 | B104: ＤＩＡＭ ＥＴＦ トピックス | C104: ETF・ETN
A105: 1474 | B105: ＤＩＡＭ ＥＴＦ ＪＰＸ日経４００ | C105: ETF・ETN
A106: 1475 | B106: ｉシェアーズ ＴＯＰＩＸ ＥＴＦ | C106: ETF・ETN
A107: 1476 | B107: ｉシェアーズ Ｊリート ＥＴＦ | C107: ETF・ETN
A108: 1477 | B108: ｉシェアーズ ＭＳＣＩ 日本株最小分散 ＥＴＦ | C108: ETF・ETN
A109: 1478 | B109: ｉシェアーズ ＭＳＣＩ ジャパン高配当利回り ＥＴＦ | C109: ETF・ETN
A110: 1491 | B110: 中外鉱業 | C110: 市場第二部（内国株）
A111: 1514 | B111: 住石ホールディングス | C111: 市場第一部（内国株）
A112: 1515 | B112: 日鉄鉱業 | C112: 市場第一部（内国株）
A113: 1518 | B113: 三井松島産業 | C113: 市場第一部（内国株）
A114: 1540 | B114: 純金上場信託（現物国内保管型） | C114: ETF・ETN
A115: 1541 | B115: 純プラチナ上場信託（現物国内保管型） | C115: ETF・ETN
A116: 1542 | B116: 純銀上場信託（現物国内保管型） | C116: ETF・ETN
A117: 1543 | B117: 純パラジウム上場信託（現物国内保管型） | C117: ETF・ETN
A118: 1545 | B118: ＮＥＸＴ ＦＵＮＤＳ ＮＡＳＤＡＱ－１００連動型上場投信 | C118: ETF・ETN
A119: 1546 | B119: ＮＥＸＴ ＦＵＮＤＳ ダウ・ジョーンズ工業株３０種平均株価連動型上場投信 | C119: ETF・ETN
A120: 1547 | B120: 上場インデックスファンド米国株式（Ｓ＆Ｐ５００） | C120: ETF・ETN
A121: 1548 | B121: 上場インデックスファンド中国Ｈ株（ハンセン中国企業株） | C121: ETF・ETN
A122: 1549 | B122: 上場インデックスファンドＮｉｆｔｙ５０先物（インド株式） | C122: ETF・ETN
A123: 1550 | B123: ＭＡＸＩＳ 海外株式（ＭＳＣＩコクサイ）上場投信 | C123: ETF・ETN
A124: 1551 | B124: ＪＡＳＤＡＱ－ＴＯＰ２０上場投信 | C124: ETF・ETN
A125: 1552 | B125: 国際のＥＴＦ ＶＩＸ短期先物指数 | C125: ETF・ETN
A126: 1554 | B126: 上場インデックスファンド世界株式（ＭＳＣＩ ＡＣＷＩ）除く日本 | C126: ETF・ETN
A127: 1555 | B127: 上場インデックスファンド豪州リート（Ｓ＆Ｐ／ＡＳＸ２００ Ａ‐ＲＥＩＴ） | C127: ETF・ETN
A128: 1557 | B128: ＳＰＤＲ Ｓ＆Ｐ５００ ＥＴＦ | C128: ETF・ETN
A129: 1559 | B129: ＮＥＸＴ ＦＵＮＤＳ タイ株式ＳＥＴ５０指数連動型上場投信 | C129: ETF・ETN
A130: 1560 | B130: ＮＥＸＴ ＦＵＮＤＳ ＦＴＳＥブルサ・マレーシアＫＬＣＩ連動型上場投信 | C130: ETF・ETN
A131: 1561 | B131: 国際のＥＴＦ ＶＩＸ中期先物指数 | C131: ETF・ETN
A132: 1562 | B132: ＹＯＵＲＭＩＲＡＩ アジア関連日本株指数上場投信 | C132: ETF・ETN
A133: 1563 | B133: マザーズ・コア上場投信 | C133: ETF・ETN
A134: 1565 | B134: 日経カバードコール指数上場投信 | C134: ETF・ETN
A135: 1566 | B135: 上場インデックスファンド新興国債券（バークレイズＬｏｃａｌ ＥＭ国債） | C135: ETF・ETN
A136: 1567 | B136: ＭＡＸＩＳトピックスリスクコントロール（５％）上場投信 | C136: ETF・ETN
A137: 1568 | B137: ＴＯＰＩＸブル２倍上場投信 | C137: ETF・ETN
A138: 1569 | B138: ＴＯＰＩＸベア上場投信 | C138: ETF・ETN
A139: 1570 | B139: ＮＥＸＴ ＦＵＮＤＳ 日経平均レバレッジ・インデックス連動型上場投信 | C139: ETF・ETN
A140: 1571 | B140: ＮＥＸＴ ＦＵＮＤＳ 日経平均インバース・インデックス連動型上場投信 | C140: ETF・ETN
A141: 1572 | B141: 中国Ｈ株ブル２倍上場投信 | C141: ETF・ETN
A142: 1573 | B142: 中国Ｈ株ベア上場投信 | C142: ETF・ETN
A143: 1574 | B143: ＭＡＸＩＳトピックスリスクコントロール（１０％）上場投信 | C143: ETF・ETN
A144: 1575 | B144: ＣｈｉｎａＡＭＣ ＣＳＩ ３００ Ｉｎｄｅｘ ＥＴＦ－ＪＤＲ | C144: ETF・ETN
A145: 1576 | B145: 南方 ＦＴＳＥ 中国Ａ株５０ ＥＴＦ | C145: ETF・ETN
A146: 1577 | B146: ＮＥＸＴ ＦＵＮＤＳ 野村日本株高配当７０連動型上場投信 | C146: ETF・ETN
A147: 1578 | B147: 上場インデックスファンド日経２２５（ミニ） | C147: ETF・ETN
A148: 1579 | B148: 日経平均ブル２倍上場投信 | C148: ETF・ETN
A149: 1580 | B149: 日経平均ベア上場投信 | C149: ETF・ETN
A150: 1581 | B150: ｉシェアーズ 先進国株ＥＴＦ（ＭＳＣＩコクサイ） | C150: ETF・ETN
A151: 1582 | B151: ｉシェアーズ エマージング株ＥＴＦ（ＭＳＣＩエマージングＩＭＩ） | C151: ETF・ETN
A152: 1583 | B152: ｉシェアーズ フロンティア株ＥＴＦ（ＭＳＣＩフロンティア１００） | C152: ETF・ETN
A153: 1584 | B153: サムスンＫＯＤＥＸサムスングループ株証券上場指数投資信託［株式］ | C153: ETF・ETN
A154: 1585 | B154: ダイワ上場投信・ＴＯＰＩＸ Ｅｘ－Ｆｉｎａｎｃｉａｌｓ | C154: ETF・ETN
A155: 1586 | B155: 上場インデックスファンドＴＯＰＩＸ Ｅｘ－Ｆｉｎａｎｃｉａｌｓ | C155: ETF・ETN
A156: 1587 | B156: ｉシェアーズ 米国超大型株ＥＴＦ（Ｓ＆Ｐ１００） | C156: ETF・ETN
A157: 1588 | B157: ｉシェアーズ 米国小型株ＥＴＦ（ラッセル２０００） | C157: ETF・ETN
A158: 1589 | B158: ｉシェアーズ 米国高配当株ＥＴＦ（モーニングスター配当フォーカス） | C158: ETF・ETN
A159: 1590 | B159: ｉシェアーズ 米国リート・不動産株ＥＴＦ（ダウ・ジョーンズ米国不動産） | C159: ETF・ETN
A160: 1591 | B160: ＮＥＸＴ ＦＵＮＤＳ ＪＰＸ日経インデックス４００連動型上場投信 | C160: ETF・ETN
A161: 1592 | B161: 上場インデックスファンドＪＰＸ日経インデックス４００ | C161: ETF・ETN
A162: 1593 | B162: ＭＡＸＩＳ ＪＰＸ日経インデックス４００上場投信 | C162: ETF・ETN
A163: 1595 | B163: ＮＺＡＭ 上場投信 東証ＲＥＩＴ指数 | C163: ETF・ETN
A164: 1596 | B164: ＮＺＡＭ 上場投信 ＴＯＰＩＸ Ｅｘ－Ｆｉｎａｎｃｉａｌｓ | C164: ETF・ETN
A165: 1597 | B165: ＭＡＸＩＳ Ｊリート上場投信 | C165: ETF・ETN
A166: 1598 | B166: ＮＥＸＴ ＦＵＮＤＳ Ｒ／Ｎファンダメンタル・インデックス上場投信 | C166: ETF・ETN
A167: 1599 | B167: ダイワ上場投信－ＪＰＸ日経４００ | C167: ETF・ETN
A168: 1605 | B168: 国際石油開発帝石 | C168: 市場第一部（内国株）
A169: 1606 | B169: 日本海洋掘削 | C169: 市場第一部（内国株）
A170: 1610 | B170: ダイワ上場投信－東証電気機器株価指数 | C170: ETF・ETN
A171: 1612 | B171: ダイワ上場投信－東証銀行業株価指数 | C171: ETF・ETN
A172: 1613 | B172: 東証電気機器株価指数連動型上場投資信託 | C172: ETF・ETN
A173: 1615 | B173: 東証銀行業株価指数連動型上場投資信託 | C173: ETF・ETN
A174: 1617 | B174: ＮＥＸＴ ＦＵＮＤＳ 食品（ＴＯＰＩＸ－１７）上場投信 | C174: ETF・ETN
A175: 1618 | B175: ＮＥＸＴ ＦＵＮＤＳ エネルギー資源（ＴＯＰＩＸ－１７）上場投信 | C175: ETF・ETN
A176: 1619 | B176: ＮＥＸＴ ＦＵＮＤＳ 建設・資材（ＴＯＰＩＸ－１７）上場投信 | C176: ETF・ETN
A177: 1620 | B177: ＮＥＸＴ ＦＵＮＤＳ 素材・化学（ＴＯＰＩＸ－１７）上場投信 | C177: ETF・ETN
A178: 1621 | B178: ＮＥＸＴ ＦＵＮＤＳ 医薬品（ＴＯＰＩＸ－１７）上場投信 | C178: ETF・ETN
A179: 1622 | B179: ＮＥＸＴ ＦＵＮＤＳ 自動車・輸送機（ＴＯＰＩＸ－１７）上場投信 | C179: ETF・ETN
A180: 1623 | B180: ＮＥＸＴ ＦＵＮＤＳ 鉄鋼・非鉄（ＴＯＰＩＸ－１７）上場投信 | C180: ETF・ETN
A181: 1624 | B181: ＮＥＸＴ ＦＵＮＤＳ 機械（ＴＯＰＩＸ－１７）上場投信 | C181: ETF・ETN
A182: 1625 | B182: ＮＥＸＴ ＦＵＮＤＳ 電機・精密（ＴＯＰＩＸ－１７）上場投信 | C182: ETF・ETN
A183: 1626 | B183: ＮＥＸＴ ＦＵＮＤＳ 情報通信・サービスその他（ＴＯＰＩＸ－１７）上場投信 | C183: ETF・ETN
A184: 1627 | B184: ＮＥＸＴ ＦＵＮＤＳ 電力・ガス（ＴＯＰＩＸ－１７）上場投信 | C184: ETF・ETN
A185: 1628 | B185: ＮＥＸＴ ＦＵＮＤＳ 運輸・物流（ＴＯＰＩＸ－１７）上場投信 | C185: ETF・ETN
A186: 1629 | B186: ＮＥＸＴ ＦＵＮＤＳ 商社・卸売（ＴＯＰＩＸ－１７）上場投信 | C186: ETF・ETN
A187: 1630 | B187: ＮＥＸＴ ＦＵＮＤＳ 小売（ＴＯＰＩＸ－１７）上場投信 | C187: ETF・ETN
A188: 1631 | B188: ＮＥＸＴ ＦＵＮＤＳ 銀行（ＴＯＰＩＸ－１７）上場投信 | C188: ETF・ETN
A189: 1632 | B189: ＮＥＸＴ ＦＵＮＤＳ 金融（除く銀行）（ＴＯＰＩＸ－１７）上場投信 | C189: ETF・ETN
A190: 1633 | B190: ＮＥＸＴ ＦＵＮＤＳ 不動産（ＴＯＰＩＸ－１７）上場投信 | C190: ETF・ETN
A191: 1634 | B191: ダイワ上場投信・ＴＯＰＩＸ－１７ 食品 | C191: ETF・ETN
A192: 1635 | B192: ダイワ上場投信・ＴＯＰＩＸ－１７ エネルギー資源 | C192: ETF・ETN
A193: 1636 | B193: ダイワ上場投信・ＴＯＰＩＸ－１７ 建設・資材 | C193: ETF・ETN
A194: 1637 | B194: ダイワ上場投信・ＴＯＰＩＸ－１７ 素材・化学 | C194: ETF・ETN
A195: 1638 | B195: ダイワ上場投信・ＴＯＰＩＸ－１７ 医薬品 | C195: ETF・ETN
A196: 1639 | B196: ダイワ上場投信・ＴＯＰＩＸ－１７ 自動車・輸送機 | C196: ETF・ETN
A197: 1640 | B197: ダイワ上場投信・ＴＯＰＩＸ－１７ 鉄鋼・非鉄 | C197: ETF・ETN
A198: 1641 | B198: ダイワ上場投信・ＴＯＰＩＸ－１７ 機械 | C198: ETF・ETN
A199: 1642 | B199: ダイワ上場投信・ＴＯＰＩＸ－１７ 電機・精密 | C199: ETF・ETN
A200: 1643 | B200: ダイワ上場投信・ＴＯＰＩＸ－１７ 情報通信・サービスその他 | C200: ETF・ETN
A201: 1644 | B201: ダイワ上場投信・ＴＯＰＩＸ－１７ 電力・ガス | C201: ETF・ETN
A202: 1645 | B202: ダイワ上場投信・ＴＯＰＩＸ－１７ 運輸・物流 | C202: ETF・ETN
A203: 1646 | B203: ダイワ上場投信・ＴＯＰＩＸ－１７ 商社・卸売 | C203: ETF・ETN
... 3602 more rows
